Workbook

Sheet Рачун финансирања
A1: На основу члана 43. Закона о буџетском систему ("Службени гласник РС", бр. 54/09, 73/10, 101/2010, 101/11, 93/12, 62/13, 108/13, 142/14,68/15 и 103/15), члана 32. Закона о локалној самоуправи ( " Службени гласник РС", број 129/07) и члана 41. Статута општине Љубовија (" Службени лист општине Љубовија", број 6/2008), а на предлог Општинског већа, СКУПШТИНА ОПШТИНЕ ЉУБОВИЈА, на седници одржаној 04.11. 2016. године , донела је
D2: О Д Л У К А О
C3: ТРЕЋИМ ИЗМЕНАМА И ДОПУНАМА
C4: ОДЛУКЕ О БУЏЕТУ ОПШТИНЕ ЉУБОВИЈА ЗА 2016.ГОДИНУ
C6: I ОПШТИ ДЕО
C7: Члан 1.
A8: У Одлуци о другим изменама и допунама одлуке о буџету општине Љубовија за 2016. годину Члан.1 мења се и гласи:
A9: А. | B9: РАЧУН ПРИХОДА И ПРИМАЊА | H9: Економска класификација | I9: Буџетска средства у динарима | J9: Средства из осталих извора
A10: 1. | B10: Укупни приходи и примања остварени по основу продаје нефинансијске имовине | H10: 7 + 8 | I10: =SUM('Оптшти део - (6)'!D103) -> 477415523 | J10: =SUM('Оптшти део - (6)'!F103) -> 72651101
A11: 2. | B11: Укупни расходи и издаци за набавку нефинансијске имовине | H11: 4 + 5 | I11: =SUM('По основ. нам.'!C8,'По основ. нам.'!C65) -> 491420000 | J11: =SUM('ПО КОРИСНИЦИМА'!I14039) -> 72651100.84
A12: 3. | B12: Буџетски суфицит/дефицит | H12: (7+8) - (4+5) | I12: =SUM(I10-I11) -> -14004477
A13: 4. | B13: Издаци за набавку финансијске имовине (осим за набавку домаћих хартија од вредности 6211) | H13: 62
A14: 6. | B14: Укупан фискални суфицит/дефицит | H14: (7+8) - (4+5) - 62 | I14: =SUM(I12,I13) -> -14004477
A15: Б. | B15: РАЧУН ФИНАНСИРАЊА
A16: 1. | B16: Примања од задуживања | H16: 91 | I16: ='Оптшти део - (6)'!G98 -> 0
A17: 2. | B17: Примања од продаје финансијске имовине (конта 9211, 9221, 9219, 9227, 9228) | H17: 92 | I17: ='Оптшти део - (6)'!G101 -> 0
A18: 3. | B18: Неутрошена средства из претходних година | H18: 3 | I18: =SUM('Оптшти део - (6)'!D7) -> 14014477
A19: 4. | B19: Издаци за набавку финансијске имовине (за набавку домаћих хартија од вредности 6211) | H19: 6211 | I19: ='По основ. нам.'!F88 -> 10000
A20: 5. | B20: Издаци за отплату главнице дуга | H20: 61 | I20: ='По основ. нам.'!F83 -> 0
A21: B. | B21: Нето финансирање | H21: (91+92+3) - (61+6211) | I21: =I16+I17+I18-I19-I20 -> 14004477
C23: Члан 2.
E24: Члан 2. мења се и гласи:
A25: Буџет општине Љубовија за 2016. годину састоји се од :
B26: - приходи и примања у износу од 550.066.624,00 динара
B27: - расхода и издатака у износу од 564.071.101,00 динара
A30: - Буџетски дефицит у износу од 14.004.477,00 динара
A31: Буџетски дефицит у износу од 14.004.477,00 динара биће покривен из пренетих неутрошених средстава из претходне године
C32: Члан 3.
D33: Члан 3. мења се и гласи:
A34: Средства текуће буџетске резерве планирају се у буџету општине у износу од 2.879.983 динара .
A35: Средства из става 1. овог члана користе се за непланиране сврхе за које нису утврђене апропријације или за сврхе за које се у току године покаже да апропријације нису биле довољне.
A37: Председник општине /општинско веће, на предлог локалног органа надлежног за финансије, доноси решење о употреби текуће буџетске резерве.

Sheet Приџ,прим vs Расх,изд (hidden)
A1: Р.бр. | B1: ОПИС | C1: Шифра економске класификације | D1: Средства из буџета | E1: Средства из осталих извора | F1: Укупно
A2: 1 | B2: 2 | C2: 3 | D2: 4 | E2: 5 | F2: 6
A3: I | B3: УКУПНИ ПРИХОДИ И ПРИМАЊА ОД ПРОДАЈЕ НЕФИНАНСИЈСКЕ ИМОВИНЕ | C3: 7+8
A4: 1. | B4: Порески приходи | C4: 71
A5: 1.1. | B5: Порез на доходак, добит и капиталне добитке (осим самодоприноса) | C5: 711
A6: 1.2. | B6: Самодопринос | C6: 711180
A7: 1.3. | B7: Порез на имовину | C7: 713
A8: 1.6. | B8: Остали порески приходи
A9: 2. | B9: Непорески приходи | C9: 74
A10: 2.1 | B10: Накнада за коришћење природних добара | C10: 741510
A11: 2.2 | B11: Накнада за коришћење шумског и пољопривредног земљишта | C11: 741520
A12: 2.2 | B12: Накнада за коришћење грађевинског земљишта | C12: 741534
A13: 2.3 | B13: Накнада за коришћење природног лековитог фактора | C13: 741542
A14: 2.4 | B14: Приход од имовине који припада имаоцима полисе осигурања | C14: 741411
A15: 2.5 | B15: Накнада за обавезни здравствени преглед биља | C15: 742252
A16: 2.6 | B16: Накнада за уређивање грађевинског земљишта | C16: 742253
A17: 2.7 | B17: Приходи настали продајом услуга корисника средстава буџета јединице локлане самоуправе чије је пружање уговорено са физичким и правним лицима | C17: 742340
A18: 2.8 | B18: Остали непорески приходи
A19: 3. | B19: Донације | C19: 731+732
A20: 4. | B20: Трансфери | C20: 733
A21: 5. | B21: Меморандумске ставке за рефундацију расхода | C21: 771
A22: 6. | B22: Примања од продаје нефинансијске имовине | C22: 8
A23: II | B23: УКУПНИ РАСХОДИ И ИЗДАЦИ ЗА НАБАВКУ НЕФИНАНСИЈСКЕ ИМОВИНЕ | C23: 4+5
A24: 1. | B24: Текући расходи | C24: 4 - 463
A25: 1.1. | B25: Расходи за запослене | C25: 41
A26: 1.2. | B26: Коришћење роба и услуга | C26: 42
A27: 1.3. | B27: Употреба основних средстава | C27: 43
A28: 1.4. | B28: Отплата камата | C28: 44
A29: 1.5. | B29: Субвенције | C29: 45
A30: 1.6. | B30: Социјална заштита из буџета | C30: 47
A31: 1.7. | B31: Остали расходи | C31: 48+49
A32: 2. | B32: Трансфери | C32: 463
A33: 3. | B33: Издаци за набавку нефинансијске имовине | C33: 5
A34: 4. | B34: Издаци за набавку финансијске имовине (осим 6211) | C34: 62
A35: III | B35: ПРИМАЊА ОД ПРОДАЈЕ ФИНАНСИЈСКЕ ИМОВИНЕ И ЗАДУЖИВАЊА | C35: 9
A36: 1. | B36: Задуживање | C36: 91
A37: 1.1. | B37: Задуживање код домаћих кредитора | C37: 911
A38: 1.2. | B38: Задуживање код страних кредитора | C38: 912
A39: 2. | B39: Примања по основу отплате кредита и продаје финансијске имовине | C39: 92
A40: IV | B40: ОТПЛАТА ДУГА И НАБАВКА ФИНАНСИЈСКЕ ИМОВИНЕ | C40: 6
A41: 1. | B41: Отплата дуга | C41: 61
A42: 1.1. | B42: Отплата дуга домаћим кредиторима | C42: 611
A43: 1.2. | B43: Отплата дуга страним кредиторима | C43: 612
A44: 1.3. | B44: Отплата дуга по гаранцијама | C44: 613
A45: 2. | B45: Набавка финансијске имовине | C45: 6211
A47: V | B47: НЕРАСПОРЕЂЕНИ ВИШАК ПРИХОДА ИЗ РАНИЈИХ ГОДИНА | C47: 3

Sheet Оптшти део - (6)
C1: Члан 4. | G1: стр.2
B2: Члан 4. мења се и гласи:
A3: Приходи и примања буџета општине и пренета средтва из претходне године планирани су у укупном износу од 564.081.101 динара по врстама, односно економским класификацијама, и утврђени су у следећим износима:
A5: Класа/Категорија/Група | B5: Конто | C5: ВРСТЕ ПРИХОДА И ПРИМАЊА | D5: План за 2016. | G5: УКУПНА ЈАВНА СРЕДСТВА
D6: Средства из буџета | E6: Структ-ура % | F6: Средства из осталих извора финан. буџ. корисника
C7: Пренета средства из претходне године | D7: 14014477 | E7: =IFERROR(D7/$D$104,"-") -> 0.0285177482 | G7: =SUM(D7,F7) -> 14014477
A8: 700000 | C8: ТЕКУЋИ ПРИХОДИ | D8: =SUM(D9,D44,D51,D86,D89) -> 477415523 | E8: 0.9714822518 | F8: =SUM(F9,F44,F51,F86,F89) -> 72651101 | G8: =SUM(G9,G44,G51,G86,G89) -> 538644145
A9: 710000 | C9: ПОРЕЗИ | D9: =SUM(D10,D23,D33,D42) -> 202400000 | E9: 0.4118592679 | F9: =SUM(F10,F23,F33,F42) -> 0 | G9: =SUM(G10,G23,G33,G42) -> 202400000
A10: 711000 | C10: ПОРЕЗ НА ДОХОДАК, ДОБИТ И КАПИТАЛНЕ ДОБИТКЕ | D10: =SUM(D11:D22) -> 148000000 | E10: 0.3011619152 | F10: =SUM(F11:F22) -> 0 | G10: =SUM(G11:G22) -> 148000000
B11: 711111 | C11: Порез на зараде | D11: 125000000 | E11: 0.2543597257 | G11: =SUM(F11,D11) -> 125000000
B12: 711121 | C12: Порез на приходе од самосталних делатности који се плаћа према стварно оствареном приходу, по решењу Пореске управе | D12: 400000 | E12: 0.0008139511222 | G12: =SUM(F12,D12) -> 400000
B13: 711122 | C13: Порез на приходе од самосталних делатности који се плаћа према паушално утврђеном приходу, по решењу Пореске управе | D13: 6500000 | E13: 0.01322670574 | G13: 6500000
B14: 711123 | C14: Порез на приходе од самосталних делатности који се плаћа према стварно оствареном приходу самоопорезивањем | D14: 7000000 | E14: 0.01424414464 | G14: 7000000
B15: 711143 | C15: Порез на приходе од непокретности | D15: 700000 | E15: 0.001424414464 | G15: 700000
B16: 711145 | C16: Порез на приходе од давања у закуп покретних ствари - по основу самоопорезивања и по решењу Пореске управе | D16: 700000 | E16: 0.001424414464 | G16: 700000
B17: 711146 | C17: Порез на приход од пољопривреде и шумарства, по решењу Пореске управе | D17: 500000 | E17: 0.001017438903 | G17: 500000
B18: 711147 | C18: Порез на земљиште | D18: 700000 | E18: 0.001424414464 | G18: 700000
B19: 711148 | C19: Порез на приходе од непокретности, по решењу Пореске управе | D19: 500000 | E19: 0.001017438903 | G19: 500000
B20: 711161 | C20: Порез на приходе од осигурања лица | E20: 0 | G20: 0
B21: 711181 | C21: Самодоприноси | E21: 0 | G21: 0
B22: 711190 | C22: Порез на друге приходе | D22: 6000000 | E22: 0.01220926683 | G22: 6000000
A23: 713000 | C23: ПОРЕЗ НА ИМОВИНУ | D23: =SUM(D24:D32) -> 37200000 | E23: 0.07569745437 | F23: =SUM(F24:F32) -> 0 | G23: =SUM(G24:G32) -> 37200000
B24: 713121 | C24: Порез на имовину (осим на земљиште, акције и уделе) од физичких лица | D24: 14200000 | E24: 0.02889526484 | G24: 14200000
B25: 713122 | C25: Порез на имовину (осим на земљиште, акције и уделе) од правних лица | D25: 10000000 | E25: 0.02034877806 | G25: 10000000
B26: 713126 | C26: Порез на имовину (осим на неизграђено земљиште), обвезника који воде пословне књиге | E26: 0 | G26: 0
B27: 713311 | C27: Порез на наслеђе и поклон по решењу Пореске управе | D27: 1000000 | E27: 0.002034877806 | G27: 1000000
B28: 713421 | C28: Порез на пренос апсолутних права на непокретности, по решењу Пореске управе | D28: 7000000 | E28: 0.01424414464 | G28: 7000000
B29: 713422 | C29: Порез на пренос апсолутних права на акцијама и другим хартијама од вредности, по решењу Пореске управе | E29: 0 | G29: 0
B30: 713423 | C30: Порез на пренос апсолутних права на моторним возилима, пловилима и ваздухопловима, по решењу Пореске управе | D30: 5000000 | E30: 0.01017438903 | G30: 5000000
B31: 713424 | C31: Порез на пренос апсолутних права у осталим случајевима, по решењу Пореске управе | E31: 0 | G31: 0
B32: 713611 | C32: Порез на акције на име и уделе | E32: 0 | G32: 0
A33: 714000 | C33: ПОРЕЗ НА ДОБРА И УСЛУГЕ | D33: =SUM(D34:D41) -> 11200000 | E33: 0.02279063142 | F33: =SUM(F34:F41) -> 0 | G33: =SUM(G34:G41) -> 11200000
B34: 714441 | C34: Средства за противпожарну заштиту | E34: 0 | G34: 0
B35: 714431 | C35: Комунална такса за коришћење рекламних паноа, укључујући и истицање и исписивање фирме ван пословног простора на објектима и просторима који припадају јединици локалне самоуправе(коловози, тротоари, зелене површине, бандере и сл.) | D35: 1000000 | E35: 0.002034877806 | G35: 1000000
B36: 714513 | C36: Комунална такса за држање моторних друмских и прикључних возила, осим пољопривредних возила и машина | D36: 5000000 | E36: 0.01017438903 | G36: 5000000
B37: 714543 | C37: Накнада за промену намене обрадивог пољопривредног земљишта | D37: 500000 | E37: 0.001017438903 | G37: 500000
B38: 714549 | C38: Накнада од емисије SO2, NO2, прашкастих материја и одложеног отпада | E38: 0 | G38: 0
B39: 714552 | C39: Боравишна такса | D39: 400000 | E39: =IFERROR(D39/$D$104,"-") -> 0.0008139511222 | G39: 400000
B40: 714562 | C40: Посебна накнада за заштиту и унапређење животне средине | D40: 4000000 | E40: 0.008139511222 | G40: 4000000
B41: 714572 | C41: Комунална такса за држање средстава за игру („забавне игре“) | D41: 300000 | E41: 0.0006104633417 | G41: 300000
A42: 716000 | C42: ДРУГИ ПОРЕЗИ | D42: =SUM(D43:D43) -> 6000000 | E42: 0.01220926683 | F42: =SUM(F43:F43) -> 0 | G42: =SUM(G43:G43) -> 6000000
B43: 716111 | C43: Комунална такса за истицање фирме на пословном простору | D43: 6000000 | E43: 0.01220926683 | G43: 6000000
A44: 730000 | C44: ДОНАЦИЈЕ И ТРАНСФЕРИ | D44: =SUM(D45,D47) -> 194800900 | E44: 0.3963960279 | F44: =SUM(F45,F47) -> 55402061 | G44: =SUM(G45,G47) -> 250202961
A45: 732000 | C45: ДОНАЦИЈЕ ОД МЕЂ. ОРГАНИЗАЦИЈА | D45: =SUM(D46) -> 0 | E45: 0 | F45: =SUM(F46) -> 39313500 | G45: =SUM(G46) -> 39313500
B46: 732341 | C46: Текуће помоћи од ЕУ у корист нивоа општине | E46: 0 | F46: 39313500 | G46: =SUM(F46,D46) -> 39313500
A47: 733000 | C47: ТРАНСФЕРИ ОД ДРУГИХ НИВОА ВЛАСТИ | D47: =SUM(D48:D50) -> 194800900 | E47: 0.3963960279 | F47: =SUM(F48:F50) -> 16088561 | G47: =SUM(G48:G50) -> 210889461
B48: 733151 | C48: Ненаменски трансфери од Републике у корист нивоа општина | D48: 194800900 | E48: 0.3963960279 | G48: =SUM(F48,D48) -> 194800900
B49: 733154 | C49: Текући наменски трансфери, у ужем смислу, од Републике у корист нивоа општина | E49: 0 | G49: 0
B50: 733154 | C50: Текући наменски трансфери, у ужем смислу, од Републике у корист нивоа општина | E50: 0 | F50: 16088561 | G50: 16088561
A51: 740000 | C51: ДРУГИ ПРИХОДИ | D51: =SUM(D52,D66,D75,D78,D82) -> 71902413 | E51: 0.1463126244 | F51: =SUM(F52,F66,F75,F78,F82) -> 17249040 | G51: =SUM(G52,G66,G75,G78,G82) -> 85741184
A52: 741000 | C52: ПРИХОДИ ОД ИМОВИНЕ | D52: =SUM(D53:D63) -> 32900000 | E52: 0.0669474798 | F52: =SUM(F53:F63) -> 0 | G52: =SUM(G53:G63) -> 32900000
B53: 741151 | C53: Приходи буџета општина од камата на средства консолидованог рачуна трезора укључена у депозит банака | D53: 5000000 | E53: 0.01017438903 | G53: =SUM(F53,D53) -> 5000000
B54: 741411 | C54: Приход од имовине који припада имаоцима полисе осигурања | E54: 0 | G54: 0
B55: 741510 | C55: Накнада за коришћење природних добара | D55: 25000000 | E55: 0.05087194514 | G55: 25000000
B56: 741520 | C56: Накнада за коришћење шумског и пољопривредног земљишта | D56: 1500000 | E56: 0.003052316708 | G56: 1500000
B57: 741531 | C57: Комунална такса за коришћење простора на јавним површинама или испред пословног простора у пословне сврхе, осим ради продаје штампе, књига и других публикација, производа старих и уметничких заната и домаће радиности | D57: 400000 | E57: 0.0008139511222 | G57: 400000
B58: 741532 | C58: Комунална такса за коришћење простора за паркирање друмских моторних и прикључних возила на уређеним и обележеним местима | E58: 0 | G58: 0
B59: 741533 | C59: Комунална такса за коришћење слободних површина за кампове, постављање шатора или друге облике привременог коришћења | E59: 0 | G59: 0
B60: 741534 | C60: Накнада за коришћење грађевинског земљишта | D60: 500000 | E60: 0.001017438903 | G60: 500000
B61: 741535 | C61: Комунална такса за заузеће јавне површине грађевинским материјалом | D61: 500000 | E61: 0.001017438903 | G61: 500000
B62: 741542 | C62: Накнада за коришћење природног лековитог фактора | E62: 0 | G62: 0
B63: 741560 | C63: Накнада за воде | E63: 0 | G63: 0
G65: стр.3
A66: 742000 | C66: ПРИХОДИ ОД ПРОДАЈЕ ДОБАРА И УСЛУГА | D66: =SUM(D67:D74) -> 30619413 | E66: =IFERROR(D66/$D$104,"-") -> 0.06230676393 | F66: =SUM(F67:F74) -> 13838771 | G66: =SUM(G67:G74) -> 44458184
B67: 742152 | C67: Приходи од давања у закуп, односно на коришћење непокретности у државној својини које користе општине и индиректни корисници њиховог буџета | D67: 1000000 | E67: =IFERROR(D67/$D$104,"-") -> 0.002034877806 | G67: 1000000
B68: 742153 | C68: Приходи од закупнине за грађевинско земљиште у корист нивоа градова | D68: 50000 | E68: =IFERROR(D68/$D$104,"-") -> 0.0001017438903 | G68: 50000
B69: 742154 | C69: Накнада по сонову конверзије права коришћења | D69: 450000 | G69: =SUM(D69:F69) -> 450000
B70: 742251 | C70: Општинске административне таксе | D70: 1000000 | E70: =IFERROR(D70/$D$104,"-") -> 0.002034877806 | G70: 1000000
B71: 742252 | C71: Накнада за обавезни здравствени преглед биља | E71: =IFERROR(D71/$D$104,"-") -> 0 | G71: 0
B72: 742253 | C72: Накнада за уређивање грађевинског земљишта | D72: 2500000 | E72: =IFERROR(D72/$D$104,"-") -> 0.005087194514 | G72: 2500000
B73: 742255 | C73: Такса за озакоњење објеката у корист нивоа општина | D73: 24619413 | E73: =IFERROR(D73/$D$104,"-") -> 0.0500974971 | G73: 24619413
B74: 742351 | C74: Приходи који својом делатношћу остваре органи и организације општине | D74: 1000000 | E74: =IFERROR(D74/$D$104,"-") -> 0.002034877806 | F74: 13838771 | G74: 14838771
A75: 743000 | C75: НОВЧАНЕ КАЗНЕ И ОДУЗЕТА ИМОВИНСКА КОРИСТ | D75: =SUM(D76:D77) -> 2300000 | E75: =IFERROR(D75/$D$104,"-") -> 0.004680218953 | F75: =SUM(F76:F77) -> 0 | G75: =SUM(G76:G77) -> 2300000
B76: 743324 | C76: Приходи од новчаних казни за прекршаје, предвиђене прописима о безбедности саобраћаја на путевима | D76: 2300000 | E76: 0.004680218953 | G76: 2300000
B77: 743340 | C77: Приходи од новчаних казни за прекршаје у корист нивоа градова | E77: 0 | G77: 0
A78: 744000 | C78: ДОБРОВОЉНИ ТРАНСФЕРИ ОД ФИЗИЧКИХ И ПРАВНИХ ЛИЦА | D78: =SUM(D79:D80) -> 4000000 | E78: 0.008139511222 | F78: =SUM(F81) -> 3410269 | G78: =SUM(G79:G80) -> 4000000
B79: 744141 | C79: Текући добровољни трансфери од физичких и правних лица у корист нивоа градова | E79: 0 | G79: 0
B80: 744251 | C80: Капитални добровољни трансфери од физичких и правних лица у корист нивоа градова | D80: 4000000 | E80: 0.008139511222 | G80: 4000000
B81: 744251 | C81: Капитални добровољни трансфери од физичких и правних лица у корист нивоа општине | F81: 3410269
A82: 745000 | C82: МЕШОВИТИ И НЕОДРЕЂЕНИ ПРИХОДИ | D82: =SUM(D83:D85) -> 2083000 | E82: 0.004238650469 | F82: =SUM(F83:F85) -> 0 | G82: =SUM(G83:G85) -> 2083000
B83: 745151 | C83: Остали приходи у корист нивоа општина | D83: 1883000 | E83: 0.003831674908 | G83: 1883000
B84: 745152 | C84: Закупнина за стан у државној својини у корист нивоа општина | E84: 0 | G84: 0
B85: 745153 | C85: Део добити јавног предузећа према одлуци управног одбора јавног предузећа у корист нивоа општина | D85: 200000 | E85: 0.0004069755611 | G85: 200000
A86: 770000 | C86: МЕМОРАНДУМСКЕ СТАВКЕ ЗА РЕФУНДАЦИЈУ РАСХОДА | D86: =SUM(D87:D88) -> 8312210 | E86: 0.01691433164 | F86: =SUM(F87) -> 0 | G86: =SUM(G87) -> 300000
B87: 771111 | C87: Меморандумске ставке за рефундацију расхода | D87: 300000 | E87: 0.0006104633417 | G87: 300000
B88: 772114 | C88: Меморамдумске ставке за рефундацију расхода из претходних година | D88: 8012210 | E88: 0.0163038683 | G88: 8012210
A89: 790000 | C89: ПРИХОДИ ИЗ БУЏЕТА | D89: =SUM(D90) -> 0 | E89: 0 | F89: =SUM(F90) -> 0 | G89: =SUM(G90) -> 0
B90: 791110 | C90: Приходи из буџета | E90: 0 | G90: 0
A91: 800000 | C91: ПРИМАЊА ОД ПРОДАЈЕ НЕФИНАНСИЈСКЕ ИМОВИНЕ | D91: =D92+D95 -> 0 | E91: 0 | F91: =F92+F95 -> 0 | G91: =G92+G95 -> 0
A92: 810000 | C92: ПРИМАЊА ОД ПРОДАЈЕ ОСНОВНИХ СРЕДСТАВА | D92: =SUM(D93:D94) -> 0 | E92: 0 | F92: =SUM(F93:F94) -> 0 | G92: =SUM(G93:G94) -> 0
B93: 811000 | C93: Примања од продаје непокретности | E93: 0 | G93: =SUM(F93,D93) -> 0
B94: 812000 | C94: Примања од продаје покретне имовине | E94: 0 | G94: 0
A95: 840000 | C95: ПРИМАЊА ОД ПРОДАЈЕ ПРИРОДНЕ ИМОВИНЕ | D95: =SUM(D96) -> 0 | E95: 0 | F95: =SUM(F96) -> 0 | G95: =SUM(G96) -> 0
B96: 841000 | C96: Примања од продаје земљишта | E96: 0 | G96: =SUM(F96,D96) -> 0
A97: 900000 | C97: ПРИМАЊА ОД ЗАДУЖИВАЊА И ПРОДАЈЕ ФИНАНСИЈСКЕ ИМОВИНЕ | D97: =SUM(D98,D101) -> 0 | E97: 0 | F97: =SUM(F98,F101) -> 0 | G97: =SUM(G98,G101) -> 0
A98: 910000 | C98: ПРИМАЊА ОД ЗАДУЖИВАЊА | D98: =SUM(D99:D100) -> 0 | E98: 0 | F98: =SUM(F99:F100) -> 0 | G98: =SUM(G99:G100) -> 0
B99: 911441 | C99: Примања од задуживања од пословних банака у земљи у корист нивоа градова | E99: 0 | G99: =SUM(F99,D99) -> 0
B100: 912 | C100: Примања од иностраног задуживања | E100: 0 | G100: 0
A101: 920000 | C101: ПРИМАЊА ОД ПРОДАЈЕ ФИН. ИМОВИНЕ | D101: =SUM(D102) -> 0 | E101: 0 | F101: =SUM(F102) -> 0 | G101: =SUM(G102) -> 0
B102: 921941 | C102: Примања од продаје домаћих акција и осталог капитала у корист нивоа градова | E102: 0 | G102: =SUM(F102,D102) -> 0
B103: 7+8+9 | C103: ТЕКУЋИ ПРИХОДИ И ПРИМАЊА ОД ЗАДУЖИВАЊА И ПРОДАЈЕ ФИН. ИМОВИНЕ | D103: =SUM(D8,D91,D97) -> 477415523 | E103: 0.9714822518 | F103: =SUM(F8,F91,F97) -> 72651101 | G103: =SUM(D103,F103) -> 550066624
B104: 3+7+8+9 | C104: УКУПНО ПРЕНЕТА СРЕДСТВА, ТЕКУЋИ ПРИХОДИ И ПРИМАЊА | D104: =SUM(D7,D8,D91,D97) -> 491430000 | E104: 1 | F104: =SUM(F7,F8,F91,F97) -> 72651101 | G104: =SUM(D104,F104) -> 564081101

Sheet Капитални расходи
F1: стр.4
A2: Члан 5.
C3: Члан 5. мења се и гласи:
A4: Издаци за капиталне пројекте, планирани за буџетску 2016. и наредне две године, исказане су у табели.
A5: Екон. | B5: Редни број | C5: Опис | D5: Износ у динарима
A6: Клас. | D6: 2016 | E6: 2017 | F6: 2018
A7: 1 | B7: 2 | C7: 3 | D7: 4 | E7: 5 | F7: 6
C8: КАПИТАЛНИ ПРОЈЕКТИ | D8: =SUM(D9,D18,D27,D36,D45,D62,D73,D88,D90,D92,D101,D110,D119,D128) -> 121476786.1 | E8: =SUM(E9,E18,E27,E36,E45,E54,E73,E83,E92,E101,E110,E119,E128,E138,E148) -> 109920000 | F8: =SUM(F9,F18,F27,F36,F45,F54,F73,F83,F92,F101,F110,F119,F128,F138,F148) -> 0
A9: 511 | B9: 1 | C9: Асфалтирање локалних путева | D9: =SUM(D14) -> 28350000 | E9: =SUM(E14:E17) -> 0 | F9: 0
C10: Година почетка финансирања пројекта: 2016
C11: Година завршетка финансирања пројекта:2016
C12: Укупна вредност пројекта:
C13: Извори финансирања:
C14: - из текућих прихода | D14: 28350000
C15: - из кредита
C16: - из буџета Републике Србије
C17: - из осталих извора
A18: 511 | B18: 2 | C18: Саобраћајна инфраструктура у индустријској зони уз државни пут 2.реда | D18: =SUM(D23:D26) -> 150000 | E18: =SUM(E23:E26) -> 0 | F18: 0
C19: Година почетка финансирања пројекта: 2015
C20: Година завршетка финансирања пројекта:2016
C21: Укупна вредност пројекта:
C22: Извори финансирања:
C23: - из текућих прихода | D23: 150000
C24: - из кредита
C25: - из буџета Републике Србије
C26: - из осталих извора
A27: 511 | B27: 3 | C27: Рехабилитација Косовске улице | D27: =SUM(D32:D35) -> 460000 | E27: =SUM(E32:E35) -> 0 | F27: 0
C28: Година почетка финансирања пројекта: 2015
C29: Година завршетка финансирања пројекта:2016
C30: Укупна вредност пројекта:
C31: Извори финансирања:
C32: - из текућих прихода | D32: 460000
C33: - из кредита
C34: - из буџета Републике Србије
C35: - из осталих извора
A36: 511 | B36: 4 | C36: Рехабилитација Омладинске улице | D36: =SUM(D41:D44) -> 5550000 | E36: =SUM(E41:E44) -> 5500000 | F36: 0
C37: Година почетка финансирања пројекта: 2015
C38: Година завршетка финансирања пројекта:2017
C39: Укупна вредност пројекта:
C40: Извори финансирања:
C41: - из текућих прихода | D41: 5550000 | E41: 5500000
C42: - из кредита
C43: - из буџета Републике Србије
C44: - из осталих извора
A45: 511 | B45: 5 | C45: Изградња нисконапонске мреже на територији општине Љубовија | D45: =SUM(D50:D53) -> 4500000 | E45: =SUM(E50:E53) -> 0 | F45: 0
C46: Година почетка финансирања пројекта: 2015
C47: Година завршетка финансирања пројекта: 2016
C48: Укупна вредност пројекта:
C49: Извори финансирања:
C50: - из текућих прихода | D50: 4500000
C51: - из кредита
C52: - из буџета Републике Србије
C53: - из осталих извора
A54: 511 | B54: 6 | C54: Реконструкција улице Стојана Чупића | E54: =SUM(E56) -> 15800000 | F54: =SUM(F59:F68) -> 0
C55: Година почетка финансирања пројекта: 2017
C56: Година завршетка финансирања пројекта:2017 | E56: 15800000
C57: Укупна вредност пројекта:
C58: Извори финансирања:
C59: - из текућих прихода
C60: - из кредита
C61: - из буџета Републике Србије
A62: 511 | B62: 7 | C62: Рехабилитација пута В.мајдан- М. Камен и изградња моста | D62: =SUM(D66) -> 25000000 | E62: =SUM(E66) -> 5000000
C63: Година почетка финансирања пројекта: 2016
C64: Година завршетка финансирања пројекта:2017
C65: Извори финансирања:
C66: - из текућих прихода | D66: 25000000 | E66: 5000000
C68: - из осталих извора
A73: 4512 | B73: 7 | C73: Реконструкција саобраћаница и стаза на градском гробљу | D73: =SUM(D78:D82) -> 8800000 | E73: =SUM(E78:E82) -> 6620000 | F73: 0
C74: Година почетка финансирања пројекта: 2016
C75: Година завршетка финансирања пројекта: 2017
C76: Укупна вредност пројекта:
C77: Извори финансирања:
C78: - из текућих прихода | D78: 8800000 | E78: 6620000
C79: - из кредита
F80: стр.5
C81: - из буџета Републике Србије
C82: - из осталих извора
A83: 5112 | B83: 8 | C83: Изградња колектора Стара Љубовија од ПС до локације ППОВ | D83: =SUM(D88:D91) -> 28001622.07 | E83: =SUM(E88:E91) -> 0 | F83: 0
C84: Година почетка финансирања пројекта: 2016
C85: Година завршетка финансирања пројекта:2016
C86: Укупна вредност пројекта:
C87: Извори финансирања:
C88: - из текућих прихода | D88: 14500000
C89: - из кредита
C90: - из буџета Републике Србије | D90: 13501622.07
C91: - из осталих извора
A92: 4512 | B92: 9 | C92: Реконструкција водоводне и канализационе мреже у Омладинској улици | D92: =SUM(D97:D100) -> 7000000 | E92: =SUM(E97:E100) -> 0 | F92: 0
C93: Година почетка финансирања пројекта: 2016
C94: Година завршетка финансирања пројекта:2016
C95: Укупна вредност пројекта:
C96: Извори финансирања:
C97: - из текућих прихода | D97: 7000000
C98: - из кредита
C99: - из буџета Републике Србије
C100: - из осталих извора
A101: 4512 | B101: 10 | C101: Реконструкција водоводне и канализационе мреже у улици Стојана Чупића | D101: =SUM(D106:D109) -> 1000000 | E101: =SUM(E106:E109) -> 0 | F101: 0
C102: Година почетка финансирања пројекта: 2016
C103: Година завршетка финансирања пројекта:2016
C104: Укупна вредност пројекта:
C105: Извори финансирања:
C106: - из текућих прихода | D106: 1000000
C107: - из кредита
C108: - из буџета Републике Србије
C109: - из осталих извора
A110: 4512 | B110: 11 | C110: Изградња затварачнице за две фекалне пумпне станице ( Нова школа и сточна пијаца | D110: =SUM(D115:D118) -> 8420000 | E110: =SUM(E115:E118) -> 0 | F110: 0
C111: Година почетка финансирања пројекта: 2016
C112: Година завршетка финансирања пројекта:2016
C113: Укупна вредност пројекта:
C114: Извори финансирања:
C115: - из текућих прихода | D115: 4210000
C116: - из кредита
C117: - из буџета Републике Србије | D117: 4210000
C118: - из осталих извора
A119: 4512 | B119: 12 | C119: Изградња секундарне водоводне и канализационе мреже у насељима у општини Љубовија | D119: =SUM(D124:D127) -> 3000000 | E119: =SUM(E124:E127) -> 0 | F119: 0
C120: Година почетка финансирања пројекта: 2016
C121: Година завршетка финансирања пројекта:2016
C122: Укупна вредност пројекта:
C123: Извори финансирања:
C124: - из текућих прихода | D124: 3000000
C125: - из кредита
C126: - из буџета Републике Србије
C127: - из осталих извора
A128: 511 | B128: 13 | C128: Доградња котларнице за пелет у ПУ Полетарац | D128: =SUM(D133:D136) -> 1245164 | E128: =SUM(E133:E136) -> 0 | F128: 0
C129: Година почетка финансирања пројекта: 2016
C130: Година завршетка финансирања пројекта:2016
C131: Укупна вредност пројекта:
C132: Извори финансирања:
C133: - из текућих прихода | D133: 1108596
C134: - из кредита
C135: - из буџета Републике Србије
C136: - из осталих извора | D136: 136568
A138: 511 | B138: 14 | C138: Изградња пута Жичара-Т.Приседо- Разбојиште - Кошље | D138: =SUM(D143:D146) -> 0 | E138: =SUM(E143:E146) -> 69000000 | F138: 0
C139: Година почетка финансирања пројекта: 2012
C140: Година завршетка финансирања пројекта: 2017
C141: Укупна вредност пројекта: 224.000.000
C142: Извори финансирања:
C143: - из текућих прихода | E143: 69000000
C144: - из кредита
C145: - из буџета Републике Србије
C146: - из донација
C147: - из осталих извора
A148: 511 | B148: 15 | C148: Рехабилитација Радничке улице | D148: =SUM(D154:D157) -> 0 | E148: =SUM(E154:E157) -> 13000000 | F148: 0
C149: Година почетка финансирања пројекта: 2017
C150: Година завршетка финансирања пројекта:2017
F151: стр.6
C152: Укупна вредност пројекта:
C153: Извори финансирања:
C154: - из текућих прихода | E154: 13000000
C155: - из кредита
C156: - из буџета Републике Србије
C157: - из осталих извора
A158: 4512 | B158: 16 | C158: Главни одводни колектор од Врхпоља до Кашица | D158: =SUM(D163:D166) -> 0 | E158: =SUM(E163:E166) -> 22000000 | F158: 10000000
C159: Година почетка финансирања пројекта: 2017
C160: Година завршетка финансирања пројекта:2018
C161: Укупна вредност пројекта:
C162: Извори финансирања:
C163: - из текућих прихода | E163: 22000000 | F163: 10000000
C164: - из кредита
C165: - из буџета Републике Србије
C166: - из осталих извора
A167: 4512 | B167: 17 | C167: Магистрални цевовод Г.Љубовиђа - Д.Оровица | D167: =SUM(D172:D175) -> 0 | E167: =SUM(E172:E175) -> 21000000 | F167: 10000000
C168: Година почетка финансирања пројекта: 2017
C169: Година завршетка финансирања пројекта: 2018
C170: Укупна вредност пројекта:
C171: Извори финансирања:
C172: - из текућих прихода | E172: 21000000 | F172: 10000000
C173: - из кредита
C174: - из буџета Републике Србије
C175: - из осталих извора
A176: 4512 | B176: 18 | C176: Магистрални цевовод Узовница - Грачаница | D176: =SUM(D181:D184) -> 0 | E176: =SUM(E181:E184) -> 41000000 | F176: 0
C177: Година почетка финансирања пројекта: 2017
C178: Година завршетка финансирања пројекта: 2017
C179: Укупна вредност пројекта:
C180: Извори финансирања:
C181: - из текућих прихода | E181: 41000000
C182: - из кредита
C183: - из буџета Републике Србије
C184: - из осталих извора
A185: 4512 | B185: 19 | C185: Магистрални цевовод Љубовија - Гледеће | D185: =SUM(D190:D193) -> 0 | E185: =SUM(E190:E193) -> 20000000 | F185: 0
C186: Година почетка финансирања пројекта: 2017
C187: Година завршетка финансирања пројекта:2017
C188: Укупна вредност пројекта:
C189: Извори финансирања:
C190: - из текућих прихода | E190: 20000000
C191: - из кредита
C192: - из буџета Републике Србије
C193: - из осталих извора
A194: 511 | B194: 20 | C194: Реконструкција Сокоградске улице | D194: =SUM(D200:D203) -> 0 | E194: =SUM(E200:E203) -> 30000000 | F194: 0
C195: Година почетка финансирања пројекта: 2017
C197: Година завршетка финансирања пројекта: 2017
C198: Укупна вредност пројекта:
C199: Извори финансирања:
C200: - из текућих прихода | E200: 30000000
C201: - из кредита
C202: - из буџета Републике Србије
C203: - из осталих извора

Sheet По основ. нам.
F1: стр.4
B2: Члан 5.
B3: Члан 6. мења се и гласи:
A4: Укупни расходи и издаци буџета по основним наменама, утврђени су у следећим износима:
A6: Екон. клас. | B6: ВРСТЕ РАСХОДА И ИЗДАТАКА | C6: Средства из буџета | D6: Структура % | E6: Средства из осталих извора | F6: Укупна јавна средства
A7: 1 | B7: 2 | C7: 3 | D7: 4 | E7: 5 | F7: 6
A8: 400 | B8: ТЕКУЋИ РАСХОДИ | C8: =SUM(C9,C18,C36,C42,C49,C51,C58) -> 376651286 | D8: =IFERROR(C8/$C$89,"-") -> 0.7664393423 | E8: =SUM(E9,E18,E25,E31,E36,E42,E49,E51,E58) -> 35844663.84 | F8: =SUM(F9,F18,F36,F42,F49,F51,F58) -> 412495949.8
A9: 410 | B9: РАСХОДИ ЗА ЗАПОСЛЕНЕ | C9: =SUM(C10:C17) -> 70129204 | D9: =IFERROR(C9/$C$89,"-") -> 0.1427043607 | E9: =SUM(E10:E17) -> 1687000 | F9: =C9+E9 -> 71816204
A10: 411 | B10: Плате и додаци запослених | C10: =SUMIF('ПО КОРИСНИЦИМА'!$F$9:$F$14039,'По основ. нам.'!A10,'ПО КОРИСНИЦИМА'!$H$9:$H$14039) -> 55820160 | D10: =IFERROR(C10/$C$89,"-") -> 0.1135872047 | E10: =SUMIF('ПО КОРИСНИЦИМА'!$F$9:$F$14039,'По основ. нам.'!A10,'ПО КОРИСНИЦИМА'!$I$9:$I$14039) -> 0 | F10: =C10+E10 -> 55820160
A11: 412 | B11: Социјални доприноси на терет послодавца | C11: =SUMIF('ПО КОРИСНИЦИМА'!$F$9:$F$14039,'По основ. нам.'!A11,'ПО КОРИСНИЦИМА'!$H$9:$H$14039) -> 9992188 | D11: 0.02033288159 | E11: =SUMIF('ПО КОРИСНИЦИМА'!$F$9:$F$14039,'По основ. нам.'!A11,'ПО КОРИСНИЦИМА'!$I$9:$I$14039) -> 0 | F11: =C11+E11 -> 9992188
A12: 413 | B12: Накнаде у натури (превоз) | C12: =SUMIF('ПО КОРИСНИЦИМА'!$F$9:$F$14039,'По основ. нам.'!A12,'ПО КОРИСНИЦИМА'!$H$9:$H$14039) -> 272000 | D12: 0.0005534867631 | E12: =SUMIF('ПО КОРИСНИЦИМА'!$F$9:$F$14039,'По основ. нам.'!A12,'ПО КОРИСНИЦИМА'!$I$9:$I$14039) -> 50000 | F12: 322000
A13: 414 | B13: Социјална давања запосленима | C13: =SUMIF('ПО КОРИСНИЦИМА'!$F$9:$F$14039,'По основ. нам.'!A13,'ПО КОРИСНИЦИМА'!$H$9:$H$14039) -> 1671304 | D13: 0.003400899416 | E13: =SUMIF('ПО КОРИСНИЦИМА'!$F$9:$F$14039,'По основ. нам.'!A13,'ПО КОРИСНИЦИМА'!$I$9:$I$14039) -> 1400000 | F13: 3071304
A14: 415 | B14: Накнаде за запослене | C14: =SUMIF('ПО КОРИСНИЦИМА'!$F$9:$F$14039,'По основ. нам.'!A14,'ПО КОРИСНИЦИМА'!$H$9:$H$14039) -> 1550000 | D14: 0.003154060599 | E14: =SUMIF('ПО КОРИСНИЦИМА'!$F$9:$F$14039,'По основ. нам.'!A14,'ПО КОРИСНИЦИМА'!$I$9:$I$14039) -> 237000 | F14: 1787000
A15: 416 | B15: Награде,бонуси и остали посебни расходи | C15: =SUMIF('ПО КОРИСНИЦИМА'!$F$9:$F$14039,'По основ. нам.'!A15,'ПО КОРИСНИЦИМА'!$H$9:$H$14039) -> 823552 | D15: 0.001675827687 | E15: =SUMIF('ПО КОРИСНИЦИМА'!$F$9:$F$14039,'По основ. нам.'!A15,'ПО КОРИСНИЦИМА'!$I$9:$I$14039) -> 0 | F15: 823552
A16: 417 | B16: Посланички додатак; | C16: =SUMIF('ПО КОРИСНИЦИМА'!$F$9:$F$14039,'По основ. нам.'!A16,'ПО КОРИСНИЦИМА'!$H$9:$H$14039) -> 0 | D16: 0 | E16: =SUMIF('ПО КОРИСНИЦИМА'!$F$9:$F$14039,'По основ. нам.'!A16,'ПО КОРИСНИЦИМА'!$I$9:$I$14039) -> 0 | F16: 0
A17: 418 | B17: Судијски додатак. | C17: =SUMIF('ПО КОРИСНИЦИМА'!$F$9:$F$14039,'По основ. нам.'!A17,'ПО КОРИСНИЦИМА'!$H$9:$H$14039) -> 0 | D17: 0 | E17: =SUMIF('ПО КОРИСНИЦИМА'!$F$9:$F$14039,'По основ. нам.'!A17,'ПО КОРИСНИЦИМА'!$I$9:$I$14039) -> 0 | F17: 0
A18: 420 | B18: КОРИШЋЕЊЕ УСЛУГА И РОБА | C18: =SUM(C19:C24) -> 168465588 | D18: 0.342806886 | E18: =SUM(E19:E24) -> 29865699.84 | F18: 198331287.8
A19: 421 | B19: Стални трошкови | C19: =SUMIF('ПО КОРИСНИЦИМА'!$F$9:$F$14039,'По основ. нам.'!A19,'ПО КОРИСНИЦИМА'!$H$9:$H$14039) -> 18065315 | D19: 0.03676070854 | E19: =SUMIF('ПО КОРИСНИЦИМА'!$F$9:$F$14039,'По основ. нам.'!A19,'ПО КОРИСНИЦИМА'!$I$9:$I$14039) -> 1898000 | F19: 19963315
A20: 422 | B20: Трошкови путовања | C20: =SUMIF('ПО КОРИСНИЦИМА'!$F$9:$F$14039,'По основ. нам.'!A20,'ПО КОРИСНИЦИМА'!$H$9:$H$14039) -> 512910 | D20: 0.001043709175 | E20: =SUMIF('ПО КОРИСНИЦИМА'!$F$9:$F$14039,'По основ. нам.'!A20,'ПО КОРИСНИЦИМА'!$I$9:$I$14039) -> 425450 | F20: 938360
A21: 423 | B21: Услуге по уговору | C21: =SUMIF('ПО КОРИСНИЦИМА'!$F$9:$F$14039,'По основ. нам.'!A21,'ПО КОРИСНИЦИМА'!$H$9:$H$14039) -> 21532560 | D21: 0.04381612844 | E21: =SUMIF('ПО КОРИСНИЦИМА'!$F$9:$F$14039,'По основ. нам.'!A21,'ПО КОРИСНИЦИМА'!$I$9:$I$14039) -> 12213499.84 | F21: 33746059.84
A22: 424 | B22: Специјализоване услуге | C22: =SUMIF('ПО КОРИСНИЦИМА'!$F$9:$F$14039,'По основ. нам.'!A22,'ПО КОРИСНИЦИМА'!$H$9:$H$14039) -> 100597263 | D22: 0.2047031378 | E22: =SUMIF('ПО КОРИСНИЦИМА'!$F$9:$F$14039,'По основ. нам.'!A22,'ПО КОРИСНИЦИМА'!$I$9:$I$14039) -> 294077 | F22: 100891340
A23: 425 | B23: Текуће поправке и одржавање (услуге и мат) | C23: =SUMIF('ПО КОРИСНИЦИМА'!$F$9:$F$14039,'По основ. нам.'!A23,'ПО КОРИСНИЦИМА'!$H$9:$H$14039) -> 15288810 | D23: 0.03111086014 | E23: =SUMIF('ПО КОРИСНИЦИМА'!$F$9:$F$14039,'По основ. нам.'!A23,'ПО КОРИСНИЦИМА'!$I$9:$I$14039) -> 10197957 | F23: 25486767
A24: 426 | B24: Материјал | C24: =SUMIF('ПО КОРИСНИЦИМА'!$F$9:$F$14039,'По основ. нам.'!A24,'ПО КОРИСНИЦИМА'!$H$9:$H$14039) -> 12468730 | D24: 0.02537234194 | E24: =SUMIF('ПО КОРИСНИЦИМА'!$F$9:$F$14039,'По основ. нам.'!A24,'ПО КОРИСНИЦИМА'!$I$9:$I$14039) -> 4836716 | F24: 17305446
A25: 430 | B25: УПОТРЕБА ОСНОВНИХ СРЕДСТАВА | C25: =SUM(C26:C30) -> 0 | D25: 0 | E25: =SUM(E26:E30) -> 0 | F25: 0
A26: 431 | B26: Амортизација некретнина и опреме; | C26: =SUMIF('ПО КОРИСНИЦИМА'!$F$9:$F$14039,'По основ. нам.'!A26,'ПО КОРИСНИЦИМА'!$H$9:$H$14039) -> 0 | D26: 0 | E26: =SUMIF('ПО КОРИСНИЦИМА'!$F$9:$F$14039,'По основ. нам.'!A26,'ПО КОРИСНИЦИМА'!$I$9:$I$14039) -> 0 | F26: 0
A27: 432 | B27: Амортизација култивисане имовине; | C27: =SUMIF('ПО КОРИСНИЦИМА'!$F$9:$F$14039,'По основ. нам.'!A27,'ПО КОРИСНИЦИМА'!$H$9:$H$14039) -> 0 | D27: 0 | E27: =SUMIF('ПО КОРИСНИЦИМА'!$F$9:$F$14039,'По основ. нам.'!A27,'ПО КОРИСНИЦИМА'!$I$9:$I$14039) -> 0 | F27: 0
A28: 433 | B28: Употреба драгоцености; | C28: =SUMIF('ПО КОРИСНИЦИМА'!$F$9:$F$14039,'По основ. нам.'!A28,'ПО КОРИСНИЦИМА'!$H$9:$H$14039) -> 0 | D28: 0 | E28: =SUMIF('ПО КОРИСНИЦИМА'!$F$9:$F$14039,'По основ. нам.'!A28,'ПО КОРИСНИЦИМА'!$I$9:$I$14039) -> 0 | F28: 0
A29: 434 | B29: Употреба природне имовине; | C29: =SUMIF('ПО КОРИСНИЦИМА'!$F$9:$F$14039,'По основ. нам.'!A29,'ПО КОРИСНИЦИМА'!$H$9:$H$14039) -> 0 | D29: 0 | E29: =SUMIF('ПО КОРИСНИЦИМА'!$F$9:$F$14039,'По основ. нам.'!A29,'ПО КОРИСНИЦИМА'!$I$9:$I$14039) -> 0 | F29: 0
A30: 435 | B30: Амортизација нематеријалне имовине | C30: =SUMIF('ПО КОРИСНИЦИМА'!$F$9:$F$14039,'По основ. нам.'!A30,'ПО КОРИСНИЦИМА'!$H$9:$H$14039) -> 0 | D30: 0 | E30: =SUMIF('ПО КОРИСНИЦИМА'!$F$9:$F$14039,'По основ. нам.'!A30,'ПО КОРИСНИЦИМА'!$I$9:$I$14039) -> 0 | F30: 0
A31: 440 | B31: ОТПЛАТА КАМАТА | C31: =SUM(C32:C35) -> 0 | D31: 0 | E31: =SUM(E32:E35) -> 0 | F31: 0
A32: 441 | B32: Отплата домаћих камата; | C32: =SUMIF('ПО КОРИСНИЦИМА'!$F$9:$F$14039,'По основ. нам.'!A32,'ПО КОРИСНИЦИМА'!$H$9:$H$14039) -> 0 | D32: 0 | E32: =SUMIF('ПО КОРИСНИЦИМА'!$F$9:$F$14039,'По основ. нам.'!A32,'ПО КОРИСНИЦИМА'!$I$9:$I$14039) -> 0 | F32: 0
A33: 442 | B33: Отплата страних камата; | C33: =SUMIF('ПО КОРИСНИЦИМА'!$F$9:$F$14039,'По основ. нам.'!A33,'ПО КОРИСНИЦИМА'!$H$9:$H$14039) -> 0 | D33: 0 | E33: =SUMIF('ПО КОРИСНИЦИМА'!$F$9:$F$14039,'По основ. нам.'!A33,'ПО КОРИСНИЦИМА'!$I$9:$I$14039) -> 0 | F33: 0
A34: 443 | B34: Отплата камата по гаранцијама | C34: =SUMIF('ПО КОРИСНИЦИМА'!$F$9:$F$14039,'По основ. нам.'!A34,'ПО КОРИСНИЦИМА'!$H$9:$H$14039) -> 0 | D34: 0 | E34: =SUMIF('ПО КОРИСНИЦИМА'!$F$9:$F$14039,'По основ. нам.'!A34,'ПО КОРИСНИЦИМА'!$I$9:$I$14039) -> 0 | F34: 0
A35: 444 | B35: Пратећи трошкови задуживања | C35: =SUMIF('ПО КОРИСНИЦИМА'!$F$9:$F$14039,'По основ. нам.'!A35,'ПО КОРИСНИЦИМА'!$H$9:$H$14039) -> 0 | D35: 0 | E35: =SUMIF('ПО КОРИСНИЦИМА'!$F$9:$F$14039,'По основ. нам.'!A35,'ПО КОРИСНИЦИМА'!$I$9:$I$14039) -> 0 | F35: 0
A36: 450 | B36: СУБВЕНЦИЈЕ | C36: =SUM(C37:C41) -> 44780000 | D36: 0.09112182813 | E36: =SUM(E37:E41) -> 0 | F36: 44780000
A37: 4511 | B37: Текуће субвенције јавним нефинансијским предузећима и организацијама | C37: =SUMIF('ПО КОРИСНИЦИМА'!$F$9:$F$14039,'По основ. нам.'!A37,'ПО КОРИСНИЦИМА'!$H$9:$H$14039) -> 12900000 | D37: 0.02624992369 | E37: =SUMIF('ПО КОРИСНИЦИМА'!$F$9:$F$14039,'По основ. нам.'!A37,'ПО КОРИСНИЦИМА'!$I$9:$I$14039) -> 0 | F37: 12900000
A38: 4512 | B38: Капиталне субвенције јавним нефинансијским предузећима и организацијама | C38: =SUMIF('ПО КОРИСНИЦИМА'!$F$9:$F$14039,'По основ. нам.'!A38,'ПО КОРИСНИЦИМА'!$H$9:$H$14039) -> 31880000 | D38: 0.06487190444 | E38: =SUMIF('ПО КОРИСНИЦИМА'!$F$9:$F$14039,'По основ. нам.'!A38,'ПО КОРИСНИЦИМА'!$I$9:$I$14039) -> 0 | F38: 31880000
A39: 452 | B39: Субвенције приватним финансијским институцијама; | C39: =SUMIF('ПО КОРИСНИЦИМА'!$F$9:$F$14039,'По основ. нам.'!A39,'ПО КОРИСНИЦИМА'!$H$9:$H$14039) -> 0 | D39: 0 | E39: =SUMIF('ПО КОРИСНИЦИМА'!$F$9:$F$14039,'По основ. нам.'!A39,'ПО КОРИСНИЦИМА'!$I$9:$I$14039) -> 0
A40: 453 | B40: Субвенције јавним финансијским институцијама; | C40: =SUMIF('ПО КОРИСНИЦИМА'!$F$9:$F$14039,'По основ. нам.'!A40,'ПО КОРИСНИЦИМА'!$H$9:$H$14039) -> 0 | D40: 0 | E40: =SUMIF('ПО КОРИСНИЦИМА'!$F$9:$F$14039,'По основ. нам.'!A40,'ПО КОРИСНИЦИМА'!$I$9:$I$14039) -> 0 | F40: 0
A41: 454 | B41: Субвенције приватним предузећима | C41: =SUMIF('ПО КОРИСНИЦИМА'!$F$9:$F$14039,'По основ. нам.'!A41,'ПО КОРИСНИЦИМА'!$H$9:$H$14039) -> 0 | D41: 0 | E41: =SUMIF('ПО КОРИСНИЦИМА'!$F$9:$F$14039,'По основ. нам.'!A41,'ПО КОРИСНИЦИМА'!$I$9:$I$14039) -> 0 | F41: 0
A42: 460 | B42: ДОНАЦИЈЕ И ТРАНСФЕРИ | C42: =SUM(C43:C48) -> 48476511 | D42: 0.09864377633 | E42: =SUM(E43:E48) -> 0 | F42: 48476511
A43: 461 | B43: Донације страним владама | C43: =SUMIF('ПО КОРИСНИЦИМА'!$F$9:$F$14039,'По основ. нам.'!A43,'ПО КОРИСНИЦИМА'!$H$9:$H$14039) -> 0 | D43: 0 | E43: =SUMIF('ПО КОРИСНИЦИМА'!$F$9:$F$14039,'По основ. нам.'!A43,'ПО КОРИСНИЦИМА'!$I$9:$I$14039) -> 0 | F43: 0
A44: 462 | B44: Донације и дотације међународним организацијама | C44: =SUMIF('ПО КОРИСНИЦИМА'!$F$9:$F$14039,'По основ. нам.'!A44,'ПО КОРИСНИЦИМА'!$H$9:$H$14039) -> 0 | D44: 0 | E44: =SUMIF('ПО КОРИСНИЦИМА'!$F$9:$F$14039,'По основ. нам.'!A44,'ПО КОРИСНИЦИМА'!$I$9:$I$14039) -> 0 | F44: 0
A45: 4631 | B45: Текући трансфери осталим нивоима власти | C45: =SUMIF('ПО КОРИСНИЦИМА'!$F$9:$F$14039,'По основ. нам.'!A45,'ПО КОРИСНИЦИМА'!$H$9:$H$14039) -> 31558840 | D45: 0.06421838309 | E45: =SUMIF('ПО КОРИСНИЦИМА'!$F$9:$F$14039,'По основ. нам.'!A45,'ПО КОРИСНИЦИМА'!$I$9:$I$14039) -> 0 | F45: 31558840
A46: 4632 | B46: Капитални трансфери осталим нивоима власти | C46: =SUMIF('ПО КОРИСНИЦИМА'!$F$9:$F$14039,'По основ. нам.'!A46,'ПО КОРИСНИЦИМА'!$H$9:$H$14039) -> 4895000 | D46: 0.009960726858 | E46: =SUMIF('ПО КОРИСНИЦИМА'!$F$9:$F$14039,'По основ. нам.'!A46,'ПО КОРИСНИЦИМА'!$I$9:$I$14039) -> 0 | F46: 4895000
A47: 464 | B47: Дотације организацијама обавезног социјалног осигурања | C47: =SUMIF('ПО КОРИСНИЦИМА'!$F$9:$F$14039,'По основ. нам.'!A47,'ПО КОРИСНИЦИМА'!$H$9:$H$14039) -> 5034600 | D47: 0.0102447958 | E47: =SUMIF('ПО КОРИСНИЦИМА'!$F$9:$F$14039,'По основ. нам.'!A47,'ПО КОРИСНИЦИМА'!$I$9:$I$14039) -> 0 | F47: 5034600
A48: 465 | B48: Остале донације, дотације и трансфери | C48: =SUMIF('ПО КОРИСНИЦИМА'!$F$9:$F$14039,'По основ. нам.'!A48,'ПО КОРИСНИЦИМА'!$H$9:$H$14039) -> 6988071 | D48: 0.01421987058 | E48: =SUMIF('ПО КОРИСНИЦИМА'!$F$9:$F$14039,'По основ. нам.'!A48,'ПО КОРИСНИЦИМА'!$I$9:$I$14039) -> 0 | F48: 6988071
A49: 470 | B49: СОЦИЈАЛНА ПОМОЋ | C49: =SUM(C50) -> 14308804 | D49: 0.02911666768 | E49: =SUM(E50) -> 4038089 | F49: 18346893
A50: 472 | B50: Накнаде за социјалну заштиту из буџета | C50: =SUMIF('ПО КОРИСНИЦИМА'!$F$9:$F$14039,'По основ. нам.'!A50,'ПО КОРИСНИЦИМА'!$H$9:$H$14039) -> 14308804 | D50: 0.02911666768 | E50: =SUMIF('ПО КОРИСНИЦИМА'!$F$9:$F$14039,'По основ. нам.'!A50,'ПО КОРИСНИЦИМА'!$I$9:$I$14039) -> 4038089 | F50: 18346893
A51: 480 | B51: ОСТАЛИ РАСХОДИ | C51: =SUM(C52:C57) -> 27549196 | D51: 0.0560592475 | E51: =SUM(E52:E57) -> 253875 | F51: =C51+E51 -> 27803071
A52: 481 | B52: Дотације невладиним организацијама; | C52: =SUMIF('ПО КОРИСНИЦИМА'!$F$9:$F$14039,'По основ. нам.'!A52,'ПО КОРИСНИЦИМА'!$H$9:$H$14039) -> 19520196 | D52: 0.0397212136 | E52: =SUMIF('ПО КОРИСНИЦИМА'!$F$9:$F$14039,'По основ. нам.'!A52,'ПО КОРИСНИЦИМА'!$I$9:$I$14039) -> 243335 | F52: =C52+E52 -> 19763531
A53: 482 | B53: Порези, обавезне таксе, казне и пенали; | C53: =SUMIF('ПО КОРИСНИЦИМА'!$F$9:$F$14039,'По основ. нам.'!A53,'ПО КОРИСНИЦИМА'!$H$9:$H$14039) -> 641000 | D53: 0.001304356673 | E53: =SUMIF('ПО КОРИСНИЦИМА'!$F$9:$F$14039,'По основ. нам.'!A53,'ПО КОРИСНИЦИМА'!$I$9:$I$14039) -> 9040 | F53: =C53+E53 -> 650040
A54: 483 | B54: Новчане казне и пенали по решењу судова; | C54: =SUMIF('ПО КОРИСНИЦИМА'!$F$9:$F$14039,'По основ. нам.'!A54,'ПО КОРИСНИЦИМА'!$H$9:$H$14039) -> 1750000 | D54: 0.00356103616 | E54: 1500 | F54: 1751500
A55: 484 | B55: Накнада штете за повреде или штету насталу услед елементарних непогода или других природних узрока; | C55: =SUMIF('ПО КОРИСНИЦИМА'!$F$9:$F$14039,'По основ. нам.'!A55,'ПО КОРИСНИЦИМА'!$H$9:$H$14039) -> 38000 | D55: 7.732535661e-05 | E55: =SUMIF('ПО КОРИСНИЦИМА'!$F$9:$F$14039,'По основ. нам.'!A55,'ПО КОРИСНИЦИМА'!$I$9:$I$14039) -> 0 | F55: 38000
A56: 485 | B56: Накнада штете за повреде или штету нанету од стране државних органа; | C56: =SUMIF('ПО КОРИСНИЦИМА'!$F$9:$F$14039,'По основ. нам.'!A56,'ПО КОРИСНИЦИМА'!$H$9:$H$14039) -> 5600000 | D56: 0.01139531571 | E56: =SUMIF('ПО КОРИСНИЦИМА'!$F$9:$F$14039,'По основ. нам.'!A56,'ПО КОРИСНИЦИМА'!$I$9:$I$14039) -> 0 | F56: 5600000
A57: 489 | B57: Расходи који се финансирају из средстава за реализацију националног инвестиционог плана | C57: =SUMIF('ПО КОРИСНИЦИМА'!$F$9:$F$14039,'По основ. нам.'!A57,'ПО КОРИСНИЦИМА'!$H$9:$H$14039) -> 0 | D57: 0 | E57: =SUMIF('ПО КОРИСНИЦИМА'!$F$9:$F$14039,'По основ. нам.'!A57,'ПО КОРИСНИЦИМА'!$I$9:$I$14039) -> 0 | F57: 0
A58: 490 | B58: АДМИНИСТРАТИВНИ ТРАНСФЕРИ БУЏЕТА | C58: =SUM(C59:C64) -> 2941983 | D58: 0.005986575911 | E58: =SUM(E63:E64) -> 0 | F58: 2941983
A59: 494 | B59: Административни трансфери из буџета - Текући расходи | C59: =SUMIF('ПО КОРИСНИЦИМА'!$F$9:$F$14039,'По основ. нам.'!A59,'ПО КОРИСНИЦИМА'!$H$9:$H$14039) -> 0 | D59: 0 | E59: =SUMIF('ПО КОРИСНИЦИМА'!$F$9:$F$14039,'По основ. нам.'!A59,'ПО КОРИСНИЦИМА'!$I$9:$I$14039) -> 0 | F59: 0
A60: 495 | B60: Административни трансфери из буџета - Издаци за нефинансијску имовину | C60: =SUMIF('ПО КОРИСНИЦИМА'!$F$9:$F$14039,'По основ. нам.'!A60,'ПО КОРИСНИЦИМА'!$H$9:$H$14039) -> 0 | D60: 0 | E60: =SUMIF('ПО КОРИСНИЦИМА'!$F$9:$F$14039,'По основ. нам.'!A60,'ПО КОРИСНИЦИМА'!$I$9:$I$14039) -> 0 | F60: 0
A61: 496 | B61: Административни трансфери из буџета - Издаци за отплату главнице и набавку финансијске имовине | C61: =SUMIF('ПО КОРИСНИЦИМА'!$F$9:$F$14039,'По основ. нам.'!A61,'ПО КОРИСНИЦИМА'!$H$9:$H$14039) -> 0 | D61: 0 | E61: =SUMIF('ПО КОРИСНИЦИМА'!$F$9:$F$14039,'По основ. нам.'!A61,'ПО КОРИСНИЦИМА'!$I$9:$I$14039) -> 0 | F61: 0
A62: 499 | B62: Административни трансфери из буџета - Средства резерве | C62: =SUMIF('ПО КОРИСНИЦИМА'!$F$9:$F$14039,'По основ. нам.'!A62,'ПО КОРИСНИЦИМА'!$H$9:$H$14039) -> 0 | D62: 0 | E62: =SUMIF('ПО КОРИСНИЦИМА'!$F$9:$F$14039,'По основ. нам.'!A62,'ПО КОРИСНИЦИМА'!$I$9:$I$14039) -> 0 | F62: 0
A63: 49911 | B63: Стална резерва | C63: =SUMIF('ПО КОРИСНИЦИМА'!$F$9:$F$14039,'По основ. нам.'!A63,'ПО КОРИСНИЦИМА'!$H$9:$H$14039) -> 62000 | D63: 0.0001261624239 | E63: =SUMIF('ПО КОРИСНИЦИМА'!$F$9:$F$14039,'По основ. нам.'!A63,'ПО КОРИСНИЦИМА'!$I$9:$I$14039) -> 0 | F63: 62000
A64: 49912 | B64: Текућа резерва | C64: =SUMIF('ПО КОРИСНИЦИМА'!$F$9:$F$14039,'По основ. нам.'!A64,'ПО КОРИСНИЦИМА'!$H$9:$H$14039) -> 2879983 | D64: 0.005860413487 | E64: =SUMIF('ПО КОРИСНИЦИМА'!$F$9:$F$14039,'По основ. нам.'!A64,'ПО КОРИСНИЦИМА'!$I$9:$I$14039) -> 0 | F64: 2879983
A65: 500 | B65: КАПИТАЛНИ ИЗДАЦИ | C65: =SUM(C66,C77) -> 114768714 | D65: =IFERROR(C65/$C$89,"-") -> 0.2335403089 | E65: =SUM(E66,E72,E77,E81) -> 36806437 | F65: =SUM(C65,E65) -> 151575151
A66: 510 | B66: ОСНОВНА СРЕДСТВА | C66: =SUM(C67:C71) -> 110793027 | D66: 0.2254502717 | E66: =SUM(E67:E71) -> 36806437 | F66: 147599464
A67: 511 | B67: Зграде и грађевински објекти; | C67: =SUMIF('ПО КОРИСНИЦИМА'!$F$9:$F$14039,'По основ. нам.'!A67,'ПО КОРИСНИЦИМА'!$H$9:$H$14039) -> 94955527 | D67: 0.1932228944 | E67: =SUMIF('ПО КОРИСНИЦИМА'!$F$9:$F$14039,'По основ. нам.'!A67,'ПО КОРИСНИЦИМА'!$I$9:$I$14039) -> 34801837 | F67: 129757364
A68: 512 | B68: Машине и опрема; | C68: =SUMIF('ПО КОРИСНИЦИМА'!$F$9:$F$14039,'По основ. нам.'!A68,'ПО КОРИСНИЦИМА'!$H$9:$H$14039) -> 15397500 | D68: 0.03133203101 | E68: =SUMIF('ПО КОРИСНИЦИМА'!$F$9:$F$14039,'По основ. нам.'!A68,'ПО КОРИСНИЦИМА'!$I$9:$I$14039) -> 1942200 | F68: 17339700
A69: 513 | B69: Остале некретнине и опрема; | C69: =SUMIF('ПО КОРИСНИЦИМА'!$F$9:$F$14039,'По основ. нам.'!A69,'ПО КОРИСНИЦИМА'!$H$9:$H$14039) -> 0 | D69: 0 | E69: =SUMIF('ПО КОРИСНИЦИМА'!$F$9:$F$14039,'По основ. нам.'!A69,'ПО КОРИСНИЦИМА'!$I$9:$I$14039) -> 0 | F69: 0
A70: 514 | B70: Култивисана имовина; | C70: =SUMIF('ПО КОРИСНИЦИМА'!$F$9:$F$14039,'По основ. нам.'!A70,'ПО КОРИСНИЦИМА'!$H$9:$H$14039) -> 0 | D70: 0 | E70: =SUMIF('ПО КОРИСНИЦИМА'!$F$9:$F$14039,'По основ. нам.'!A70,'ПО КОРИСНИЦИМА'!$I$9:$I$14039) -> 0 | F70: 0
A71: 515 | B71: Нематеријална имовина | C71: =SUMIF('ПО КОРИСНИЦИМА'!$F$9:$F$14039,'По основ. нам.'!A71,'ПО КОРИСНИЦИМА'!$H$9:$H$14039) -> 440000 | D71: 0.0008953462345 | E71: =SUMIF('ПО КОРИСНИЦИМА'!$F$9:$F$14039,'По основ. нам.'!A71,'ПО КОРИСНИЦИМА'!$I$9:$I$14039) -> 62400 | F71: 502400
A72: 520 | B72: ЗАЛИХЕ | C72: =SUM(C73:C76) -> 0 | D72: 0 | E72: =SUM(E73:E75) -> 0 | F72: 0
A73: 521 | B73: Робне резерве; | C73: =SUMIF('ПО КОРИСНИЦИМА'!$F$9:$F$14039,'По основ. нам.'!A73,'ПО КОРИСНИЦИМА'!$H$9:$H$14039) -> 0 | D73: 0 | E73: =SUMIF('ПО КОРИСНИЦИМА'!$F$9:$F$14039,'По основ. нам.'!A73,'ПО КОРИСНИЦИМА'!$I$9:$I$14039) -> 0 | F73: 0
A74: 522 | B74: Залихе производње; | C74: =SUMIF('ПО КОРИСНИЦИМА'!$F$9:$F$14039,'По основ. нам.'!A74,'ПО КОРИСНИЦИМА'!$H$9:$H$14039) -> 0 | D74: 0 | E74: =SUMIF('ПО КОРИСНИЦИМА'!$F$9:$F$14039,'По основ. нам.'!A74,'ПО КОРИСНИЦИМА'!$I$9:$I$14039) -> 0 | F74: 0
A75: 523 | B75: Залихе робе за даљу продају | C75: =SUMIF('ПО КОРИСНИЦИМА'!$F$9:$F$14039,'По основ. нам.'!A75,'ПО КОРИСНИЦИМА'!$H$9:$H$14039) -> 0 | D75: 0 | E75: =SUMIF('ПО КОРИСНИЦИМА'!$F$9:$F$14039,'По основ. нам.'!A75,'ПО КОРИСНИЦИМА'!$I$9:$I$14039) -> 0 | F75: 0
A76: 531 | B76: Драгоцености | C76: =SUMIF('ПО КОРИСНИЦИМА'!$F$9:$F$14039,'По основ. нам.'!A76,'ПО КОРИСНИЦИМА'!$H$9:$H$14039) -> 0 | D76: 0
A77: 540 | B77: ПРИРОДНА ИМОВИНА | C77: =SUM(C78:C80) -> 3975687 | D77: 0.008090037238 | E77: =SUM(E78:E80) -> 0 | F77: 3975687
A78: 541 | B78: Земљиште; | C78: =SUMIF('ПО КОРИСНИЦИМА'!$F$9:$F$14039,'По основ. нам.'!A78,'ПО КОРИСНИЦИМА'!$H$9:$H$14039) -> 3975687 | D78: 0.008090037238 | E78: =SUMIF('ПО КОРИСНИЦИМА'!$F$9:$F$14039,'По основ. нам.'!A78,'ПО КОРИСНИЦИМА'!$I$9:$I$14039) -> 0 | F78: 3975687
A79: 542 | B79: Рудна богатства; | C79: =SUMIF('ПО КОРИСНИЦИМА'!$F$9:$F$14039,'По основ. нам.'!A79,'ПО КОРИСНИЦИМА'!$H$9:$H$14039) -> 0 | D79: 0 | E79: =SUMIF('ПО КОРИСНИЦИМА'!$F$9:$F$14039,'По основ. нам.'!A79,'ПО КОРИСНИЦИМА'!$I$9:$I$14039) -> 0 | F79: 0
A80: 543 | B80: Шуме и воде | C80: =SUMIF('ПО КОРИСНИЦИМА'!$F$9:$F$14039,'По основ. нам.'!A80,'ПО КОРИСНИЦИМА'!$H$9:$H$14039) -> 0 | D80: =IFERROR(C80/$C$89,"-") -> 0 | E80: =SUMIF('ПО КОРИСНИЦИМА'!$F$9:$F$14039,'По основ. нам.'!A80,'ПО КОРИСНИЦИМА'!$I$9:$I$14039) -> 0 | F80: 0
A81: 550 | B81: Неф. Имов. која се фин. из сред. за реализ. нип-а | C81: =SUM(C82) -> 0 | D81: 0 | E81: =SUM(E82) -> 0 | F81: =C81+E81 -> 0
A82: 551 | B82: Неф. имовина која се фин. из сред. за реализ. нип-а | C82: =SUMIF('ПО КОРИСНИЦИМА'!$F$9:$F$14039,'По основ. нам.'!A82,'ПО КОРИСНИЦИМА'!$H$9:$H$14039) -> 0 | D82: 0 | E82: =SUMIF('ПО КОРИСНИЦИМА'!$F$9:$F$14039,'По основ. нам.'!A82,'ПО КОРИСНИЦИМА'!$I$9:$I$14039) -> 0 | F82: =C82+E82 -> 0
A83: 610 | B83: ОТПЛАТА ГЛАВНИЦЕ | C83: =SUM(C84:C86) -> 0 | D83: 0 | E83: =SUM(E84:E86) -> 0 | F83: 0
A84: 611 | B84: Отплата главнице домаћим кредиторима | C84: =SUMIF('ПО КОРИСНИЦИМА'!$F$9:$F$14039,'По основ. нам.'!A84,'ПО КОРИСНИЦИМА'!$H$9:$H$14039) -> 0 | D84: 0 | E84: =SUMIF('ПО КОРИСНИЦИМА'!$F$9:$F$14039,'По основ. нам.'!A84,'ПО КОРИСНИЦИМА'!$I$9:$I$14039) -> 0 | F84: 0
A85: 612 | B85: Отплата главнице страним банкама | C85: =SUMIF('ПО КОРИСНИЦИМА'!$F$9:$F$14039,'По основ. нам.'!A85,'ПО КОРИСНИЦИМА'!$H$9:$H$14039) -> 0 | D85: 0 | E85: =SUMIF('ПО КОРИСНИЦИМА'!$F$9:$F$14039,'По основ. нам.'!A85,'ПО КОРИСНИЦИМА'!$I$9:$I$14039) -> 0
A86: 613 | B86: Отплата дуга по гаранцијама | C86: =SUMIF('ПО КОРИСНИЦИМА'!$F$9:$F$14039,'По основ. нам.'!A86,'ПО КОРИСНИЦИМА'!$H$9:$H$14039) -> 0 | D86: 0 | E86: =SUMIF('ПО КОРИСНИЦИМА'!$F$9:$F$14039,'По основ. нам.'!A86,'ПО КОРИСНИЦИМА'!$I$9:$I$14039) -> 0
A87: 620 | B87: Набавка финансијске имовине | C87: =SUM(C88) -> 10000 | D87: 2.034877806e-05 | E87: =SUM(E88) -> 0 | F87: =C87+E87 -> 10000
A88: 621 | B88: Учешће у капиталу | C88: =SUMIF('ПО КОРИСНИЦИМА'!$F$9:$F$14039,'По основ. нам.'!A88,'ПО КОРИСНИЦИМА'!$H$9:$H$14039) -> 10000 | D88: 2.034877806e-05 | E88: =SUMIF('ПО КОРИСНИЦИМА'!$F$9:$F$14039,'По основ. нам.'!A88,'ПО КОРИСНИЦИМА'!$I$9:$I$14039) -> 0 | F88: =C88+E88 -> 10000
B89: УКУПНИ ЈАВНИ РАСХОДИ | C89: =SUM(C87,C65,C8) -> 491430000 | D89: 1 | E89: =SUM(E65,E8) -> 72651100.84 | F89: =C89+E89 -> 564081100.8

Sheet Програмска
H1: стр.5
C2: Члан 6.
B3: Члан 7. мења се и гласи:
A4: Укупна средства буџета у износу од 564.081.101 динара, утврђена овом одлуком, распоређена су по програмској класификацији датој у табели.
A5: Шифра | C5: Назив | D5: Средства из буџета | E5: Структ-ура % | F5: Сопствени и други приходи | G5: Укупна средства | H5: Надлежан орган/особа
A6: Програм | B6: Програмска активност/ Пројекат
A7: 1 | B7: 2 | C7: 3 | D7: 4 | E7: 5 | F7: 6 | G7: 7 | H7: 8
A8: 1101 | C8: Програм 1. Локални развој и просторно планирање | D8: =SUM(D9:D34) -> 0 | E8: =IFERROR(D8/$D$601,"-") -> 0 | F8: =SUM(F9:F34) -> 0 | G8: =D8+F8 -> 0
B9: 1101-0001 | C9: Стратешко, просторно и урбанистичко планирање | D9: =SUMIF('ПО КОРИСНИЦИМА'!$G$8:$G$14039,"Свега за програмску активност 1101-0001:",'ПО КОРИСНИЦИМА'!$H$8:$H$14039) -> 0 | E9: =IFERROR(D9/$D$601,"-") -> 0 | F9: =SUMIF('ПО КОРИСНИЦИМА'!$G$8:$G$14039,"Свега за програмску активност 1101-0001:",'ПО КОРИСНИЦИМА'!$I$8:$I$14039) -> 0 | G9: =D9+F9 -> 0
B10: 1101-0002 | C10: Уређивање грађевинског земљишта | D10: =SUMIF('ПО КОРИСНИЦИМА'!$G$8:$G$14039,"Свега за програмску активност 1101-0002:",'ПО КОРИСНИЦИМА'!$H$8:$H$14039) -> 0 | E10: =IFERROR(D10/$D$601,"-") -> 0 | F10: =SUMIF('ПО КОРИСНИЦИМА'!$G$8:$G$14039,"Свега за програмску активност 1101-0002:",'ПО КОРИСНИЦИМА'!$I$8:$I$14039) -> 0 | G10: =D10+F10 -> 0
B11: 1101-П1 | C11: =IFERROR(VLOOKUP(B11,'ПО КОРИСНИЦИМА'!$C$8:$J$14039,5,FALSE),"") ->  | D11: =SUMIF('ПО КОРИСНИЦИМА'!$G$8:$G$14039,"Свега за пројекат 1101-П1:",'ПО КОРИСНИЦИМА'!$H$8:$H$14039) -> 0 | E11: =IFERROR(D11/$D$601,"-") -> 0 | F11: =SUMIF('ПО КОРИСНИЦИМА'!$G$8:$G$14039,"Свега за пројекат 1101-П1:",'ПО КОРИСНИЦИМА'!$I$8:$I$14039) -> 0 | G11: 0
B12: 1101-П2 | C12: =IFERROR(VLOOKUP(B12,'ПО КОРИСНИЦИМА'!$C$8:$J$14039,5,FALSE),"") ->  | D12: =SUMIF('ПО КОРИСНИЦИМА'!$G$8:$G$14039,"Свега за пројекат 1101-П2:",'ПО КОРИСНИЦИМА'!$H$8:$H$14039) -> 0 | E12: =IFERROR(D12/$D$601,"-") -> 0 | F12: =SUMIF('ПО КОРИСНИЦИМА'!$G$8:$G$14039,"Свега за пројекат 1101-П2:",'ПО КОРИСНИЦИМА'!$I$8:$I$14039) -> 0 | G12: 0
B13: 1101-П3 | C13: =IFERROR(VLOOKUP(B13,'ПО КОРИСНИЦИМА'!$C$8:$J$14039,5,FALSE),"") ->  | D13: =SUMIF('ПО КОРИСНИЦИМА'!$G$8:$G$14039,"Свега за пројекат 1101-П3:",'ПО КОРИСНИЦИМА'!$H$8:$H$14039) -> 0 | E13: 0 | F13: =SUMIF('ПО КОРИСНИЦИМА'!$G$8:$G$14039,"Свега за пројекат 1101-П3:",'ПО КОРИСНИЦИМА'!$I$8:$I$14039) -> 0 | G13: 0
B14: 1101-П4 | C14: =IFERROR(VLOOKUP(B14,'ПО КОРИСНИЦИМА'!$C$8:$J$14039,5,FALSE),"") ->  | D14: =SUMIF('ПО КОРИСНИЦИМА'!$G$8:$G$14039,"Свега за пројекат 1101-П4:",'ПО КОРИСНИЦИМА'!$H$8:$H$14039) -> 0 | E14: 0 | F14: =SUMIF('ПО КОРИСНИЦИМА'!$G$8:$G$14039,"Свега за пројекат 1101-П4:",'ПО КОРИСНИЦИМА'!$I$8:$I$14039) -> 0 | G14: 0
B15: 1101-П5 | C15: =IFERROR(VLOOKUP(B15,'ПО КОРИСНИЦИМА'!$C$8:$J$14039,5,FALSE),"") ->  | D15: =SUMIF('ПО КОРИСНИЦИМА'!$G$8:$G$14039,"Свега за пројекат 1101-П5:",'ПО КОРИСНИЦИМА'!$H$8:$H$14039) -> 0 | E15: 0 | F15: =SUMIF('ПО КОРИСНИЦИМА'!$G$8:$G$14039,"Свега за пројекат 1101-П5:",'ПО КОРИСНИЦИМА'!$I$8:$I$14039) -> 0 | G15: 0
B16: 1101-П6 | C16: =IFERROR(VLOOKUP(B16,'ПО КОРИСНИЦИМА'!$C$8:$J$14039,5,FALSE),"") ->  | D16: =SUMIF('ПО КОРИСНИЦИМА'!$G$8:$G$14039,"Свега за пројекат 1101-П6:",'ПО КОРИСНИЦИМА'!$H$8:$H$14039) -> 0 | E16: 0 | F16: =SUMIF('ПО КОРИСНИЦИМА'!$G$8:$G$14039,"Свега за пројекат 1101-П6:",'ПО КОРИСНИЦИМА'!$I$8:$I$14039) -> 0 | G16: =D16+F16 -> 0
B17: 1101-П7 | C17: =IFERROR(VLOOKUP(B17,'ПО КОРИСНИЦИМА'!$C$8:$J$14039,5,FALSE),"") ->  | D17: =SUMIF('ПО КОРИСНИЦИМА'!$G$8:$G$14039,"Свега за пројекат 1101-П7:",'ПО КОРИСНИЦИМА'!$H$8:$H$14039) -> 0 | E17: 0 | F17: =SUMIF('ПО КОРИСНИЦИМА'!$G$8:$G$14039,"Свега за пројекат 1101-П7:",'ПО КОРИСНИЦИМА'!$I$8:$I$14039) -> 0 | G17: 0
B18: 1101-П8 | C18: =IFERROR(VLOOKUP(B18,'ПО КОРИСНИЦИМА'!$C$8:$J$14039,5,FALSE),"") ->  | D18: =SUMIF('ПО КОРИСНИЦИМА'!$G$8:$G$14039,"Свега за пројекат 1101-П8:",'ПО КОРИСНИЦИМА'!$H$8:$H$14039) -> 0 | E18: 0 | F18: =SUMIF('ПО КОРИСНИЦИМА'!$G$8:$G$14039,"Свега за пројекат 1101-П8:",'ПО КОРИСНИЦИМА'!$I$8:$I$14039) -> 0 | G18: 0
B19: 1101-П9 | C19: =IFERROR(VLOOKUP(B19,'ПО КОРИСНИЦИМА'!$C$8:$J$14039,5,FALSE),"") ->  | D19: =SUMIF('ПО КОРИСНИЦИМА'!$G$8:$G$14039,"Свега за пројекат 1101-П9:",'ПО КОРИСНИЦИМА'!$H$8:$H$14039) -> 0 | E19: 0 | F19: =SUMIF('ПО КОРИСНИЦИМА'!$G$8:$G$14039,"Свега за пројекат 1101-П9:",'ПО КОРИСНИЦИМА'!$I$8:$I$14039) -> 0 | G19: 0
B20: 1101-П10 | C20: =IFERROR(VLOOKUP(B20,'ПО КОРИСНИЦИМА'!$C$8:$J$14039,5,FALSE),"") ->  | D20: =SUMIF('ПО КОРИСНИЦИМА'!$G$8:$G$14039,"Свега за пројекат 1101-П10:",'ПО КОРИСНИЦИМА'!$H$8:$H$14039) -> 0 | E20: 0 | F20: =SUMIF('ПО КОРИСНИЦИМА'!$G$8:$G$14039,"Свега за пројекат 1101-П10:",'ПО КОРИСНИЦИМА'!$I$8:$I$14039) -> 0 | G20: 0
B21: 1101-П11 | C21: =IFERROR(VLOOKUP(B21,'ПО КОРИСНИЦИМА'!$C$8:$J$14039,5,FALSE),"") ->  | D21: =SUMIF('ПО КОРИСНИЦИМА'!$G$8:$G$14039,"Свега за пројекат 1101-П11:",'ПО КОРИСНИЦИМА'!$H$8:$H$14039) -> 0 | E21: 0 | F21: =SUMIF('ПО КОРИСНИЦИМА'!$G$8:$G$14039,"Свега за пројекат 1101-П11:",'ПО КОРИСНИЦИМА'!$I$8:$I$14039) -> 0 | G21: 0
B22: 1101-П12 | C22: =IFERROR(VLOOKUP(B22,'ПО КОРИСНИЦИМА'!$C$8:$J$14039,5,FALSE),"") ->  | D22: =SUMIF('ПО КОРИСНИЦИМА'!$G$8:$G$14039,"Свега за пројекат 1101-П12:",'ПО КОРИСНИЦИМА'!$H$8:$H$14039) -> 0 | E22: 0 | F22: =SUMIF('ПО КОРИСНИЦИМА'!$G$8:$G$14039,"Свега за пројекат 1101-П12:",'ПО КОРИСНИЦИМА'!$I$8:$I$14039) -> 0 | G22: 0
B23: 1101-П13 | C23: =IFERROR(VLOOKUP(B23,'ПО КОРИСНИЦИМА'!$C$8:$J$14039,5,FALSE),"") ->  | D23: =SUMIF('ПО КОРИСНИЦИМА'!$G$8:$G$14039,"Свега за пројекат 1101-П13:",'ПО КОРИСНИЦИМА'!$H$8:$H$14039) -> 0 | E23: 0 | F23: =SUMIF('ПО КОРИСНИЦИМА'!$G$8:$G$14039,"Свега за пројекат 1101-П13:",'ПО КОРИСНИЦИМА'!$I$8:$I$14039) -> 0 | G23: 0
B24: 1101-П14 | C24: =IFERROR(VLOOKUP(B24,'ПО КОРИСНИЦИМА'!$C$8:$J$14039,5,FALSE),"") ->  | D24: =SUMIF('ПО КОРИСНИЦИМА'!$G$8:$G$14039,"Свега за пројекат 1101-П14:",'ПО КОРИСНИЦИМА'!$H$8:$H$14039) -> 0 | E24: 0 | F24: =SUMIF('ПО КОРИСНИЦИМА'!$G$8:$G$14039,"Свега за пројекат 1101-П14:",'ПО КОРИСНИЦИМА'!$I$8:$I$14039) -> 0 | G24: 0
B25: 1101-П15 | C25: =IFERROR(VLOOKUP(B25,'ПО КОРИСНИЦИМА'!$C$8:$J$14039,5,FALSE),"") ->  | D25: =SUMIF('ПО КОРИСНИЦИМА'!$G$8:$G$14039,"Свега за пројекат 1101-П15:",'ПО КОРИСНИЦИМА'!$H$8:$H$14039) -> 0 | E25: 0 | F25: =SUMIF('ПО КОРИСНИЦИМА'!$G$8:$G$14039,"Свега за пројекат 1101-П15:",'ПО КОРИСНИЦИМА'!$I$8:$I$14039) -> 0 | G25: 0
B26: 1101-П16 | C26: =IFERROR(VLOOKUP(B26,'ПО КОРИСНИЦИМА'!$C$8:$J$14039,5,FALSE),"") ->  | D26: =SUMIF('ПО КОРИСНИЦИМА'!$G$8:$G$14039,"Свега за пројекат 1101-П16:",'ПО КОРИСНИЦИМА'!$H$8:$H$14039) -> 0 | E26: 0 | F26: =SUMIF('ПО КОРИСНИЦИМА'!$G$8:$G$14039,"Свега за пројекат 1101-П16:",'ПО КОРИСНИЦИМА'!$I$8:$I$14039) -> 0 | G26: 0
B27: 1101-П17 | C27: =IFERROR(VLOOKUP(B27,'ПО КОРИСНИЦИМА'!$C$8:$J$14039,5,FALSE),"") ->  | D27: =SUMIF('ПО КОРИСНИЦИМА'!$G$8:$G$14039,"Свега за пројекат 1101-П17:",'ПО КОРИСНИЦИМА'!$H$8:$H$14039) -> 0 | E27: 0 | F27: =SUMIF('ПО КОРИСНИЦИМА'!$G$8:$G$14039,"Свега за пројекат 1101-П17:",'ПО КОРИСНИЦИМА'!$I$8:$I$14039) -> 0 | G27: 0
B28: 1101-П18 | C28: =IFERROR(VLOOKUP(B28,'ПО КОРИСНИЦИМА'!$C$8:$J$14039,5,FALSE),"") ->  | D28: =SUMIF('ПО КОРИСНИЦИМА'!$G$8:$G$14039,"Свега за пројекат 1101-П18:",'ПО КОРИСНИЦИМА'!$H$8:$H$14039) -> 0 | E28: 0 | F28: =SUMIF('ПО КОРИСНИЦИМА'!$G$8:$G$14039,"Свега за пројекат 1101-П18:",'ПО КОРИСНИЦИМА'!$I$8:$I$14039) -> 0 | G28: 0
B29: 1101-П19 | C29: =IFERROR(VLOOKUP(B29,'ПО КОРИСНИЦИМА'!$C$8:$J$14039,5,FALSE),"") ->  | D29: =SUMIF('ПО КОРИСНИЦИМА'!$G$8:$G$14039,"Свега за пројекат 1101-П19:",'ПО КОРИСНИЦИМА'!$H$8:$H$14039) -> 0 | E29: 0 | F29: =SUMIF('ПО КОРИСНИЦИМА'!$G$8:$G$14039,"Свега за пројекат 1101-П19:",'ПО КОРИСНИЦИМА'!$I$8:$I$14039) -> 0 | G29: 0
B30: 1101-П20 | C30: =IFERROR(VLOOKUP(B30,'ПО КОРИСНИЦИМА'!$C$8:$J$14039,5,FALSE),"") ->  | D30: =SUMIF('ПО КОРИСНИЦИМА'!$G$8:$G$14039,"Свега за пројекат 1101-П20:",'ПО КОРИСНИЦИМА'!$H$8:$H$14039) -> 0 | E30: 0 | F30: =SUMIF('ПО КОРИСНИЦИМА'!$G$8:$G$14039,"Свега за пројекат 1101-П20:",'ПО КОРИСНИЦИМА'!$I$8:$I$14039) -> 0 | G30: 0
B31: 1101-П21 | C31: =IFERROR(VLOOKUP(B31,'ПО КОРИСНИЦИМА'!$C$8:$J$14039,5,FALSE),"") ->  | D31: =SUMIF('ПО КОРИСНИЦИМА'!$G$8:$G$14039,"Свега за пројекат 1101-П21:",'ПО КОРИСНИЦИМА'!$H$8:$H$14039) -> 0 | E31: 0 | F31: =SUMIF('ПО КОРИСНИЦИМА'!$G$8:$G$14039,"Свега за пројекат 1101-П21:",'ПО КОРИСНИЦИМА'!$I$8:$I$14039) -> 0 | G31: 0
B32: 1101-П22 | C32: =IFERROR(VLOOKUP(B32,'ПО КОРИСНИЦИМА'!$C$8:$J$14039,5,FALSE),"") ->  | D32: =SUMIF('ПО КОРИСНИЦИМА'!$G$8:$G$14039,"Свега за пројекат 1101-П22:",'ПО КОРИСНИЦИМА'!$H$8:$H$14039) -> 0 | E32: 0 | F32: =SUMIF('ПО КОРИСНИЦИМА'!$G$8:$G$14039,"Свега за пројекат 1101-П22:",'ПО КОРИСНИЦИМА'!$I$8:$I$14039) -> 0 | G32: 0
B33: 1101-П23 | C33: =IFERROR(VLOOKUP(B33,'ПО КОРИСНИЦИМА'!$C$8:$J$14039,5,FALSE),"") ->  | D33: =SUMIF('ПО КОРИСНИЦИМА'!$G$8:$G$14039,"Свега за пројекат 1101-П23:",'ПО КОРИСНИЦИМА'!$H$8:$H$14039) -> 0 | E33: 0 | F33: =SUMIF('ПО КОРИСНИЦИМА'!$G$8:$G$14039,"Свега за пројекат 1101-П23:",'ПО КОРИСНИЦИМА'!$I$8:$I$14039) -> 0 | G33: 0
B34: 1101-П24 | C34: =IFERROR(VLOOKUP(B34,'ПО КОРИСНИЦИМА'!$C$8:$J$14039,5,FALSE),"") ->  | D34: =SUMIF('ПО КОРИСНИЦИМА'!$G$8:$G$14039,"Свега за пројекат 1101-П24:",'ПО КОРИСНИЦИМА'!$H$8:$H$14039) -> 0 | E34: 0 | F34: =SUMIF('ПО КОРИСНИЦИМА'!$G$8:$G$14039,"Свега за пројекат 1101-П24:",'ПО КОРИСНИЦИМА'!$I$8:$I$14039) -> 0 | G34: 0
A35: 0601 | C35: Програм 2. Комунална делатност | D35: =SUM(D36:D99) -> 69480000 | E35: =IFERROR(D35/$D$601,"-") -> 0.1413833099 | F35: =SUM(F36:F99) -> 0 | G35: =D35+F35 -> 69480000
B36: 0601-0001 | C36: Водоснабдевање | D36: =SUMIF('ПО КОРИСНИЦИМА'!$G$8:$G$14039,"Свега за програмску активност 0601-0001:",'ПО КОРИСНИЦИМА'!$H$8:$H$14039) -> 12960000 | E36: 0.02637201636 | F36: =SUMIF('ПО КОРИСНИЦИМА'!$G$8:$G$14039,"Свега за програмску активност 0601-0001:",'ПО КОРИСНИЦИМА'!$I$8:$I$14039) -> 0 | G36: 12960000
B37: 0601-0002 | C37: Управљање отпадним водама | D37: =SUMIF('ПО КОРИСНИЦИМА'!$G$8:$G$14039,"Свега за програмску активност 0601-0002:",'ПО КОРИСНИЦИМА'!$H$8:$H$14039) -> 33420000 | E37: 0.06800561626 | F37: =SUMIF('ПО КОРИСНИЦИМА'!$G$8:$G$14039,"Свега за програмску активност 0601-0002:",'ПО КОРИСНИЦИМА'!$I$8:$I$14039) -> 0 | G37: 33420000
B38: 0601-0003 | C38: Одржавање депонија | D38: =SUMIF('ПО КОРИСНИЦИМА'!$G$8:$G$14039,"Свега за програмску активност 0601-0003:",'ПО КОРИСНИЦИМА'!$H$8:$H$14039) -> 0 | E38: 0 | F38: =SUMIF('ПО КОРИСНИЦИМА'!$G$8:$G$14039,"Свега за програмску активност 0601-0003:",'ПО КОРИСНИЦИМА'!$I$8:$I$14039) -> 0 | G38: 0
B39: 0601-0004 | C39: Даљинско грејање | D39: =SUMIF('ПО КОРИСНИЦИМА'!$G$8:$G$14039,"Свега за програмску активност 0601-0004:",'ПО КОРИСНИЦИМА'!$H$8:$H$14039) -> 0 | E39: 0 | F39: =SUMIF('ПО КОРИСНИЦИМА'!$G$8:$G$14039,"Свега за програмску активност 0601-0004:",'ПО КОРИСНИЦИМА'!$I$8:$I$14039) -> 0 | G39: 0
B40: 0601-0005 | C40: Јавни превоз | D40: =SUMIF('ПО КОРИСНИЦИМА'!$G$8:$G$14039,"Свега за програмску активност 0601-0005:",'ПО КОРИСНИЦИМА'!$H$8:$H$14039) -> 0 | E40: 0 | F40: =SUMIF('ПО КОРИСНИЦИМА'!$G$8:$G$14039,"Свега за програмску активност 0601-0005:",'ПО КОРИСНИЦИМА'!$I$8:$I$14039) -> 0 | G40: 0
B41: 0601-0006 | C41: Паркинг сервис | D41: =SUMIF('ПО КОРИСНИЦИМА'!$G$8:$G$14039,"Свега за програмску активност 0601-0006:",'ПО КОРИСНИЦИМА'!$H$8:$H$14039) -> 0 | E41: 0 | F41: =SUMIF('ПО КОРИСНИЦИМА'!$G$8:$G$14039,"Свега за програмску активност 0601-0006:",'ПО КОРИСНИЦИМА'!$I$8:$I$14039) -> 0 | G41: 0
B42: 0601-0007 | C42: Уређивање, одржавање и коришћење пијацa | D42: =SUMIF('ПО КОРИСНИЦИМА'!$G$8:$G$14039,"Свега за програмску активност 0601-0007:",'ПО КОРИСНИЦИМА'!$H$8:$H$14039) -> 0 | E42: 0 | F42: =SUMIF('ПО КОРИСНИЦИМА'!$G$8:$G$14039,"Свега за програмску активност 0601-0007:",'ПО КОРИСНИЦИМА'!$I$8:$I$14039) -> 0 | G42: 0
B43: 0601-0008 | C43: Јавна хигијена | D43: =SUMIF('ПО КОРИСНИЦИМА'!$G$8:$G$14039,"Свега за програмску активност 0601-0008:",'ПО КОРИСНИЦИМА'!$H$8:$H$14039) -> 0 | E43: 0 | F43: =SUMIF('ПО КОРИСНИЦИМА'!$G$8:$G$14039,"Свега за програмску активност 0601-0008:",'ПО КОРИСНИЦИМА'!$I$8:$I$14039) -> 0 | G43: 0
B44: 0601-0009 | C44: Уређење и одржавање зеленила | D44: =SUMIF('ПО КОРИСНИЦИМА'!$G$8:$G$14039,"Свега за програмску активност 0601-0009:",'ПО КОРИСНИЦИМА'!$H$8:$H$14039) -> 14000000 | E44: 0.02848828928 | F44: =SUMIF('ПО КОРИСНИЦИМА'!$G$8:$G$14039,"Свега за програмску активност 0601-0009:",'ПО КОРИСНИЦИМА'!$I$8:$I$14039) -> 0 | G44: 14000000
B45: 0601-0010 | C45: Јавна расвета | D45: =SUMIF('ПО КОРИСНИЦИМА'!$G$8:$G$14039,"Свега за програмску активност 0601-0010:",'ПО КОРИСНИЦИМА'!$H$8:$H$14039) -> 9100000 | E45: 0.01851738803 | F45: =SUMIF('ПО КОРИСНИЦИМА'!$G$8:$G$14039,"Свега за програмску активност 0601-0010:",'ПО КОРИСНИЦИМА'!$I$8:$I$14039) -> 0 | G45: 9100000
B46: 0601-0011 | C46: Одржавање гробаља и погребне услуге | D46: =SUMIF('ПО КОРИСНИЦИМА'!$G$8:$G$14039,"Свега за програмску активност 0601-0011:",'ПО КОРИСНИЦИМА'!$H$8:$H$14039) -> 0 | E46: 0 | F46: =SUMIF('ПО КОРИСНИЦИМА'!$G$8:$G$14039,"Свега за програмску активност 0601-0011:",'ПО КОРИСНИЦИМА'!$I$8:$I$14039) -> 0 | G46: 0
B47: 0601-0012 | C47: Одржавање стамбених зграда | D47: =SUMIF('ПО КОРИСНИЦИМА'!$G$8:$G$14039,"Свега за програмску активност 0601-0012:",'ПО КОРИСНИЦИМА'!$H$8:$H$14039) -> 0 | E47: 0 | F47: =SUMIF('ПО КОРИСНИЦИМА'!$G$8:$G$14039,"Свега за програмску активност 0601-0012:",'ПО КОРИСНИЦИМА'!$I$8:$I$14039) -> 0 | G47: 0
B48: 0601-0013 | C48: Ауто-такси превоз путника | D48: =SUMIF('ПО КОРИСНИЦИМА'!$G$8:$G$14039,"Свега за програмску активност 0601-0013:",'ПО КОРИСНИЦИМА'!$H$8:$H$14039) -> 0 | E48: 0 | F48: =SUMIF('ПО КОРИСНИЦИМА'!$G$8:$G$14039,"Свега за програмску активност 0601-0013:",'ПО КОРИСНИЦИМА'!$I$8:$I$14039) -> 0 | G48: 0
B49: 0601-0014 | C49: Остале комуналне услуге | D49: =SUMIF('ПО КОРИСНИЦИМА'!$G$8:$G$14039,"Свега за програмску активност 0601-0014:",'ПО КОРИСНИЦИМА'!$H$8:$H$14039) -> 0 | E49: 0 | F49: =SUMIF('ПО КОРИСНИЦИМА'!$G$8:$G$14039,"Свега за програмску активност 0601-0014:",'ПО КОРИСНИЦИМА'!$I$8:$I$14039) -> 0 | G49: 0
B50: 0601-П1 | C50: =IFERROR(VLOOKUP(B50,'ПО КОРИСНИЦИМА'!$C$8:$J$14039,5,FALSE),"") ->  | D50: =SUMIF('ПО КОРИСНИЦИМА'!$G$8:$G$14039,"Свега за пројекат 0601-П1:",'ПО КОРИСНИЦИМА'!$H$8:$H$14039) -> 0 | E50: 0 | F50: =SUMIF('ПО КОРИСНИЦИМА'!$G$8:$G$14039,"Свега за пројекат 0601-П1:",'ПО КОРИСНИЦИМА'!$I$8:$I$14039) -> 0 | G50: 0
B51: 0601-П2 | C51: =IFERROR(VLOOKUP(B51,'ПО КОРИСНИЦИМА'!$C$8:$J$14039,5,FALSE),"") ->  | D51: =SUMIF('ПО КОРИСНИЦИМА'!$G$8:$G$14039,"Свега за пројекат 0601-П2:",'ПО КОРИСНИЦИМА'!$H$8:$H$14039) -> 0 | E51: 0 | F51: =SUMIF('ПО КОРИСНИЦИМА'!$G$8:$G$14039,"Свега за пројекат 0601-П2:",'ПО КОРИСНИЦИМА'!$I$8:$I$14039) -> 0 | G51: 0
B52: 0601-П3 | C52: =IFERROR(VLOOKUP(B52,'ПО КОРИСНИЦИМА'!$C$8:$J$14039,5,FALSE),"") ->  | D52: =SUMIF('ПО КОРИСНИЦИМА'!$G$8:$G$14039,"Свега за пројекат 0601-П3:",'ПО КОРИСНИЦИМА'!$H$8:$H$14039) -> 0 | E52: 0 | F52: =SUMIF('ПО КОРИСНИЦИМА'!$G$8:$G$14039,"Свега за пројекат 0601-П3:",'ПО КОРИСНИЦИМА'!$I$8:$I$14039) -> 0 | G52: 0
B53: 0601-П4 | C53: =IFERROR(VLOOKUP(B53,'ПО КОРИСНИЦИМА'!$C$8:$J$14039,5,FALSE),"") ->  | D53: =SUMIF('ПО КОРИСНИЦИМА'!$G$8:$G$14039,"Свега за пројекат 0601-П4:",'ПО КОРИСНИЦИМА'!$H$8:$H$14039) -> 0 | E53: 0 | F53: =SUMIF('ПО КОРИСНИЦИМА'!$G$8:$G$14039,"Свега за пројекат 0601-П4:",'ПО КОРИСНИЦИМА'!$I$8:$I$14039) -> 0 | G53: 0
B54: 0601-П5 | C54: =IFERROR(VLOOKUP(B54,'ПО КОРИСНИЦИМА'!$C$8:$J$14039,5,FALSE),"") ->  | D54: =SUMIF('ПО КОРИСНИЦИМА'!$G$8:$G$14039,"Свега за пројекат 0601-П5:",'ПО КОРИСНИЦИМА'!$H$8:$H$14039) -> 0 | E54: 0 | F54: =SUMIF('ПО КОРИСНИЦИМА'!$G$8:$G$14039,"Свега за пројекат 0601-П5:",'ПО КОРИСНИЦИМА'!$I$8:$I$14039) -> 0 | G54: 0
B55: 0601-П6 | C55: =IFERROR(VLOOKUP(B55,'ПО КОРИСНИЦИМА'!$C$8:$J$14039,5,FALSE),"") ->  | D55: =SUMIF('ПО КОРИСНИЦИМА'!$G$8:$G$14039,"Свега за пројекат 0601-П6:",'ПО КОРИСНИЦИМА'!$H$8:$H$14039) -> 0 | E55: 0 | F55: =SUMIF('ПО КОРИСНИЦИМА'!$G$8:$G$14039,"Свега за пројекат 0601-П6:",'ПО КОРИСНИЦИМА'!$I$8:$I$14039) -> 0 | G55: 0
B56: 0601-П7 | C56: =IFERROR(VLOOKUP(B56,'ПО КОРИСНИЦИМА'!$C$8:$J$14039,5,FALSE),"") ->  | D56: =SUMIF('ПО КОРИСНИЦИМА'!$G$8:$G$14039,"Свега за пројекат 0601-П7:",'ПО КОРИСНИЦИМА'!$H$8:$H$14039) -> 0 | E56: 0 | F56: =SUMIF('ПО КОРИСНИЦИМА'!$G$8:$G$14039,"Свега за пројекат 0601-П7:",'ПО КОРИСНИЦИМА'!$I$8:$I$14039) -> 0 | G56: 0
B57: 0601-П8 | C57: =IFERROR(VLOOKUP(B57,'ПО КОРИСНИЦИМА'!$C$8:$J$14039,5,FALSE),"") ->  | D57: =SUMIF('ПО КОРИСНИЦИМА'!$G$8:$G$14039,"Свега за пројекат 0601-П8:",'ПО КОРИСНИЦИМА'!$H$8:$H$14039) -> 0 | E57: 0 | F57: =SUMIF('ПО КОРИСНИЦИМА'!$G$8:$G$14039,"Свега за пројекат 0601-П8:",'ПО КОРИСНИЦИМА'!$I$8:$I$14039) -> 0 | G57: 0
B58: 0601-П9 | C58: =IFERROR(VLOOKUP(B58,'ПО КОРИСНИЦИМА'!$C$8:$J$14039,5,FALSE),"") ->  | D58: =SUMIF('ПО КОРИСНИЦИМА'!$G$8:$G$14039,"Свега за пројекат 0601-П9:",'ПО КОРИСНИЦИМА'!$H$8:$H$14039) -> 0 | E58: 0 | F58: =SUMIF('ПО КОРИСНИЦИМА'!$G$8:$G$14039,"Свега за пројекат 0601-П9:",'ПО КОРИСНИЦИМА'!$I$8:$I$14039) -> 0 | G58: 0
B59: 0601-П10 | C59: =IFERROR(VLOOKUP(B59,'ПО КОРИСНИЦИМА'!$C$8:$J$14039,5,FALSE),"") ->  | D59: =SUMIF('ПО КОРИСНИЦИМА'!$G$8:$G$14039,"Свега за пројекат 0601-П10:",'ПО КОРИСНИЦИМА'!$H$8:$H$14039) -> 0 | E59: 0 | F59: =SUMIF('ПО КОРИСНИЦИМА'!$G$8:$G$14039,"Свега за пројекат 0601-П10:",'ПО КОРИСНИЦИМА'!$I$8:$I$14039) -> 0 | G59: 0
B60: 0601-П11 | C60: =IFERROR(VLOOKUP(B60,'ПО КОРИСНИЦИМА'!$C$8:$J$14039,5,FALSE),"") ->  | D60: =SUMIF('ПО КОРИСНИЦИМА'!$G$8:$G$14039,"Свега за пројекат 0601-П11:",'ПО КОРИСНИЦИМА'!$H$8:$H$14039) -> 0 | E60: 0 | F60: =SUMIF('ПО КОРИСНИЦИМА'!$G$8:$G$14039,"Свега за пројекат 0601-П11:",'ПО КОРИСНИЦИМА'!$I$8:$I$14039) -> 0 | G60: 0
B61: 0601-П12 | C61: =IFERROR(VLOOKUP(B61,'ПО КОРИСНИЦИМА'!$C$8:$J$14039,5,FALSE),"") ->  | D61: =SUMIF('ПО КОРИСНИЦИМА'!$G$8:$G$14039,"Свега за пројекат 0601-П12:",'ПО КОРИСНИЦИМА'!$H$8:$H$14039) -> 0 | E61: 0 | F61: =SUMIF('ПО КОРИСНИЦИМА'!$G$8:$G$14039,"Свега за пројекат 0601-П12:",'ПО КОРИСНИЦИМА'!$I$8:$I$14039) -> 0 | G61: 0
B62: 0601-П13 | C62: =IFERROR(VLOOKUP(B62,'ПО КОРИСНИЦИМА'!$C$8:$J$14039,5,FALSE),"") ->  | D62: =SUMIF('ПО КОРИСНИЦИМА'!$G$8:$G$14039,"Свега за пројекат 0601-П13:",'ПО КОРИСНИЦИМА'!$H$8:$H$14039) -> 0 | E62: 0 | F62: =SUMIF('ПО КОРИСНИЦИМА'!$G$8:$G$14039,"Свега за пројекат 0601-П13:",'ПО КОРИСНИЦИМА'!$I$8:$I$14039) -> 0 | G62: 0
B63: 0601-П14 | C63: =IFERROR(VLOOKUP(B63,'ПО КОРИСНИЦИМА'!$C$8:$J$14039,5,FALSE),"") ->  | D63: =SUMIF('ПО КОРИСНИЦИМА'!$G$8:$G$14039,"Свега за пројекат 0601-П14:",'ПО КОРИСНИЦИМА'!$H$8:$H$14039) -> 0 | E63: 0 | F63: =SUMIF('ПО КОРИСНИЦИМА'!$G$8:$G$14039,"Свега за пројекат 0601-П14:",'ПО КОРИСНИЦИМА'!$I$8:$I$14039) -> 0 | G63: 0
B64: 0601-П15 | C64: =IFERROR(VLOOKUP(B64,'ПО КОРИСНИЦИМА'!$C$8:$J$14039,5,FALSE),"") ->  | D64: =SUMIF('ПО КОРИСНИЦИМА'!$G$8:$G$14039,"Свега за пројекат 0601-П15:",'ПО КОРИСНИЦИМА'!$H$8:$H$14039) -> 0 | E64: 0 | F64: =SUMIF('ПО КОРИСНИЦИМА'!$G$8:$G$14039,"Свега за пројекат 0601-П15:",'ПО КОРИСНИЦИМА'!$I$8:$I$14039) -> 0 | G64: 0
B65: 0601-П16 | C65: =IFERROR(VLOOKUP(B65,'ПО КОРИСНИЦИМА'!$C$8:$J$14039,5,FALSE),"") ->  | D65: =SUMIF('ПО КОРИСНИЦИМА'!$G$8:$G$14039,"Свега за пројекат 0601-П16:",'ПО КОРИСНИЦИМА'!$H$8:$H$14039) -> 0 | E65: 0 | F65: =SUMIF('ПО КОРИСНИЦИМА'!$G$8:$G$14039,"Свега за пројекат 0601-П16:",'ПО КОРИСНИЦИМА'!$I$8:$I$14039) -> 0 | G65: 0
B66: 0601-П17 | C66: =IFERROR(VLOOKUP(B66,'ПО КОРИСНИЦИМА'!$C$8:$J$14039,5,FALSE),"") ->  | D66: =SUMIF('ПО КОРИСНИЦИМА'!$G$8:$G$14039,"Свега за пројекат 0601-П17:",'ПО КОРИСНИЦИМА'!$H$8:$H$14039) -> 0 | E66: 0 | F66: =SUMIF('ПО КОРИСНИЦИМА'!$G$8:$G$14039,"Свега за пројекат 0601-П17:",'ПО КОРИСНИЦИМА'!$I$8:$I$14039) -> 0 | G66: 0
B67: 0601-П18 | C67: =IFERROR(VLOOKUP(B67,'ПО КОРИСНИЦИМА'!$C$8:$J$14039,5,FALSE),"") ->  | D67: =SUMIF('ПО КОРИСНИЦИМА'!$G$8:$G$14039,"Свега за пројекат 0601-П18:",'ПО КОРИСНИЦИМА'!$H$8:$H$14039) -> 0 | E67: =IFERROR(D67/$D$601,"-") -> 0 | F67: =SUMIF('ПО КОРИСНИЦИМА'!$G$8:$G$14039,"Свега за пројекат 0601-П18:",'ПО КОРИСНИЦИМА'!$I$8:$I$14039) -> 0 | G67: 0
B68: 0601-П19 | C68: =IFERROR(VLOOKUP(B68,'ПО КОРИСНИЦИМА'!$C$8:$J$14039,5,FALSE),"") ->  | D68: =SUMIF('ПО КОРИСНИЦИМА'!$G$8:$G$14039,"Свега за пројекат 0601-П19:",'ПО КОРИСНИЦИМА'!$H$8:$H$14039) -> 0 | E68: 0 | F68: =SUMIF('ПО КОРИСНИЦИМА'!$G$8:$G$14039,"Свега за пројекат 0601-П19:",'ПО КОРИСНИЦИМА'!$I$8:$I$14039) -> 0 | G68: 0
B69: 0601-П20 | C69: =IFERROR(VLOOKUP(B69,'ПО КОРИСНИЦИМА'!$C$8:$J$14039,5,FALSE),"") ->  | D69: =SUMIF('ПО КОРИСНИЦИМА'!$G$8:$G$14039,"Свега за пројекат 0601-П20:",'ПО КОРИСНИЦИМА'!$H$8:$H$14039) -> 0 | E69: 0 | F69: =SUMIF('ПО КОРИСНИЦИМА'!$G$8:$G$14039,"Свега за пројекат 0601-П20:",'ПО КОРИСНИЦИМА'!$I$8:$I$14039) -> 0 | G69: 0
B70: 0601-П21 | C70: =IFERROR(VLOOKUP(B70,'ПО КОРИСНИЦИМА'!$C$8:$J$14039,5,FALSE),"") ->  | D70: =SUMIF('ПО КОРИСНИЦИМА'!$G$8:$G$14039,"Свега за пројекат 0601-П21:",'ПО КОРИСНИЦИМА'!$H$8:$H$14039) -> 0 | E70: 0 | F70: =SUMIF('ПО КОРИСНИЦИМА'!$G$8:$G$14039,"Свега за пројекат 0601-П21:",'ПО КОРИСНИЦИМА'!$I$8:$I$14039) -> 0 | G70: 0
B71: 0601-П22 | C71: =IFERROR(VLOOKUP(B71,'ПО КОРИСНИЦИМА'!$C$8:$J$14039,5,FALSE),"") ->  | D71: =SUMIF('ПО КОРИСНИЦИМА'!$G$8:$G$14039,"Свега за пројекат 0601-П22:",'ПО КОРИСНИЦИМА'!$H$8:$H$14039) -> 0 | E71: 0 | F71: =SUMIF('ПО КОРИСНИЦИМА'!$G$8:$G$14039,"Свега за пројекат 0601-П22:",'ПО КОРИСНИЦИМА'!$I$8:$I$14039) -> 0 | G71: 0
B72: 0601-П23 | C72: =IFERROR(VLOOKUP(B72,'ПО КОРИСНИЦИМА'!$C$8:$J$14039,5,FALSE),"") ->  | D72: =SUMIF('ПО КОРИСНИЦИМА'!$G$8:$G$14039,"Свега за пројекат 0601-П23:",'ПО КОРИСНИЦИМА'!$H$8:$H$14039) -> 0 | E72: 0 | F72: =SUMIF('ПО КОРИСНИЦИМА'!$G$8:$G$14039,"Свега за пројекат 0601-П23:",'ПО КОРИСНИЦИМА'!$I$8:$I$14039) -> 0 | G72: 0
B73: 0601-П24 | C73: =IFERROR(VLOOKUP(B73,'ПО КОРИСНИЦИМА'!$C$8:$J$14039,5,FALSE),"") ->  | D73: =SUMIF('ПО КОРИСНИЦИМА'!$G$8:$G$14039,"Свега за пројекат 0601-П24:",'ПО КОРИСНИЦИМА'!$H$8:$H$14039) -> 0 | E73: 0 | F73: =SUMIF('ПО КОРИСНИЦИМА'!$G$8:$G$14039,"Свега за пројекат 0601-П24:",'ПО КОРИСНИЦИМА'!$I$8:$I$14039) -> 0 | G73: 0
B74: 0601-П25 | C74: =IFERROR(VLOOKUP(B74,'ПО КОРИСНИЦИМА'!$C$8:$J$14039,5,FALSE),"") ->  | D74: =SUMIF('ПО КОРИСНИЦИМА'!$G$8:$G$14039,"Свега за пројекат 0601-П25:",'ПО КОРИСНИЦИМА'!$H$8:$H$14039) -> 0 | E74: 0 | F74: =SUMIF('ПО КОРИСНИЦИМА'!$G$8:$G$14039,"Свега за пројекат 0601-П25:",'ПО КОРИСНИЦИМА'!$I$8:$I$14039) -> 0 | G74: 0
B75: 0601-П26 | C75: =IFERROR(VLOOKUP(B75,'ПО КОРИСНИЦИМА'!$C$8:$J$14039,5,FALSE),"") ->  | D75: =SUMIF('ПО КОРИСНИЦИМА'!$G$8:$G$14039,"Свега за пројекат 0601-П26:",'ПО КОРИСНИЦИМА'!$H$8:$H$14039) -> 0 | E75: 0 | F75: =SUMIF('ПО КОРИСНИЦИМА'!$G$8:$G$14039,"Свега за пројекат 0601-П26:",'ПО КОРИСНИЦИМА'!$I$8:$I$14039) -> 0 | G75: 0
B76: 0601-П27 | C76: =IFERROR(VLOOKUP(B76,'ПО КОРИСНИЦИМА'!$C$8:$J$14039,5,FALSE),"") ->  | D76: =SUMIF('ПО КОРИСНИЦИМА'!$G$8:$G$14039,"Свега за пројекат 0601-П27:",'ПО КОРИСНИЦИМА'!$H$8:$H$14039) -> 0 | E76: 0 | F76: =SUMIF('ПО КОРИСНИЦИМА'!$G$8:$G$14039,"Свега за пројекат 0601-П27:",'ПО КОРИСНИЦИМА'!$I$8:$I$14039) -> 0 | G76: 0
B77: 0601-П28 | C77: =IFERROR(VLOOKUP(B77,'ПО КОРИСНИЦИМА'!$C$8:$J$14039,5,FALSE),"") ->  | D77: =SUMIF('ПО КОРИСНИЦИМА'!$G$8:$G$14039,"Свега за пројекат 0601-П28:",'ПО КОРИСНИЦИМА'!$H$8:$H$14039) -> 0 | E77: 0 | F77: =SUMIF('ПО КОРИСНИЦИМА'!$G$8:$G$14039,"Свега за пројекат 0601-П28:",'ПО КОРИСНИЦИМА'!$I$8:$I$14039) -> 0 | G77: 0
B78: 0601-П29 | C78: =IFERROR(VLOOKUP(B78,'ПО КОРИСНИЦИМА'!$C$8:$J$14039,5,FALSE),"") ->  | D78: =SUMIF('ПО КОРИСНИЦИМА'!$G$8:$G$14039,"Свега за пројекат 0601-П29:",'ПО КОРИСНИЦИМА'!$H$8:$H$14039) -> 0 | E78: 0 | F78: =SUMIF('ПО КОРИСНИЦИМА'!$G$8:$G$14039,"Свега за пројекат 0601-П29:",'ПО КОРИСНИЦИМА'!$I$8:$I$14039) -> 0 | G78: 0
B79: 0601-П30 | C79: =IFERROR(VLOOKUP(B79,'ПО КОРИСНИЦИМА'!$C$8:$J$14039,5,FALSE),"") ->  | D79: =SUMIF('ПО КОРИСНИЦИМА'!$G$8:$G$14039,"Свега за пројекат 0601-П30:",'ПО КОРИСНИЦИМА'!$H$8:$H$14039) -> 0 | E79: 0 | F79: =SUMIF('ПО КОРИСНИЦИМА'!$G$8:$G$14039,"Свега за пројекат 0601-П30:",'ПО КОРИСНИЦИМА'!$I$8:$I$14039) -> 0 | G79: 0
B80: 0601-П31 | C80: =IFERROR(VLOOKUP(B80,'ПО КОРИСНИЦИМА'!$C$8:$J$14039,5,FALSE),"") ->  | D80: =SUMIF('ПО КОРИСНИЦИМА'!$G$8:$G$14039,"Свега за пројекат 0601-П31:",'ПО КОРИСНИЦИМА'!$H$8:$H$14039) -> 0 | E80: 0 | F80: =SUMIF('ПО КОРИСНИЦИМА'!$G$8:$G$14039,"Свега за пројекат 0601-П31:",'ПО КОРИСНИЦИМА'!$I$8:$I$14039) -> 0 | G80: 0
B81: 0601-П32 | C81: =IFERROR(VLOOKUP(B81,'ПО КОРИСНИЦИМА'!$C$8:$J$14039,5,FALSE),"") ->  | D81: =SUMIF('ПО КОРИСНИЦИМА'!$G$8:$G$14039,"Свега за пројекат 0601-П32:",'ПО КОРИСНИЦИМА'!$H$8:$H$14039) -> 0 | E81: 0 | F81: =SUMIF('ПО КОРИСНИЦИМА'!$G$8:$G$14039,"Свега за пројекат 0601-П32:",'ПО КОРИСНИЦИМА'!$I$8:$I$14039) -> 0 | G81: 0
B82: 0601-П33 | C82: =IFERROR(VLOOKUP(B82,'ПО КОРИСНИЦИМА'!$C$8:$J$14039,5,FALSE),"") ->  | D82: =SUMIF('ПО КОРИСНИЦИМА'!$G$8:$G$14039,"Свега за пројекат 0601-П33:",'ПО КОРИСНИЦИМА'!$H$8:$H$14039) -> 0 | E82: 0 | F82: =SUMIF('ПО КОРИСНИЦИМА'!$G$8:$G$14039,"Свега за пројекат 0601-П33:",'ПО КОРИСНИЦИМА'!$I$8:$I$14039) -> 0 | G82: 0
B83: 0601-П34 | C83: =IFERROR(VLOOKUP(B83,'ПО КОРИСНИЦИМА'!$C$8:$J$14039,5,FALSE),"") ->  | D83: =SUMIF('ПО КОРИСНИЦИМА'!$G$8:$G$14039,"Свега за пројекат 0601-П34:",'ПО КОРИСНИЦИМА'!$H$8:$H$14039) -> 0 | E83: 0 | F83: =SUMIF('ПО КОРИСНИЦИМА'!$G$8:$G$14039,"Свега за пројекат 0601-П34:",'ПО КОРИСНИЦИМА'!$I$8:$I$14039) -> 0 | G83: 0
B84: 0601-П35 | C84: =IFERROR(VLOOKUP(B84,'ПО КОРИСНИЦИМА'!$C$8:$J$14039,5,FALSE),"") ->  | D84: =SUMIF('ПО КОРИСНИЦИМА'!$G$8:$G$14039,"Свега за пројекат 0601-П35:",'ПО КОРИСНИЦИМА'!$H$8:$H$14039) -> 0 | E84: 0 | F84: =SUMIF('ПО КОРИСНИЦИМА'!$G$8:$G$14039,"Свега за пројекат 0601-П35:",'ПО КОРИСНИЦИМА'!$I$8:$I$14039) -> 0 | G84: 0
B85: 0601-П36 | C85: =IFERROR(VLOOKUP(B85,'ПО КОРИСНИЦИМА'!$C$8:$J$14039,5,FALSE),"") ->  | D85: =SUMIF('ПО КОРИСНИЦИМА'!$G$8:$G$14039,"Свега за пројекат 0601-П36:",'ПО КОРИСНИЦИМА'!$H$8:$H$14039) -> 0 | E85: 0 | F85: =SUMIF('ПО КОРИСНИЦИМА'!$G$8:$G$14039,"Свега за пројекат 0601-П36:",'ПО КОРИСНИЦИМА'!$I$8:$I$14039) -> 0 | G85: 0
B86: 0601-П37 | C86: =IFERROR(VLOOKUP(B86,'ПО КОРИСНИЦИМА'!$C$8:$J$14039,5,FALSE),"") ->  | D86: =SUMIF('ПО КОРИСНИЦИМА'!$G$8:$G$14039,"Свега за пројекат 0601-П37:",'ПО КОРИСНИЦИМА'!$H$8:$H$14039) -> 0 | E86: 0 | F86: =SUMIF('ПО КОРИСНИЦИМА'!$G$8:$G$14039,"Свега за пројекат 0601-П37:",'ПО КОРИСНИЦИМА'!$I$8:$I$14039) -> 0 | G86: 0
B87: 0601-П38 | C87: =IFERROR(VLOOKUP(B87,'ПО КОРИСНИЦИМА'!$C$8:$J$14039,5,FALSE),"") ->  | D87: =SUMIF('ПО КОРИСНИЦИМА'!$G$8:$G$14039,"Свега за пројекат 0601-П38:",'ПО КОРИСНИЦИМА'!$H$8:$H$14039) -> 0 | E87: 0 | F87: =SUMIF('ПО КОРИСНИЦИМА'!$G$8:$G$14039,"Свега за пројекат 0601-П38:",'ПО КОРИСНИЦИМА'!$I$8:$I$14039) -> 0 | G87: 0
B88: 0601-П39 | C88: =IFERROR(VLOOKUP(B88,'ПО КОРИСНИЦИМА'!$C$8:$J$14039,5,FALSE),"") ->  | D88: =SUMIF('ПО КОРИСНИЦИМА'!$G$8:$G$14039,"Свега за пројекат 0601-П39:",'ПО КОРИСНИЦИМА'!$H$8:$H$14039) -> 0 | E88: 0 | F88: =SUMIF('ПО КОРИСНИЦИМА'!$G$8:$G$14039,"Свега за пројекат 0601-П39:",'ПО КОРИСНИЦИМА'!$I$8:$I$14039) -> 0 | G88: 0
B89: 0601-П40 | C89: =IFERROR(VLOOKUP(B89,'ПО КОРИСНИЦИМА'!$C$8:$J$14039,5,FALSE),"") ->  | D89: =SUMIF('ПО КОРИСНИЦИМА'!$G$8:$G$14039,"Свега за пројекат 0601-П40:",'ПО КОРИСНИЦИМА'!$H$8:$H$14039) -> 0 | E89: 0 | F89: =SUMIF('ПО КОРИСНИЦИМА'!$G$8:$G$14039,"Свега за пројекат 0601-П40:",'ПО КОРИСНИЦИМА'!$I$8:$I$14039) -> 0 | G89: 0
B90: 0601-П41 | C90: =IFERROR(VLOOKUP(B90,'ПО КОРИСНИЦИМА'!$C$8:$J$14039,5,FALSE),"") ->  | D90: =SUMIF('ПО КОРИСНИЦИМА'!$G$8:$G$14039,"Свега за пројекат 0601-П41:",'ПО КОРИСНИЦИМА'!$H$8:$H$14039) -> 0 | E90: 0 | F90: =SUMIF('ПО КОРИСНИЦИМА'!$G$8:$G$14039,"Свега за пројекат 0601-П41:",'ПО КОРИСНИЦИМА'!$I$8:$I$14039) -> 0 | G90: 0
B91: 0601-П42 | C91: =IFERROR(VLOOKUP(B91,'ПО КОРИСНИЦИМА'!$C$8:$J$14039,5,FALSE),"") ->  | D91: =SUMIF('ПО КОРИСНИЦИМА'!$G$8:$G$14039,"Свега за пројекат 0601-П42:",'ПО КОРИСНИЦИМА'!$H$8:$H$14039) -> 0 | E91: 0 | F91: =SUMIF('ПО КОРИСНИЦИМА'!$G$8:$G$14039,"Свега за пројекат 0601-П42:",'ПО КОРИСНИЦИМА'!$I$8:$I$14039) -> 0 | G91: 0
B92: 0601-П43 | C92: =IFERROR(VLOOKUP(B92,'ПО КОРИСНИЦИМА'!$C$8:$J$14039,5,FALSE),"") ->  | D92: =SUMIF('ПО КОРИСНИЦИМА'!$G$8:$G$14039,"Свега за пројекат 0601-П43:",'ПО КОРИСНИЦИМА'!$H$8:$H$14039) -> 0 | E92: 0 | F92: =SUMIF('ПО КОРИСНИЦИМА'!$G$8:$G$14039,"Свега за пројекат 0601-П43:",'ПО КОРИСНИЦИМА'!$I$8:$I$14039) -> 0 | G92: 0
B93: 0601-П44 | C93: =IFERROR(VLOOKUP(B93,'ПО КОРИСНИЦИМА'!$C$8:$J$14039,5,FALSE),"") ->  | D93: =SUMIF('ПО КОРИСНИЦИМА'!$G$8:$G$14039,"Свега за пројекат 0601-П44:",'ПО КОРИСНИЦИМА'!$H$8:$H$14039) -> 0 | E93: 0 | F93: =SUMIF('ПО КОРИСНИЦИМА'!$G$8:$G$14039,"Свега за пројекат 0601-П44:",'ПО КОРИСНИЦИМА'!$I$8:$I$14039) -> 0 | G93: 0
B94: 0601-П45 | C94: =IFERROR(VLOOKUP(B94,'ПО КОРИСНИЦИМА'!$C$8:$J$14039,5,FALSE),"") ->  | D94: =SUMIF('ПО КОРИСНИЦИМА'!$G$8:$G$14039,"Свега за пројекат 0601-П45:",'ПО КОРИСНИЦИМА'!$H$8:$H$14039) -> 0 | E94: 0 | F94: =SUMIF('ПО КОРИСНИЦИМА'!$G$8:$G$14039,"Свега за пројекат 0601-П45:",'ПО КОРИСНИЦИМА'!$I$8:$I$14039) -> 0 | G94: 0
B95: 0601-П46 | C95: =IFERROR(VLOOKUP(B95,'ПО КОРИСНИЦИМА'!$C$8:$J$14039,5,FALSE),"") ->  | D95: =SUMIF('ПО КОРИСНИЦИМА'!$G$8:$G$14039,"Свега за пројекат 0601-П46:",'ПО КОРИСНИЦИМА'!$H$8:$H$14039) -> 0 | E95: 0 | F95: =SUMIF('ПО КОРИСНИЦИМА'!$G$8:$G$14039,"Свега за пројекат 0601-П46:",'ПО КОРИСНИЦИМА'!$I$8:$I$14039) -> 0 | G95: 0
B96: 0601-П47 | C96: =IFERROR(VLOOKUP(B96,'ПО КОРИСНИЦИМА'!$C$8:$J$14039,5,FALSE),"") ->  | D96: =SUMIF('ПО КОРИСНИЦИМА'!$G$8:$G$14039,"Свега за пројекат 0601-П47:",'ПО КОРИСНИЦИМА'!$H$8:$H$14039) -> 0 | E96: 0 | F96: =SUMIF('ПО КОРИСНИЦИМА'!$G$8:$G$14039,"Свега за пројекат 0601-П47:",'ПО КОРИСНИЦИМА'!$I$8:$I$14039) -> 0 | G96: 0
B97: 0601-П48 | C97: =IFERROR(VLOOKUP(B97,'ПО КОРИСНИЦИМА'!$C$8:$J$14039,5,FALSE),"") ->  | D97: =SUMIF('ПО КОРИСНИЦИМА'!$G$8:$G$14039,"Свега за пројекат 0601-П48:",'ПО КОРИСНИЦИМА'!$H$8:$H$14039) -> 0 | E97: 0 | F97: =SUMIF('ПО КОРИСНИЦИМА'!$G$8:$G$14039,"Свега за пројекат 0601-П48:",'ПО КОРИСНИЦИМА'!$I$8:$I$14039) -> 0 | G97: 0
B98: 0601-П49 | C98: =IFERROR(VLOOKUP(B98,'ПО КОРИСНИЦИМА'!$C$8:$J$14039,5,FALSE),"") ->  | D98: =SUMIF('ПО КОРИСНИЦИМА'!$G$8:$G$14039,"Свега за пројекат 0601-П49:",'ПО КОРИСНИЦИМА'!$H$8:$H$14039) -> 0 | E98: 0 | F98: =SUMIF('ПО КОРИСНИЦИМА'!$G$8:$G$14039,"Свега за пројекат 0601-П49:",'ПО КОРИСНИЦИМА'!$I$8:$I$14039) -> 0 | G98: 0
B99: 0601-П50 | C99: =IFERROR(VLOOKUP(B99,'ПО КОРИСНИЦИМА'!$C$8:$J$14039,5,FALSE),"") ->  | D99: =SUMIF('ПО КОРИСНИЦИМА'!$G$8:$G$14039,"Свега за пројекат 0601-П50:",'ПО КОРИСНИЦИМА'!$H$8:$H$14039) -> 0 | E99: =IFERROR(D99/$D$601,"-") -> 0 | F99: =SUMIF('ПО КОРИСНИЦИМА'!$G$8:$G$14039,"Свега за пројекат 0601-П50:",'ПО КОРИСНИЦИМА'!$I$8:$I$14039) -> 0 | G99: 0
A100: 1501 | C100: Програм 3. Локални економски развој | D100: =SUM(D101:D129) -> 0 | E100: 0 | F100: =SUM(F101:F129) -> 0 | G100: 0
B101: 1501-0001 | C101: Подршка постојећој привреди | D101: =SUMIF('ПО КОРИСНИЦИМА'!$G$8:$G$14039,"Свега за програмску активност 1501-0001:",'ПО КОРИСНИЦИМА'!$H$8:$H$14039) -> 0 | E101: 0 | F101: =SUMIF('ПО КОРИСНИЦИМА'!$G$8:$G$14039,"Свега за програмску активност 1501-0001:",'ПО КОРИСНИЦИМА'!$I$8:$I$14039) -> 0 | G101: 0
B102: 1501-0002 | C102: Унапређење привредног амбијента | D102: =SUMIF('ПО КОРИСНИЦИМА'!$G$8:$G$14039,"Свега за програмску активност 1501-0002:",'ПО КОРИСНИЦИМА'!$H$8:$H$14039) -> 0 | E102: 0 | F102: =SUMIF('ПО КОРИСНИЦИМА'!$G$8:$G$14039,"Свега за програмску активност 1501-0002:",'ПО КОРИСНИЦИМА'!$I$8:$I$14039) -> 0 | G102: 0
B103: 1501-0003 | C103: Подстицаји за развој предузетништва | D103: =SUMIF('ПО КОРИСНИЦИМА'!$G$8:$G$14039,"Свега за програмску активност 1501-0003:",'ПО КОРИСНИЦИМА'!$H$8:$H$14039) -> 0 | E103: 0 | F103: =SUMIF('ПО КОРИСНИЦИМА'!$G$8:$G$14039,"Свега за програмску активност 1501-0003:",'ПО КОРИСНИЦИМА'!$I$8:$I$14039) -> 0 | G103: 0
B104: 1501-0004 | C104: Одржавање економске инфраструктуре | D104: =SUMIF('ПО КОРИСНИЦИМА'!$G$8:$G$14039,"Свега за програмску активност 1501-0004:",'ПО КОРИСНИЦИМА'!$H$8:$H$14039) -> 0 | E104: 0 | F104: =SUMIF('ПО КОРИСНИЦИМА'!$G$8:$G$14039,"Свега за програмску активност 1501-0004:",'ПО КОРИСНИЦИМА'!$I$8:$I$14039) -> 0 | G104: 0
B105: 1501-0005 | C105: Финансијска подршка локалном економском развоју | D105: =SUMIF('ПО КОРИСНИЦИМА'!$G$8:$G$14039,"Свега за програмску активност 1501-0005:",'ПО КОРИСНИЦИМА'!$H$8:$H$14039) -> 0 | E105: 0 | F105: =SUMIF('ПО КОРИСНИЦИМА'!$G$8:$G$14039,"Свега за програмску активност 1501-0005:",'ПО КОРИСНИЦИМА'!$I$8:$I$14039) -> 0 | G105: 0
B106: 1501-П1 | C106: =IFERROR(VLOOKUP(B106,'ПО КОРИСНИЦИМА'!$C$8:$J$14039,5,FALSE),"") ->  | D106: =SUMIF('ПО КОРИСНИЦИМА'!$G$8:$G$14039,"Свега за пројекат 1501-П1:",'ПО КОРИСНИЦИМА'!$H$8:$H$14039) -> 0 | E106: 0 | F106: =SUMIF('ПО КОРИСНИЦИМА'!$G$8:$G$14039,"Свега за пројекат 1501-П1:",'ПО КОРИСНИЦИМА'!$I$8:$I$14039) -> 0 | G106: =D106+F106 -> 0
B107: 1501-П2 | C107: =IFERROR(VLOOKUP(B107,'ПО КОРИСНИЦИМА'!$C$8:$J$14039,5,FALSE),"") ->  | D107: =SUMIF('ПО КОРИСНИЦИМА'!$G$8:$G$14039,"Свега за пројекат 1501-П2:",'ПО КОРИСНИЦИМА'!$H$8:$H$14039) -> 0 | E107: =IFERROR(D107/$D$601,"-") -> 0 | F107: =SUMIF('ПО КОРИСНИЦИМА'!$G$8:$G$14039,"Свега за пројекат 1501-П2:",'ПО КОРИСНИЦИМА'!$I$8:$I$14039) -> 0 | G107: 0
B108: 1501-П3 | C108: =IFERROR(VLOOKUP(B108,'ПО КОРИСНИЦИМА'!$C$8:$J$14039,5,FALSE),"") ->  | D108: =SUMIF('ПО КОРИСНИЦИМА'!$G$8:$G$14039,"Свега за пројекат 1501-П3:",'ПО КОРИСНИЦИМА'!$H$8:$H$14039) -> 0 | E108: 0 | F108: =SUMIF('ПО КОРИСНИЦИМА'!$G$8:$G$14039,"Свега за пројекат 1501-П3:",'ПО КОРИСНИЦИМА'!$I$8:$I$14039) -> 0 | G108: 0
B109: 1501-П4 | D109: =SUMIF('ПО КОРИСНИЦИМА'!$G$8:$G$14039,"Свега за пројекат 1501-П4:",'ПО КОРИСНИЦИМА'!$H$8:$H$14039) -> 0 | E109: 0 | F109: =SUMIF('ПО КОРИСНИЦИМА'!$G$8:$G$14039,"Свега за пројекат 1501-П4:",'ПО КОРИСНИЦИМА'!$I$8:$I$14039) -> 0 | G109: 0
B110: 1501-П5 | D110: =SUMIF('ПО КОРИСНИЦИМА'!$G$8:$G$14039,"Свега за пројекат 1501-П5:",'ПО КОРИСНИЦИМА'!$H$8:$H$14039) -> 0 | E110: 0 | F110: =SUMIF('ПО КОРИСНИЦИМА'!$G$8:$G$14039,"Свега за пројекат 1501-П5:",'ПО КОРИСНИЦИМА'!$I$8:$I$14039) -> 0 | G110: 0
B111: 1501-П6 | D111: =SUMIF('ПО КОРИСНИЦИМА'!$G$8:$G$14039,"Свега за пројекат 1501-П6:",'ПО КОРИСНИЦИМА'!$H$8:$H$14039) -> 0 | E111: 0 | F111: =SUMIF('ПО КОРИСНИЦИМА'!$G$8:$G$14039,"Свега за пројекат 1501-П6:",'ПО КОРИСНИЦИМА'!$I$8:$I$14039) -> 0 | G111: 0
B112: 1501-П7 | D112: =SUMIF('ПО КОРИСНИЦИМА'!$G$8:$G$14039,"Свега за пројекат 1501-П7:",'ПО КОРИСНИЦИМА'!$H$8:$H$14039) -> 0 | E112: 0 | F112: =SUMIF('ПО КОРИСНИЦИМА'!$G$8:$G$14039,"Свега за пројекат 1501-П7:",'ПО КОРИСНИЦИМА'!$I$8:$I$14039) -> 0 | G112: 0
B113: 1501-П8 | D113: =SUMIF('ПО КОРИСНИЦИМА'!$G$8:$G$14039,"Свега за пројекат 1501-П8:",'ПО КОРИСНИЦИМА'!$H$8:$H$14039) -> 0 | E113: 0 | F113: =SUMIF('ПО КОРИСНИЦИМА'!$G$8:$G$14039,"Свега за пројекат 1501-П8:",'ПО КОРИСНИЦИМА'!$I$8:$I$14039) -> 0 | G113: 0
B114: 1501-П9 | D114: =SUMIF('ПО КОРИСНИЦИМА'!$G$8:$G$14039,"Свега за пројекат 1501-П9:",'ПО КОРИСНИЦИМА'!$H$8:$H$14039) -> 0 | E114: 0 | F114: =SUMIF('ПО КОРИСНИЦИМА'!$G$8:$G$14039,"Свега за пројекат 1501-П9:",'ПО КОРИСНИЦИМА'!$I$8:$I$14039) -> 0 | G114: 0
B115: 1501-П10 | D115: =SUMIF('ПО КОРИСНИЦИМА'!$G$8:$G$14039,"Свега за пројекат 1501-П10:",'ПО КОРИСНИЦИМА'!$H$8:$H$14039) -> 0 | E115: 0 | F115: =SUMIF('ПО КОРИСНИЦИМА'!$G$8:$G$14039,"Свега за пројекат 1501-П10:",'ПО КОРИСНИЦИМА'!$I$8:$I$14039) -> 0 | G115: 0
B116: 1501-П11 | D116: =SUMIF('ПО КОРИСНИЦИМА'!$G$8:$G$14039,"Свега за пројекат 1501-П11:",'ПО КОРИСНИЦИМА'!$H$8:$H$14039) -> 0 | E116: 0 | F116: =SUMIF('ПО КОРИСНИЦИМА'!$G$8:$G$14039,"Свега за пројекат 1501-П11:",'ПО КОРИСНИЦИМА'!$I$8:$I$14039) -> 0 | G116: 0
B117: 1501-П12 | D117: =SUMIF('ПО КОРИСНИЦИМА'!$G$8:$G$14039,"Свега за пројекат 1501-П12:",'ПО КОРИСНИЦИМА'!$H$8:$H$14039) -> 0 | E117: 0 | F117: =SUMIF('ПО КОРИСНИЦИМА'!$G$8:$G$14039,"Свега за пројекат 1501-П12:",'ПО КОРИСНИЦИМА'!$I$8:$I$14039) -> 0 | G117: 0
B118: 1501-П13 | D118: =SUMIF('ПО КОРИСНИЦИМА'!$G$8:$G$14039,"Свега за пројекат 1501-П13:",'ПО КОРИСНИЦИМА'!$H$8:$H$14039) -> 0 | E118: 0 | F118: =SUMIF('ПО КОРИСНИЦИМА'!$G$8:$G$14039,"Свега за пројекат 1501-П13:",'ПО КОРИСНИЦИМА'!$I$8:$I$14039) -> 0 | G118: 0
B119: 1501-П14 | D119: =SUMIF('ПО КОРИСНИЦИМА'!$G$8:$G$14039,"Свега за пројекат 1501-П14:",'ПО КОРИСНИЦИМА'!$H$8:$H$14039) -> 0 | E119: 0 | F119: =SUMIF('ПО КОРИСНИЦИМА'!$G$8:$G$14039,"Свега за пројекат 1501-П14:",'ПО КОРИСНИЦИМА'!$I$8:$I$14039) -> 0 | G119: 0
B120: 1501-П15 | D120: =SUMIF('ПО КОРИСНИЦИМА'!$G$8:$G$14039,"Свега за пројекат 1501-П15:",'ПО КОРИСНИЦИМА'!$H$8:$H$14039) -> 0 | E120: 0 | F120: =SUMIF('ПО КОРИСНИЦИМА'!$G$8:$G$14039,"Свега за пројекат 1501-П15:",'ПО КОРИСНИЦИМА'!$I$8:$I$14039) -> 0 | G120: 0
B121: 1501-П16 | D121: =SUMIF('ПО КОРИСНИЦИМА'!$G$8:$G$14039,"Свега за пројекат 1501-П16:",'ПО КОРИСНИЦИМА'!$H$8:$H$14039) -> 0 | E121: 0 | F121: =SUMIF('ПО КОРИСНИЦИМА'!$G$8:$G$14039,"Свега за пројекат 1501-П16:",'ПО КОРИСНИЦИМА'!$I$8:$I$14039) -> 0 | G121: 0
B122: 1501-П17 | D122: =SUMIF('ПО КОРИСНИЦИМА'!$G$8:$G$14039,"Свега за пројекат 1501-П17:",'ПО КОРИСНИЦИМА'!$H$8:$H$14039) -> 0 | E122: 0 | F122: =SUMIF('ПО КОРИСНИЦИМА'!$G$8:$G$14039,"Свега за пројекат 1501-П17:",'ПО КОРИСНИЦИМА'!$I$8:$I$14039) -> 0 | G122: 0
B123: 1501-П18 | D123: =SUMIF('ПО КОРИСНИЦИМА'!$G$8:$G$14039,"Свега за пројекат 1501-П18:",'ПО КОРИСНИЦИМА'!$H$8:$H$14039) -> 0 | E123: 0 | F123: =SUMIF('ПО КОРИСНИЦИМА'!$G$8:$G$14039,"Свега за пројекат 1501-П18:",'ПО КОРИСНИЦИМА'!$I$8:$I$14039) -> 0 | G123: 0
B124: 1501-П19 | D124: =SUMIF('ПО КОРИСНИЦИМА'!$G$8:$G$14039,"Свега за пројекат 1501-П19:",'ПО КОРИСНИЦИМА'!$H$8:$H$14039) -> 0 | E124: 0 | F124: =SUMIF('ПО КОРИСНИЦИМА'!$G$8:$G$14039,"Свега за пројекат 1501-П19:",'ПО КОРИСНИЦИМА'!$I$8:$I$14039) -> 0 | G124: 0
B125: 1501-П20 | D125: =SUMIF('ПО КОРИСНИЦИМА'!$G$8:$G$14039,"Свега за пројекат 1501-П20:",'ПО КОРИСНИЦИМА'!$H$8:$H$14039) -> 0 | E125: 0 | F125: =SUMIF('ПО КОРИСНИЦИМА'!$G$8:$G$14039,"Свега за пројекат 1501-П20:",'ПО КОРИСНИЦИМА'!$I$8:$I$14039) -> 0 | G125: 0
B126: 1501-П21 | D126: =SUMIF('ПО КОРИСНИЦИМА'!$G$8:$G$14039,"Свега за пројекат 1501-П21:",'ПО КОРИСНИЦИМА'!$H$8:$H$14039) -> 0 | E126: 0 | F126: =SUMIF('ПО КОРИСНИЦИМА'!$G$8:$G$14039,"Свега за пројекат 1501-П21:",'ПО КОРИСНИЦИМА'!$I$8:$I$14039) -> 0 | G126: 0
B127: 1501-П22 | D127: =SUMIF('ПО КОРИСНИЦИМА'!$G$8:$G$14039,"Свега за пројекат 1501-П22:",'ПО КОРИСНИЦИМА'!$H$8:$H$14039) -> 0 | E127: 0 | F127: =SUMIF('ПО КОРИСНИЦИМА'!$G$8:$G$14039,"Свега за пројекат 1501-П22:",'ПО КОРИСНИЦИМА'!$I$8:$I$14039) -> 0 | G127: 0
B128: 1501-П23 | D128: =SUMIF('ПО КОРИСНИЦИМА'!$G$8:$G$14039,"Свега за пројекат 1501-П23:",'ПО КОРИСНИЦИМА'!$H$8:$H$14039) -> 0 | E128: 0 | F128: =SUMIF('ПО КОРИСНИЦИМА'!$G$8:$G$14039,"Свега за пројекат 1501-П23:",'ПО КОРИСНИЦИМА'!$I$8:$I$14039) -> 0 | G128: 0
B129: 1501-П24 | D129: =SUMIF('ПО КОРИСНИЦИМА'!$G$8:$G$14039,"Свега за пројекат 1501-П24:",'ПО КОРИСНИЦИМА'!$H$8:$H$14039) -> 0 | E129: 0 | F129: =SUMIF('ПО КОРИСНИЦИМА'!$G$8:$G$14039,"Свега за пројекат 1501-П24:",'ПО КОРИСНИЦИМА'!$I$8:$I$14039) -> 0 | G129: 0
A130: 1502 | C130: Програм 4. Развој туризма | D130: =SUM(D131:D156) -> 7811000 | E130: =IFERROR(D130/$D$601,"-") -> 0.01589443054 | F130: =SUM(F131:F156) -> 3300000 | G130: 11111000
B131: 1502-0001 | C131: Управљање развојем туризма | D131: =SUMIF('ПО КОРИСНИЦИМА'!$G$8:$G$14039,"Свега за програмску активност 1502-0001:",'ПО КОРИСНИЦИМА'!$H$8:$H$14039) -> 3136000 | E131: =IFERROR(D131/$D$601,"-") -> 0.006381376798 | F131: =SUMIF('ПО КОРИСНИЦИМА'!$G$8:$G$14039,"Свега за програмску активност 1502-0001:",'ПО КОРИСНИЦИМА'!$I$8:$I$14039) -> 1300000 | G131: 4436000
B132: 1502-0002 | C132: Туристичка промоција | D132: =SUMIF('ПО КОРИСНИЦИМА'!$G$8:$G$14039,"Свега за програмску активност 1502-0002:",'ПО КОРИСНИЦИМА'!$H$8:$H$14039) -> 950000 | E132: =IFERROR(D132/$D$601,"-") -> 0.001933133915 | F132: =SUMIF('ПО КОРИСНИЦИМА'!$G$8:$G$14039,"Свега за програмску активност 1502-0002:",'ПО КОРИСНИЦИМА'!$I$8:$I$14039) -> 0 | G132: 950000
B133: 1502-П1 | C133: =IFERROR(VLOOKUP(B133,'ПО КОРИСНИЦИМА'!$C$8:$J$14039,5,FALSE),"") -> Дринска регата | D133: =SUMIF('ПО КОРИСНИЦИМА'!$G$8:$G$14039,"Свега за пројекат 1502-П1:",'ПО КОРИСНИЦИМА'!$H$8:$H$14039) -> 3325000 | E133: =IFERROR(D133/$D$601,"-") -> 0.006765968704 | F133: =SUMIF('ПО КОРИСНИЦИМА'!$G$8:$G$14039,"Свега за пројекат 1502-П1:",'ПО КОРИСНИЦИМА'!$I$8:$I$14039) -> 2000000 | G133: 5325000
B134: 1502-П2 | C134: =IFERROR(VLOOKUP(B134,'ПО КОРИСНИЦИМА'!$C$8:$J$14039,5,FALSE),"") -> Гастро фест | D134: =SUMIF('ПО КОРИСНИЦИМА'!$G$8:$G$14039,"Свега за пројекат 1502-П2:",'ПО КОРИСНИЦИМА'!$H$8:$H$14039) -> 400000 | E134: =IFERROR(D134/$D$601,"-") -> 0.0008139511222 | F134: =SUMIF('ПО КОРИСНИЦИМА'!$G$8:$G$14039,"Свега за пројекат 1502-П2:",'ПО КОРИСНИЦИМА'!$I$8:$I$14039) -> 0 | G134: 400000
B135: 1502-П3 | C135: =IFERROR(VLOOKUP(B135,'ПО КОРИСНИЦИМА'!$C$8:$J$14039,5,FALSE),"") -> Етно сајам | D135: =SUMIF('ПО КОРИСНИЦИМА'!$G$8:$G$14039,"Свега за пројекат 1502-П3:",'ПО КОРИСНИЦИМА'!$H$8:$H$14039) -> 0 | E135: 0 | F135: =SUMIF('ПО КОРИСНИЦИМА'!$G$8:$G$14039,"Свега за пројекат 1502-П3:",'ПО КОРИСНИЦИМА'!$I$8:$I$14039) -> 0 | G135: 0
B136: 1502-П4 | C136: =IFERROR(VLOOKUP(B136,'ПО КОРИСНИЦИМА'!$C$8:$J$14039,5,FALSE),"") -> Меморијал Бакије Бакића | D136: =SUMIF('ПО КОРИСНИЦИМА'!$G$8:$G$14039,"Свега за пројекат 1502-П4:",'ПО КОРИСНИЦИМА'!$H$8:$H$14039) -> 0 | E136: 0 | F136: =SUMIF('ПО КОРИСНИЦИМА'!$G$8:$G$14039,"Свега за пројекат 1502-П4:",'ПО КОРИСНИЦИМА'!$I$8:$I$14039) -> 0 | G136: 0
B137: 1502-П5 | C137: =IFERROR(VLOOKUP(B137,'ПО КОРИСНИЦИМА'!$C$8:$J$14039,5,FALSE),"") -> Новогодишње украшавање града | D137: =SUMIF('ПО КОРИСНИЦИМА'!$G$8:$G$14039,"Свега за пројекат 1502-П5:",'ПО КОРИСНИЦИМА'!$H$8:$H$14039) -> 0 | E137: 0 | F137: =SUMIF('ПО КОРИСНИЦИМА'!$G$8:$G$14039,"Свега за пројекат 1502-П5:",'ПО КОРИСНИЦИМА'!$I$8:$I$14039) -> 0 | G137: 0
B138: 1502-П6 | C138: =IFERROR(VLOOKUP(B138,'ПО КОРИСНИЦИМА'!$C$8:$J$14039,5,FALSE),"") -> Постављање Ски лифта "Суво Рудиште" | D138: =SUMIF('ПО КОРИСНИЦИМА'!$G$8:$G$14039,"Свега за пројекат 1502-П6:",'ПО КОРИСНИЦИМА'!$H$8:$H$14039) -> 0 | E138: 0 | F138: =SUMIF('ПО КОРИСНИЦИМА'!$G$8:$G$14039,"Свега за пројекат 1502-П6:",'ПО КОРИСНИЦИМА'!$I$8:$I$14039) -> 0 | G138: 0
B139: 1502-П7 | C139: =IFERROR(VLOOKUP(B139,'ПО КОРИСНИЦИМА'!$C$8:$J$14039,5,FALSE),"") ->  | D139: =SUMIF('ПО КОРИСНИЦИМА'!$G$8:$G$14039,"Свега за пројекат 1502-П7:",'ПО КОРИСНИЦИМА'!$H$8:$H$14039) -> 0 | E139: 0 | F139: =SUMIF('ПО КОРИСНИЦИМА'!$G$8:$G$14039,"Свега за пројекат 1502-П7:",'ПО КОРИСНИЦИМА'!$I$8:$I$14039) -> 0 | G139: 0
B140: 1502-П8 | C140: =IFERROR(VLOOKUP(B140,'ПО КОРИСНИЦИМА'!$C$8:$J$14039,5,FALSE),"") ->  | D140: =SUMIF('ПО КОРИСНИЦИМА'!$G$8:$G$14039,"Свега за пројекат 1502-П8:",'ПО КОРИСНИЦИМА'!$H$8:$H$14039) -> 0 | E140: 0 | F140: =SUMIF('ПО КОРИСНИЦИМА'!$G$8:$G$14039,"Свега за пројекат 1502-П8:",'ПО КОРИСНИЦИМА'!$I$8:$I$14039) -> 0 | G140: 0
B141: 1502-П9 | C141: =IFERROR(VLOOKUP(B141,'ПО КОРИСНИЦИМА'!$C$8:$J$14039,5,FALSE),"") ->  | D141: =SUMIF('ПО КОРИСНИЦИМА'!$G$8:$G$14039,"Свега за пројекат 1502-П9:",'ПО КОРИСНИЦИМА'!$H$8:$H$14039) -> 0 | E141: 0 | F141: =SUMIF('ПО КОРИСНИЦИМА'!$G$8:$G$14039,"Свега за пројекат 1502-П9:",'ПО КОРИСНИЦИМА'!$I$8:$I$14039) -> 0 | G141: 0
B142: 1502-П10 | C142: =IFERROR(VLOOKUP(B142,'ПО КОРИСНИЦИМА'!$C$8:$J$14039,5,FALSE),"") ->  | D142: =SUMIF('ПО КОРИСНИЦИМА'!$G$8:$G$14039,"Свега за пројекат 1502-П10:",'ПО КОРИСНИЦИМА'!$H$8:$H$14039) -> 0 | E142: 0 | F142: =SUMIF('ПО КОРИСНИЦИМА'!$G$8:$G$14039,"Свега за пројекат 1502-П10:",'ПО КОРИСНИЦИМА'!$I$8:$I$14039) -> 0 | G142: 0
B143: 1502-П11 | C143: =IFERROR(VLOOKUP(B143,'ПО КОРИСНИЦИМА'!$C$8:$J$14039,5,FALSE),"") ->  | D143: =SUMIF('ПО КОРИСНИЦИМА'!$G$8:$G$14039,"Свега за пројекат 1502-П11:",'ПО КОРИСНИЦИМА'!$H$8:$H$14039) -> 0 | E143: 0 | F143: =SUMIF('ПО КОРИСНИЦИМА'!$G$8:$G$14039,"Свега за пројекат 1502-П11:",'ПО КОРИСНИЦИМА'!$I$8:$I$14039) -> 0 | G143: 0
B144: 1502-П12 | C144: =IFERROR(VLOOKUP(B144,'ПО КОРИСНИЦИМА'!$C$8:$J$14039,5,FALSE),"") ->  | D144: =SUMIF('ПО КОРИСНИЦИМА'!$G$8:$G$14039,"Свега за пројекат 1502-П12:",'ПО КОРИСНИЦИМА'!$H$8:$H$14039) -> 0 | E144: 0 | F144: =SUMIF('ПО КОРИСНИЦИМА'!$G$8:$G$14039,"Свега за пројекат 1502-П12:",'ПО КОРИСНИЦИМА'!$I$8:$I$14039) -> 0 | G144: 0
B145: 1502-П13 | C145: =IFERROR(VLOOKUP(B145,'ПО КОРИСНИЦИМА'!$C$8:$J$14039,5,FALSE),"") ->  | D145: =SUMIF('ПО КОРИСНИЦИМА'!$G$8:$G$14039,"Свега за пројекат 1502-П13:",'ПО КОРИСНИЦИМА'!$H$8:$H$14039) -> 0 | E145: 0 | F145: =SUMIF('ПО КОРИСНИЦИМА'!$G$8:$G$14039,"Свега за пројекат 1502-П13:",'ПО КОРИСНИЦИМА'!$I$8:$I$14039) -> 0 | G145: 0
B146: 1502-П14 | C146: =IFERROR(VLOOKUP(B146,'ПО КОРИСНИЦИМА'!$C$8:$J$14039,5,FALSE),"") ->  | D146: =SUMIF('ПО КОРИСНИЦИМА'!$G$8:$G$14039,"Свега за пројекат 1502-П14:",'ПО КОРИСНИЦИМА'!$H$8:$H$14039) -> 0 | E146: 0 | F146: =SUMIF('ПО КОРИСНИЦИМА'!$G$8:$G$14039,"Свега за пројекат 1502-П14:",'ПО КОРИСНИЦИМА'!$I$8:$I$14039) -> 0 | G146: 0
B147: 1502-П15 | C147: =IFERROR(VLOOKUP(B147,'ПО КОРИСНИЦИМА'!$C$8:$J$14039,5,FALSE),"") ->  | D147: =SUMIF('ПО КОРИСНИЦИМА'!$G$8:$G$14039,"Свега за пројекат 1502-П15:",'ПО КОРИСНИЦИМА'!$H$8:$H$14039) -> 0 | E147: 0 | F147: =SUMIF('ПО КОРИСНИЦИМА'!$G$8:$G$14039,"Свега за пројекат 1502-П15:",'ПО КОРИСНИЦИМА'!$I$8:$I$14039) -> 0 | G147: 0
B148: 1502-П16 | C148: =IFERROR(VLOOKUP(B148,'ПО КОРИСНИЦИМА'!$C$8:$J$14039,5,FALSE),"") ->  | D148: =SUMIF('ПО КОРИСНИЦИМА'!$G$8:$G$14039,"Свега за пројекат 1502-П16:",'ПО КОРИСНИЦИМА'!$H$8:$H$14039) -> 0 | E148: 0 | F148: =SUMIF('ПО КОРИСНИЦИМА'!$G$8:$G$14039,"Свега за пројекат 1502-П16:",'ПО КОРИСНИЦИМА'!$I$8:$I$14039) -> 0 | G148: 0
B149: 1502-П17 | C149: =IFERROR(VLOOKUP(B149,'ПО КОРИСНИЦИМА'!$C$8:$J$14039,5,FALSE),"") ->  | D149: =SUMIF('ПО КОРИСНИЦИМА'!$G$8:$G$14039,"Свега за пројекат 1502-П17:",'ПО КОРИСНИЦИМА'!$H$8:$H$14039) -> 0 | E149: 0 | F149: =SUMIF('ПО КОРИСНИЦИМА'!$G$8:$G$14039,"Свега за пројекат 1502-П17:",'ПО КОРИСНИЦИМА'!$I$8:$I$14039) -> 0 | G149: 0
B150: 1502-П18 | C150: =IFERROR(VLOOKUP(B150,'ПО КОРИСНИЦИМА'!$C$8:$J$14039,5,FALSE),"") ->  | D150: =SUMIF('ПО КОРИСНИЦИМА'!$G$8:$G$14039,"Свега за пројекат 1502-П18:",'ПО КОРИСНИЦИМА'!$H$8:$H$14039) -> 0 | E150: 0 | F150: =SUMIF('ПО КОРИСНИЦИМА'!$G$8:$G$14039,"Свега за пројекат 1502-П18:",'ПО КОРИСНИЦИМА'!$I$8:$I$14039) -> 0 | G150: 0
B151: 1502-П19 | C151: =IFERROR(VLOOKUP(B151,'ПО КОРИСНИЦИМА'!$C$8:$J$14039,5,FALSE),"") ->  | D151: =SUMIF('ПО КОРИСНИЦИМА'!$G$8:$G$14039,"Свега за пројекат 1502-П19:",'ПО КОРИСНИЦИМА'!$H$8:$H$14039) -> 0 | E151: 0 | F151: =SUMIF('ПО КОРИСНИЦИМА'!$G$8:$G$14039,"Свега за пројекат 1502-П19:",'ПО КОРИСНИЦИМА'!$I$8:$I$14039) -> 0 | G151: 0
B152: 1502-П20 | C152: =IFERROR(VLOOKUP(B152,'ПО КОРИСНИЦИМА'!$C$8:$J$14039,5,FALSE),"") ->  | D152: =SUMIF('ПО КОРИСНИЦИМА'!$G$8:$G$14039,"Свега за пројекат 1502-П20:",'ПО КОРИСНИЦИМА'!$H$8:$H$14039) -> 0 | E152: 0 | F152: =SUMIF('ПО КОРИСНИЦИМА'!$G$8:$G$14039,"Свега за пројекат 1502-П20:",'ПО КОРИСНИЦИМА'!$I$8:$I$14039) -> 0 | G152: 0
B153: 1502-П21 | C153: =IFERROR(VLOOKUP(B153,'ПО КОРИСНИЦИМА'!$C$8:$J$14039,5,FALSE),"") ->  | D153: =SUMIF('ПО КОРИСНИЦИМА'!$G$8:$G$14039,"Свега за пројекат 1502-П21:",'ПО КОРИСНИЦИМА'!$H$8:$H$14039) -> 0 | E153: 0 | F153: =SUMIF('ПО КОРИСНИЦИМА'!$G$8:$G$14039,"Свега за пројекат 1502-П21:",'ПО КОРИСНИЦИМА'!$I$8:$I$14039) -> 0 | G153: 0
B154: 1502-П22 | C154: =IFERROR(VLOOKUP(B154,'ПО КОРИСНИЦИМА'!$C$8:$J$14039,5,FALSE),"") ->  | D154: =SUMIF('ПО КОРИСНИЦИМА'!$G$8:$G$14039,"Свега за пројекат 1502-П22:",'ПО КОРИСНИЦИМА'!$H$8:$H$14039) -> 0 | E154: 0 | F154: =SUMIF('ПО КОРИСНИЦИМА'!$G$8:$G$14039,"Свега за пројекат 1502-П22:",'ПО КОРИСНИЦИМА'!$I$8:$I$14039) -> 0 | G154: 0
B155: 1502-П23 | C155: =IFERROR(VLOOKUP(B155,'ПО КОРИСНИЦИМА'!$C$8:$J$14039,5,FALSE),"") ->  | D155: =SUMIF('ПО КОРИСНИЦИМА'!$G$8:$G$14039,"Свега за пројекат 1502-П23:",'ПО КОРИСНИЦИМА'!$H$8:$H$14039) -> 0 | E155: 0 | F155: =SUMIF('ПО КОРИСНИЦИМА'!$G$8:$G$14039,"Свега за пројекат 1502-П23:",'ПО КОРИСНИЦИМА'!$I$8:$I$14039) -> 0 | G155: 0
B156: 1502-П24 | C156: =IFERROR(VLOOKUP(B156,'ПО КОРИСНИЦИМА'!$C$8:$J$14039,5,FALSE),"") ->  | D156: =SUMIF('ПО КОРИСНИЦИМА'!$G$8:$G$14039,"Свега за пројекат 1502-П24:",'ПО КОРИСНИЦИМА'!$H$8:$H$14039) -> 0 | E156: 0 | F156: =SUMIF('ПО КОРИСНИЦИМА'!$G$8:$G$14039,"Свега за пројекат 1502-П24:",'ПО КОРИСНИЦИМА'!$I$8:$I$14039) -> 0 | G156: 0
A157: 0101 | C157: Програм 5. Развој пољопривреде | D157: =SUM(D158:D175) -> 6370000 | E157: =IFERROR(D157/$D$601,"-") -> 0.01296217162 | F157: =SUM(F158:F175) -> 0 | G157: 6370000
B158: 0101-0001 | C158: Унапређење услова за пољопривредну делатност | D158: =SUMIF('ПО КОРИСНИЦИМА'!$G$8:$G$14039,"Свега за програмску активност 0101-0001:",'ПО КОРИСНИЦИМА'!$H$8:$H$14039) -> 0 | E158: =IFERROR(D158/$D$601,"-") -> 0 | F158: =SUMIF('ПО КОРИСНИЦИМА'!$G$8:$G$14039,"Свега за програмску активност 0101-0001:",'ПО КОРИСНИЦИМА'!$I$8:$I$14039) -> 0 | G158: 0
B159: 0101-0002 | C159: Подстицаји пољопривредној производњи | D159: =SUMIF('ПО КОРИСНИЦИМА'!$G$8:$G$14039,"Свега за програмску активност 0101-0002:",'ПО КОРИСНИЦИМА'!$H$8:$H$14039) -> 6370000 | E159: =IFERROR(D159/$D$601,"-") -> 0.01296217162 | F159: =SUMIF('ПО КОРИСНИЦИМА'!$G$8:$G$14039,"Свега за програмску активност 0101-0002:",'ПО КОРИСНИЦИМА'!$I$8:$I$14039) -> 0 | G159: 6370000
B160: 0101-П1 | C160: =IFERROR(VLOOKUP(B160,'ПО КОРИСНИЦИМА'!$C$8:$J$14039,5,FALSE),"") -> Набавка стеоних јуница | D160: =SUMIF('ПО КОРИСНИЦИМА'!$G$8:$G$14039,"Свега за пројекат 0101-П1:",'ПО КОРИСНИЦИМА'!$H$8:$H$14039) -> 0 | E160: =IFERROR(D160/$D$601,"-") -> 0 | G160: =D160+F160 -> 0
B161: 0101-П2 | C161: =IFERROR(VLOOKUP(B161,'ПО КОРИСНИЦИМА'!$C$8:$J$14039,5,FALSE),"") ->  | D161: =SUMIF('ПО КОРИСНИЦИМА'!$G$8:$G$14039,"Свега за пројекат 0101-П2:",'ПО КОРИСНИЦИМА'!$H$8:$H$14039) -> 0 | E161: =IFERROR(D161/$D$601,"-") -> 0 | F161: =SUMIF('ПО КОРИСНИЦИМА'!$G$8:$G$14039,"Свега за пројекат 0101-П2:",'ПО КОРИСНИЦИМА'!$I$8:$I$14039) -> 0 | G161: 0
B162: 0101-П3 | C162: =IFERROR(VLOOKUP(B162,'ПО КОРИСНИЦИМА'!$C$8:$J$14039,5,FALSE),"") ->  | D162: =SUMIF('ПО КОРИСНИЦИМА'!$G$8:$G$14039,"Свега за пројекат 0101-П3:",'ПО КОРИСНИЦИМА'!$H$8:$H$14039) -> 0 | E162: 0 | F162: =SUMIF('ПО КОРИСНИЦИМА'!$G$8:$G$14039,"Свега за пројекат 0101-П3:",'ПО КОРИСНИЦИМА'!$I$8:$I$14039) -> 0 | G162: 0
B163: 0101-П4 | C163: =IFERROR(VLOOKUP(B163,'ПО КОРИСНИЦИМА'!$C$8:$J$14039,5,FALSE),"") ->  | D163: =SUMIF('ПО КОРИСНИЦИМА'!$G$8:$G$14039,"Свега за пројекат 0101-П4:",'ПО КОРИСНИЦИМА'!$H$8:$H$14039) -> 0 | E163: 0 | F163: =SUMIF('ПО КОРИСНИЦИМА'!$G$8:$G$14039,"Свега за пројекат 0101-П4:",'ПО КОРИСНИЦИМА'!$I$8:$I$14039) -> 0 | G163: 0
B164: 0101-П5 | C164: =IFERROR(VLOOKUP(B164,'ПО КОРИСНИЦИМА'!$C$8:$J$14039,5,FALSE),"") ->  | D164: =SUMIF('ПО КОРИСНИЦИМА'!$G$8:$G$14039,"Свега за пројекат 0101-П5:",'ПО КОРИСНИЦИМА'!$H$8:$H$14039) -> 0 | E164: 0 | F164: =SUMIF('ПО КОРИСНИЦИМА'!$G$8:$G$14039,"Свега за пројекат 0101-П5:",'ПО КОРИСНИЦИМА'!$I$8:$I$14039) -> 0 | G164: 0
B165: 0101-П6 | C165: =IFERROR(VLOOKUP(B165,'ПО КОРИСНИЦИМА'!$C$8:$J$14039,5,FALSE),"") ->  | D165: =SUMIF('ПО КОРИСНИЦИМА'!$G$8:$G$14039,"Свега за пројекат 0101-П6:",'ПО КОРИСНИЦИМА'!$H$8:$H$14039) -> 0 | E165: 0 | F165: =SUMIF('ПО КОРИСНИЦИМА'!$G$8:$G$14039,"Свега за пројекат 0101-П6:",'ПО КОРИСНИЦИМА'!$I$8:$I$14039) -> 0 | G165: 0
B166: 0101-П7 | C166: =IFERROR(VLOOKUP(B166,'ПО КОРИСНИЦИМА'!$C$8:$J$14039,5,FALSE),"") ->  | D166: =SUMIF('ПО КОРИСНИЦИМА'!$G$8:$G$14039,"Свега за пројекат 0101-П7:",'ПО КОРИСНИЦИМА'!$H$8:$H$14039) -> 0 | E166: 0 | F166: =SUMIF('ПО КОРИСНИЦИМА'!$G$8:$G$14039,"Свега за пројекат 0101-П7:",'ПО КОРИСНИЦИМА'!$I$8:$I$14039) -> 0 | G166: 0
B167: 0101-П8 | C167: =IFERROR(VLOOKUP(B167,'ПО КОРИСНИЦИМА'!$C$8:$J$14039,5,FALSE),"") ->  | D167: =SUMIF('ПО КОРИСНИЦИМА'!$G$8:$G$14039,"Свега за пројекат 0101-П8:",'ПО КОРИСНИЦИМА'!$H$8:$H$14039) -> 0 | E167: 0 | F167: =SUMIF('ПО КОРИСНИЦИМА'!$G$8:$G$14039,"Свега за пројекат 0101-П8:",'ПО КОРИСНИЦИМА'!$I$8:$I$14039) -> 0 | G167: 0
B168: 0101-П9 | C168: =IFERROR(VLOOKUP(B168,'ПО КОРИСНИЦИМА'!$C$8:$J$14039,5,FALSE),"") ->  | D168: =SUMIF('ПО КОРИСНИЦИМА'!$G$8:$G$14039,"Свега за пројекат 0101-П9:",'ПО КОРИСНИЦИМА'!$H$8:$H$14039) -> 0 | E168: 0 | F168: =SUMIF('ПО КОРИСНИЦИМА'!$G$8:$G$14039,"Свега за пројекат 0101-П9:",'ПО КОРИСНИЦИМА'!$I$8:$I$14039) -> 0 | G168: 0
B169: 0101-П10 | C169: =IFERROR(VLOOKUP(B169,'ПО КОРИСНИЦИМА'!$C$8:$J$14039,5,FALSE),"") ->  | D169: =SUMIF('ПО КОРИСНИЦИМА'!$G$8:$G$14039,"Свега за пројекат 0101-П10:",'ПО КОРИСНИЦИМА'!$H$8:$H$14039) -> 0 | E169: 0 | F169: =SUMIF('ПО КОРИСНИЦИМА'!$G$8:$G$14039,"Свега за пројекат 0101-П10:",'ПО КОРИСНИЦИМА'!$I$8:$I$14039) -> 0 | G169: 0
B170: 0101-П11 | C170: =IFERROR(VLOOKUP(B170,'ПО КОРИСНИЦИМА'!$C$8:$J$14039,5,FALSE),"") ->  | D170: =SUMIF('ПО КОРИСНИЦИМА'!$G$8:$G$14039,"Свега за пројекат 0101-П11:",'ПО КОРИСНИЦИМА'!$H$8:$H$14039) -> 0 | E170: 0 | F170: =SUMIF('ПО КОРИСНИЦИМА'!$G$8:$G$14039,"Свега за пројекат 0101-П11:",'ПО КОРИСНИЦИМА'!$I$8:$I$14039) -> 0 | G170: 0
B171: 0101-П12 | C171: =IFERROR(VLOOKUP(B171,'ПО КОРИСНИЦИМА'!$C$8:$J$14039,5,FALSE),"") ->  | D171: =SUMIF('ПО КОРИСНИЦИМА'!$G$8:$G$14039,"Свега за пројекат 0101-П12:",'ПО КОРИСНИЦИМА'!$H$8:$H$14039) -> 0 | E171: 0 | F171: =SUMIF('ПО КОРИСНИЦИМА'!$G$8:$G$14039,"Свега за пројекат 0101-П12:",'ПО КОРИСНИЦИМА'!$I$8:$I$14039) -> 0 | G171: 0
B172: 0101-П13 | C172: =IFERROR(VLOOKUP(B172,'ПО КОРИСНИЦИМА'!$C$8:$J$14039,5,FALSE),"") ->  | D172: =SUMIF('ПО КОРИСНИЦИМА'!$G$8:$G$14039,"Свега за пројекат 0101-П13:",'ПО КОРИСНИЦИМА'!$H$8:$H$14039) -> 0 | E172: 0 | F172: =SUMIF('ПО КОРИСНИЦИМА'!$G$8:$G$14039,"Свега за пројекат 0101-П13:",'ПО КОРИСНИЦИМА'!$I$8:$I$14039) -> 0 | G172: 0
B173: 0101-П14 | C173: =IFERROR(VLOOKUP(B173,'ПО КОРИСНИЦИМА'!$C$8:$J$14039,5,FALSE),"") ->  | D173: =SUMIF('ПО КОРИСНИЦИМА'!$G$8:$G$14039,"Свега за пројекат 0101-П14:",'ПО КОРИСНИЦИМА'!$H$8:$H$14039) -> 0 | E173: 0 | F173: =SUMIF('ПО КОРИСНИЦИМА'!$G$8:$G$14039,"Свега за пројекат 0101-П14:",'ПО КОРИСНИЦИМА'!$I$8:$I$14039) -> 0 | G173: 0
B174: 0101-П15 | C174: =IFERROR(VLOOKUP(B174,'ПО КОРИСНИЦИМА'!$C$8:$J$14039,5,FALSE),"") ->  | D174: =SUMIF('ПО КОРИСНИЦИМА'!$G$8:$G$14039,"Свега за пројекат 0101-П15:",'ПО КОРИСНИЦИМА'!$H$8:$H$14039) -> 0 | E174: 0 | F174: =SUMIF('ПО КОРИСНИЦИМА'!$G$8:$G$14039,"Свега за пројекат 0101-П15:",'ПО КОРИСНИЦИМА'!$I$8:$I$14039) -> 0 | G174: 0
B175: 0101-П16 | C175: =IFERROR(VLOOKUP(B175,'ПО КОРИСНИЦИМА'!$C$8:$J$14039,5,FALSE),"") ->  | D175: =SUMIF('ПО КОРИСНИЦИМА'!$G$8:$G$14039,"Свега за пројекат 0101-П16:",'ПО КОРИСНИЦИМА'!$H$8:$H$14039) -> 0 | E175: 0 | F175: =SUMIF('ПО КОРИСНИЦИМА'!$G$8:$G$14039,"Свега за пројекат 0101-П16:",'ПО КОРИСНИЦИМА'!$I$8:$I$14039) -> 0 | G175: 0
A176: 0401 | C176: Програм 6. Заштита животне средине | D176: =SUM(D177:D195) -> 6197359 | E176: =IFERROR(D176/$D$601,"-") -> 0.01261086828 | F176: =SUM(F177:F195) -> 0 | G176: 6197359
B177: 0401-0001 | C177: Управљање заштитом животне средине и природних вредности | D177: =SUMIF('ПО КОРИСНИЦИМА'!$G$8:$G$14039,"Свега за програмску активност 0401-0001:",'ПО КОРИСНИЦИМА'!$H$8:$H$14039) -> 0 | E177: 0 | F177: =SUMIF('ПО КОРИСНИЦИМА'!$G$8:$G$14039,"Свега за програмску активност 0401-0001:",'ПО КОРИСНИЦИМА'!$I$8:$I$14039) -> 0 | G177: 0
B178: 0401-0002 | C178: Управљање комуналним отпадом | D178: =SUMIF('ПО КОРИСНИЦИМА'!$G$8:$G$14039,"Свега за програмску активност 0401-0002:",'ПО КОРИСНИЦИМА'!$H$8:$H$14039) -> 6197359 | E178: 0.01261086828 | F178: =SUMIF('ПО КОРИСНИЦИМА'!$G$8:$G$14039,"Свега за програмску активност 0401-0002:",'ПО КОРИСНИЦИМА'!$I$8:$I$14039) -> 0 | G178: 6197359
B179: 0401-0003 | C179: Праћење квалитета елемената животне средине | D179: =SUMIF('ПО КОРИСНИЦИМА'!$G$8:$G$14039,"Свега за програмску активност 0401-0003:",'ПО КОРИСНИЦИМА'!$H$8:$H$14039) -> 0 | E179: 0 | F179: =SUMIF('ПО КОРИСНИЦИМА'!$G$8:$G$14039,"Свега за програмску активност 0401-0003:",'ПО КОРИСНИЦИМА'!$I$8:$I$14039) -> 0 | G179: 0
B180: 0401-0004 | C180: Заштита природних вредности и унапређење подручја са природним својствима | D180: =SUMIF('ПО КОРИСНИЦИМА'!$G$8:$G$14039,"Свега за програмску активност 0401-0004:",'ПО КОРИСНИЦИМА'!$H$8:$H$14039) -> 0 | E180: 0 | F180: =SUMIF('ПО КОРИСНИЦИМА'!$G$8:$G$14039,"Свега за програмску активност 0401-0004:",'ПО КОРИСНИЦИМА'!$I$8:$I$14039) -> 0 | G180: 0
B181: 0401-П1 | C181: =IFERROR(VLOOKUP(B181,'ПО КОРИСНИЦИМА'!$C$8:$J$14039,5,FALSE),"") -> Набавка контејнера | D181: =SUMIF('ПО КОРИСНИЦИМА'!$G$8:$G$14039,"Свега за пројекат 0401-П1:",'ПО КОРИСНИЦИМА'!$H$8:$H$14039) -> 0 | E181: 0 | F181: =SUMIF('ПО КОРИСНИЦИМА'!$G$8:$G$14039,"Свега за пројекат 0401-П1:",'ПО КОРИСНИЦИМА'!$I$8:$I$14039) -> 0 | G181: 0
B182: 0401-П2 | C182: =IFERROR(VLOOKUP(B182,'ПО КОРИСНИЦИМА'!$C$8:$J$14039,5,FALSE),"") ->  | D182: =SUMIF('ПО КОРИСНИЦИМА'!$G$8:$G$14039,"Свега за пројекат 0401-П2:",'ПО КОРИСНИЦИМА'!$H$8:$H$14039) -> 0 | E182: 0 | F182: =SUMIF('ПО КОРИСНИЦИМА'!$G$8:$G$14039,"Свега за пројекат 0401-П2:",'ПО КОРИСНИЦИМА'!$I$8:$I$14039) -> 0 | G182: 0
B183: 0401-П3 | C183: =IFERROR(VLOOKUP(B183,'ПО КОРИСНИЦИМА'!$C$8:$J$14039,5,FALSE),"") ->  | D183: =SUMIF('ПО КОРИСНИЦИМА'!$G$8:$G$14039,"Свега за пројекат 0401-П3:",'ПО КОРИСНИЦИМА'!$H$8:$H$14039) -> 0 | E183: 0 | F183: =SUMIF('ПО КОРИСНИЦИМА'!$G$8:$G$14039,"Свега за пројекат 0401-П3:",'ПО КОРИСНИЦИМА'!$I$8:$I$14039) -> 0 | G183: 0
B184: 0401-П4 | C184: =IFERROR(VLOOKUP(B184,'ПО КОРИСНИЦИМА'!$C$8:$J$14039,5,FALSE),"") ->  | D184: =SUMIF('ПО КОРИСНИЦИМА'!$G$8:$G$14039,"Свега за пројекат 0401-П4:",'ПО КОРИСНИЦИМА'!$H$8:$H$14039) -> 0 | E184: =IFERROR(D184/$D$601,"-") -> 0 | F184: =SUMIF('ПО КОРИСНИЦИМА'!$G$8:$G$14039,"Свега за пројекат 0401-П4:",'ПО КОРИСНИЦИМА'!$I$8:$I$14039) -> 0 | G184: 0
B185: 0401-П5 | C185: =IFERROR(VLOOKUP(B185,'ПО КОРИСНИЦИМА'!$C$8:$J$14039,5,FALSE),"") ->  | D185: =SUMIF('ПО КОРИСНИЦИМА'!$G$8:$G$14039,"Свега за пројекат 0401-П5:",'ПО КОРИСНИЦИМА'!$H$8:$H$14039) -> 0 | E185: 0 | F185: =SUMIF('ПО КОРИСНИЦИМА'!$G$8:$G$14039,"Свега за пројекат 0401-П5:",'ПО КОРИСНИЦИМА'!$I$8:$I$14039) -> 0 | G185: 0
B186: 0401-П6 | C186: =IFERROR(VLOOKUP(B186,'ПО КОРИСНИЦИМА'!$C$8:$J$14039,5,FALSE),"") ->  | D186: =SUMIF('ПО КОРИСНИЦИМА'!$G$8:$G$14039,"Свега за пројекат 0401-П6:",'ПО КОРИСНИЦИМА'!$H$8:$H$14039) -> 0 | E186: 0 | F186: =SUMIF('ПО КОРИСНИЦИМА'!$G$8:$G$14039,"Свега за пројекат 0401-П6:",'ПО КОРИСНИЦИМА'!$I$8:$I$14039) -> 0 | G186: 0
B187: 0401-П7 | C187: =IFERROR(VLOOKUP(B187,'ПО КОРИСНИЦИМА'!$C$8:$J$14039,5,FALSE),"") ->  | D187: =SUMIF('ПО КОРИСНИЦИМА'!$G$8:$G$14039,"Свега за пројекат 0401-П7:",'ПО КОРИСНИЦИМА'!$H$8:$H$14039) -> 0 | E187: 0 | F187: =SUMIF('ПО КОРИСНИЦИМА'!$G$8:$G$14039,"Свега за пројекат 0401-П7:",'ПО КОРИСНИЦИМА'!$I$8:$I$14039) -> 0 | G187: 0
B188: 0401-П8 | C188: =IFERROR(VLOOKUP(B188,'ПО КОРИСНИЦИМА'!$C$8:$J$14039,5,FALSE),"") ->  | D188: =SUMIF('ПО КОРИСНИЦИМА'!$G$8:$G$14039,"Свега за пројекат 0401-П8:",'ПО КОРИСНИЦИМА'!$H$8:$H$14039) -> 0 | E188: 0 | F188: =SUMIF('ПО КОРИСНИЦИМА'!$G$8:$G$14039,"Свега за пројекат 0401-П8:",'ПО КОРИСНИЦИМА'!$I$8:$I$14039) -> 0 | G188: 0
B189: 0401-П9 | C189: =IFERROR(VLOOKUP(B189,'ПО КОРИСНИЦИМА'!$C$8:$J$14039,5,FALSE),"") ->  | D189: =SUMIF('ПО КОРИСНИЦИМА'!$G$8:$G$14039,"Свега за пројекат 0401-П9:",'ПО КОРИСНИЦИМА'!$H$8:$H$14039) -> 0 | E189: 0 | F189: =SUMIF('ПО КОРИСНИЦИМА'!$G$8:$G$14039,"Свега за пројекат 0401-П9:",'ПО КОРИСНИЦИМА'!$I$8:$I$14039) -> 0 | G189: 0
B190: 0401-П10 | C190: =IFERROR(VLOOKUP(B190,'ПО КОРИСНИЦИМА'!$C$8:$J$14039,5,FALSE),"") ->  | D190: =SUMIF('ПО КОРИСНИЦИМА'!$G$8:$G$14039,"Свега за пројекат 0401-П10:",'ПО КОРИСНИЦИМА'!$H$8:$H$14039) -> 0 | E190: 0 | F190: =SUMIF('ПО КОРИСНИЦИМА'!$G$8:$G$14039,"Свега за пројекат 0401-П10:",'ПО КОРИСНИЦИМА'!$I$8:$I$14039) -> 0 | G190: 0
B191: 0401-П11 | C191: =IFERROR(VLOOKUP(B191,'ПО КОРИСНИЦИМА'!$C$8:$J$14039,5,FALSE),"") ->  | D191: =SUMIF('ПО КОРИСНИЦИМА'!$G$8:$G$14039,"Свега за пројекат 0401-П11:",'ПО КОРИСНИЦИМА'!$H$8:$H$14039) -> 0 | E191: 0 | F191: =SUMIF('ПО КОРИСНИЦИМА'!$G$8:$G$14039,"Свега за пројекат 0401-П11:",'ПО КОРИСНИЦИМА'!$I$8:$I$14039) -> 0 | G191: 0
B192: 0401-П12 | C192: =IFERROR(VLOOKUP(B192,'ПО КОРИСНИЦИМА'!$C$8:$J$14039,5,FALSE),"") ->  | D192: =SUMIF('ПО КОРИСНИЦИМА'!$G$8:$G$14039,"Свега за пројекат 0401-П12:",'ПО КОРИСНИЦИМА'!$H$8:$H$14039) -> 0 | E192: 0 | F192: =SUMIF('ПО КОРИСНИЦИМА'!$G$8:$G$14039,"Свега за пројекат 0401-П12:",'ПО КОРИСНИЦИМА'!$I$8:$I$14039) -> 0 | G192: 0
B193: 0401-П13 | C193: =IFERROR(VLOOKUP(B193,'ПО КОРИСНИЦИМА'!$C$8:$J$14039,5,FALSE),"") ->  | D193: =SUMIF('ПО КОРИСНИЦИМА'!$G$8:$G$14039,"Свега за пројекат 0401-П13:",'ПО КОРИСНИЦИМА'!$H$8:$H$14039) -> 0 | E193: 0 | F193: =SUMIF('ПО КОРИСНИЦИМА'!$G$8:$G$14039,"Свега за пројекат 0401-П13:",'ПО КОРИСНИЦИМА'!$I$8:$I$14039) -> 0 | G193: 0
B194: 0401-П14 | C194: =IFERROR(VLOOKUP(B194,'ПО КОРИСНИЦИМА'!$C$8:$J$14039,5,FALSE),"") ->  | D194: =SUMIF('ПО КОРИСНИЦИМА'!$G$8:$G$14039,"Свега за пројекат 0401-П14:",'ПО КОРИСНИЦИМА'!$H$8:$H$14039) -> 0 | E194: 0 | F194: =SUMIF('ПО КОРИСНИЦИМА'!$G$8:$G$14039,"Свега за пројекат 0401-П14:",'ПО КОРИСНИЦИМА'!$I$8:$I$14039) -> 0 | G194: 0
B195: 0401-П15 | C195: =IFERROR(VLOOKUP(B195,'ПО КОРИСНИЦИМА'!$C$8:$J$14039,5,FALSE),"") ->  | D195: =SUMIF('ПО КОРИСНИЦИМА'!$G$8:$G$14039,"Свега за пројекат 0401-П15:",'ПО КОРИСНИЦИМА'!$H$8:$H$14039) -> 0 | E195: 0 | F195: =SUMIF('ПО КОРИСНИЦИМА'!$G$8:$G$14039,"Свега за пројекат 0401-П15:",'ПО КОРИСНИЦИМА'!$I$8:$I$14039) -> 0 | G195: =D195+F195 -> 0
A196: 0701 | C196: Програм 7. Путна инфраструктура | D196: =SUM(D197:D248) -> 146395931 | E196: =IFERROR(D196/$D$601,"-") -> 0.2978978308 | F196: =SUM(F197:F248) -> 9221707 | G196: =D196+F196 -> 155617638
B197: 0701-0001 | C197: Управљање саобраћајном инфраструктуром | D197: =SUMIF('ПО КОРИСНИЦИМА'!$G$8:$G$14039,"Свега за програмску активност 0701-0001:",'ПО КОРИСНИЦИМА'!$H$8:$H$14039) -> 3785931 | E197: =IFERROR(D197/$D$601,"-") -> 0.007703906965 | F197: =SUMIF('ПО КОРИСНИЦИМА'!$G$8:$G$14039,"Свега за програмску активност 0701-0001:",'ПО КОРИСНИЦИМА'!$I$8:$I$14039) -> 0 | G197: 3785931
B198: 0701-0002 | C198: Одржавање путева | D198: =SUMIF('ПО КОРИСНИЦИМА'!$G$8:$G$14039,"Свега за програмску активност 0701-0002:",'ПО КОРИСНИЦИМА'!$H$8:$H$14039) -> 106950000 | E198: =IFERROR(D198/$D$601,"-") -> 0.2176301813 | F198: =SUMIF('ПО КОРИСНИЦИМА'!$G$8:$G$14039,"Свега за програмску активност 0701-0002:",'ПО КОРИСНИЦИМА'!$I$8:$I$14039) -> 9221707 | G198: 116171707
B199: 0701-П1 | C199: =IFERROR(VLOOKUP(B199,'ПО КОРИСНИЦИМА'!$C$8:$J$14039,5,FALSE),"") -> Саобраћајна инфраструктура у индустријској зони уз државни пут 2.реда | D199: =SUMIF('ПО КОРИСНИЦИМА'!$G$8:$G$14039,"Свега за пројекат 0701-П1:",'ПО КОРИСНИЦИМА'!$H$8:$H$14039) -> 150000 | E199: =IFERROR(D199/$D$601,"-") -> 0.0003052316708 | F199: =SUMIF('ПО КОРИСНИЦИМА'!$G$8:$G$14039,"Свега за пројекат 0701-П1:",'ПО КОРИСНИЦИМА'!$I$8:$I$14039) -> 0 | G199: 150000
B200: 0701-П2 | C200: =IFERROR(VLOOKUP(B200,'ПО КОРИСНИЦИМА'!$C$8:$J$14039,5,FALSE),"") -> Рехабилитација Косовске улице | D200: =SUMIF('ПО КОРИСНИЦИМА'!$G$8:$G$14039,"Свега за пројекат 0701-П2:",'ПО КОРИСНИЦИМА'!$H$8:$H$14039) -> 460000 | E200: =IFERROR(D200/$D$601,"-") -> 0.0009360437906 | F200: =SUMIF('ПО КОРИСНИЦИМА'!$G$8:$G$14039,"Свега за пројекат 0701-П2:",'ПО КОРИСНИЦИМА'!$I$8:$I$14039) -> 0 | G200: 460000
... 402 more rows

Sheet Расх по функц.
F1: стр.6
B2: Члан 7.
B3: Члан 8. мења се и гласи
A4: Расходи и издаци буџета по функционалној класификацији утврђени су и распоређени у следећим износима:
A5: Функциje | B5: Функционална класификација | C5: Средства из буџета | D5: Структура % | E5: Средства из осталих извора | F5: Укупна јавна средства
A6: 1 | B6: 2 | C6: 3 | D6: 4 | E6: 5 | F6: 6
A7: 000 | B7: СОЦИЈАЛНА ЗАШТИТА | C7: =SUM(C8:C16) -> 16353500 | D7: =IFERROR(C7/$C$142,"-") -> 0.03327737419 | E7: =SUM(E8:E16) -> 4281424 | F7: =SUM(F8:F16) -> 20634924
A8: 010 | B8: Болест и инвалидност; | C8: =SUMIF('ПО КОРИСНИЦИМА'!$G$8:$G$14039,"Функција 010:",'ПО КОРИСНИЦИМА'!$H$8:$H$14039) -> 0 | D8: =IFERROR(C8/$C$142,"-") -> 0 | E8: =SUMIF('ПО КОРИСНИЦИМА'!$G$8:$G$14039,"Функција 010:",'ПО КОРИСНИЦИМА'!$I$8:$I$14039) -> 0 | F8: =SUM(E8,C8) -> 0
A9: 020 | B9: Старост; | C9: =SUMIF('ПО КОРИСНИЦИМА'!$G$8:$G$14039,"Функција 020:",'ПО КОРИСНИЦИМА'!$H$8:$H$14039) -> 0 | D9: 0 | E9: =SUMIF('ПО КОРИСНИЦИМА'!$G$8:$G$14039,"Функција 020:",'ПО КОРИСНИЦИМА'!$I$8:$I$14039) -> 0 | F9: =SUM(E9,C9) -> 0
A10: 030 | B10: Корисници породичне пензије; | C10: =SUMIF('ПО КОРИСНИЦИМА'!$G$8:$G$14039,"Функција 030:",'ПО КОРИСНИЦИМА'!$H$8:$H$14039) -> 0 | D10: 0 | E10: =SUMIF('ПО КОРИСНИЦИМА'!$G$8:$G$14039,"Функција 030:",'ПО КОРИСНИЦИМА'!$I$8:$I$14039) -> 0 | F10: 0
A11: 040 | B11: Породица и деца; | C11: =SUMIF('ПО КОРИСНИЦИМА'!$G$8:$G$14039,"Функција 040:",'ПО КОРИСНИЦИМА'!$H$8:$H$14039) -> 10100000 | D11: 0.02055226584 | E11: =SUMIF('ПО КОРИСНИЦИМА'!$G$8:$G$14039,"Функција 040:",'ПО КОРИСНИЦИМА'!$I$8:$I$14039) -> 0 | F11: 10100000
A12: 050 | B12: Незапосленост; | C12: =SUMIF('ПО КОРИСНИЦИМА'!$G$8:$G$14039,"Функција 050:",'ПО КОРИСНИЦИМА'!$H$8:$H$14039) -> 0 | D12: 0 | E12: =SUMIF('ПО КОРИСНИЦИМА'!$G$8:$G$14039,"Функција 050:",'ПО КОРИСНИЦИМА'!$I$8:$I$14039) -> 0 | F12: 0
A13: 060 | B13: Становање; | C13: =SUMIF('ПО КОРИСНИЦИМА'!$G$8:$G$14039,"Функција 060:",'ПО КОРИСНИЦИМА'!$H$8:$H$14039) -> 0 | D13: 0 | E13: =SUMIF('ПО КОРИСНИЦИМА'!$G$8:$G$14039,"Функција 060:",'ПО КОРИСНИЦИМА'!$I$8:$I$14039) -> 0 | F13: 0
A14: 070 | B14: Социјална помоћ угроженом становништву некласификована на другом месту; | C14: =SUMIF('ПО КОРИСНИЦИМА'!$G$8:$G$14039,"Функција 070:",'ПО КОРИСНИЦИМА'!$H$8:$H$14039) -> 0 | D14: 0 | E14: =SUMIF('ПО КОРИСНИЦИМА'!$G$8:$G$14039,"Функција 070:",'ПО КОРИСНИЦИМА'!$I$8:$I$14039) -> 0 | F14: 0
A15: 080 | B15: Социјална заштита - истраживање и развој; | C15: =SUMIF('ПО КОРИСНИЦИМА'!$G$8:$G$14039,"Функција 080:",'ПО КОРИСНИЦИМА'!$H$8:$H$14039) -> 0 | D15: 0 | E15: =SUMIF('ПО КОРИСНИЦИМА'!$G$8:$G$14039,"Функција 080:",'ПО КОРИСНИЦИМА'!$I$8:$I$14039) -> 0 | F15: 0
A16: 090 | B16: Социјална заштита некласификована на другом месту | C16: =SUMIF('ПО КОРИСНИЦИМА'!$G$8:$G$14039,"Функција 090:",'ПО КОРИСНИЦИМА'!$H$8:$H$14039) -> 6253500 | D16: 0.01272510836 | E16: =SUMIF('ПО КОРИСНИЦИМА'!$G$8:$G$14039,"Функција 090:",'ПО КОРИСНИЦИМА'!$I$8:$I$14039) -> 4281424 | F16: 10534924
A17: 100 | B17: ОПШТЕ ЈАВНЕ УСЛУГЕ | C17: =SUM(C18:C33) -> 144204863 | D17: 0.2934392752 | E17: =SUM(E18:E33) -> 43309198.84 | F17: =C17+E17 -> 187514061.8
A18: 110 | B18: Извршни и законодавни органи, финансијски и фискални послови и спољни послови; | C18: =SUMIF('ПО КОРИСНИЦИМА'!$G$8:$G$14039,"Функција 110:",'ПО КОРИСНИЦИМА'!$H$8:$H$14039) -> 8021000 | D18: 0.01632175488 | E18: =SUMIF('ПО КОРИСНИЦИМА'!$G$8:$G$14039,"Функција 110:",'ПО КОРИСНИЦИМА'!$I$8:$I$14039) -> 0 | F18: 8021000
A19: 111 | B19: Извршни и законодавни органи | C19: =SUMIF('ПО КОРИСНИЦИМА'!$G$8:$G$14039,"Функција 111:",'ПО КОРИСНИЦИМА'!$H$8:$H$14039) -> 16310000 | D19: 0.03318885701 | E19: =SUMIF('ПО КОРИСНИЦИМА'!$G$8:$G$14039,"Функција 111:",'ПО КОРИСНИЦИМА'!$I$8:$I$14039) -> 0 | F19: 16310000
A20: 112 | B20: Финансијски и фискални послови | C20: =SUMIF('ПО КОРИСНИЦИМА'!$G$8:$G$14039,"Функција 112:",'ПО КОРИСНИЦИМА'!$H$8:$H$14039) -> 2941983 | D20: 0.005986575911 | E20: =SUMIF('ПО КОРИСНИЦИМА'!$G$8:$G$14039,"Функција 112:",'ПО КОРИСНИЦИМА'!$I$8:$I$14039) -> 0 | F20: 2941983
A21: 113 | B21: Спољни послови | C21: =SUMIF('ПО КОРИСНИЦИМА'!$G$8:$G$14039,"Функција 113:",'ПО КОРИСНИЦИМА'!$H$8:$H$14039) -> 0 | D21: 0 | E21: =SUMIF('ПО КОРИСНИЦИМА'!$G$8:$G$14039,"Функција 113:",'ПО КОРИСНИЦИМА'!$I$8:$I$14039) -> 0 | F21: 0
A22: 120 | B22: Економска помоћ иностранству; | C22: =SUMIF('ПО КОРИСНИЦИМА'!$G$8:$G$14039,"Функција 120:",'ПО КОРИСНИЦИМА'!$H$8:$H$14039) -> 0 | D22: 0 | E22: =SUMIF('ПО КОРИСНИЦИМА'!$G$8:$G$14039,"Функција 120:",'ПО КОРИСНИЦИМА'!$I$8:$I$14039) -> 0 | F22: 0
A23: 121 | B23: Економска помоћ земљама у развоју и земљама у транзицији | C23: =SUMIF('ПО КОРИСНИЦИМА'!$G$8:$G$14039,"Функција 121:",'ПО КОРИСНИЦИМА'!$H$8:$H$14039) -> 0 | D23: 0 | E23: =SUMIF('ПО КОРИСНИЦИМА'!$G$8:$G$14039,"Функција 121:",'ПО КОРИСНИЦИМА'!$I$8:$I$14039) -> 0 | F23: 0
A24: 122 | B24: Економска помоћ преко међународних организација | C24: =SUMIF('ПО КОРИСНИЦИМА'!$G$8:$G$14039,"Функција 122:",'ПО КОРИСНИЦИМА'!$H$8:$H$14039) -> 0 | D24: 0 | E24: =SUMIF('ПО КОРИСНИЦИМА'!$G$8:$G$14039,"Функција 122:",'ПО КОРИСНИЦИМА'!$I$8:$I$14039) -> 0 | F24: 0
A25: 130 | B25: Опште услуге; | C25: =SUMIF('ПО КОРИСНИЦИМА'!$G$8:$G$14039,"Функција 130:",'ПО КОРИСНИЦИМА'!$H$8:$H$14039) -> 115497880 | D25: 0.2350240726 | E25: =SUMIF('ПО КОРИСНИЦИМА'!$G$8:$G$14039,"Функција 130:",'ПО КОРИСНИЦИМА'!$I$8:$I$14039) -> 43309198.84 | F25: 158807078.8
A26: 131 | B26: Опште кадровске услуге | C26: =SUMIF('ПО КОРИСНИЦИМА'!$G$8:$G$14039,"Функција 131:",'ПО КОРИСНИЦИМА'!$H$8:$H$14039) -> 0 | D26: 0 | E26: =SUMIF('ПО КОРИСНИЦИМА'!$G$8:$G$14039,"Функција 131:",'ПО КОРИСНИЦИМА'!$I$8:$I$14039) -> 0 | F26: 0
A27: 132 | B27: Опште услуге планирања и статистике | C27: =SUMIF('ПО КОРИСНИЦИМА'!$G$8:$G$14039,"Функција 132:",'ПО КОРИСНИЦИМА'!$H$8:$H$14039) -> 0 | D27: 0 | E27: =SUMIF('ПО КОРИСНИЦИМА'!$G$8:$G$14039,"Функција 132:",'ПО КОРИСНИЦИМА'!$I$8:$I$14039) -> 0 | F27: 0
A28: 133 | B28: Остале опште услуге | C28: =SUMIF('ПО КОРИСНИЦИМА'!$G$8:$G$14039,"Функција 133:",'ПО КОРИСНИЦИМА'!$H$8:$H$14039) -> 0 | D28: 0 | E28: =SUMIF('ПО КОРИСНИЦИМА'!$G$8:$G$14039,"Функција 133:",'ПО КОРИСНИЦИМА'!$I$8:$I$14039) -> 0 | F28: 0
A29: 140 | B29: Основно истраживање; | C29: =SUMIF('ПО КОРИСНИЦИМА'!$G$8:$G$14039,"Функција 140:",'ПО КОРИСНИЦИМА'!$H$8:$H$14039) -> 0 | D29: 0 | E29: =SUMIF('ПО КОРИСНИЦИМА'!$G$8:$G$14039,"Функција 140:",'ПО КОРИСНИЦИМА'!$I$8:$I$14039) -> 0 | F29: 0
A30: 150 | B30: Опште јавне услуге - истраживање и развој; | C30: =SUMIF('ПО КОРИСНИЦИМА'!$G$8:$G$14039,"Функција 150:",'ПО КОРИСНИЦИМА'!$H$8:$H$14039) -> 834000 | D30: 0.00169708809 | E30: =SUMIF('ПО КОРИСНИЦИМА'!$G$8:$G$14039,"Функција 150:",'ПО КОРИСНИЦИМА'!$I$8:$I$14039) -> 0 | F30: 834000
A31: 160 | B31: Опште јавне услуге некласификоване на другом месту; | C31: =SUMIF('ПО КОРИСНИЦИМА'!$G$8:$G$14039,"Функција 160:",'ПО КОРИСНИЦИМА'!$H$8:$H$14039) -> 600000 | D31: 0.001220926683 | E31: =SUMIF('ПО КОРИСНИЦИМА'!$G$8:$G$14039,"Функција 160:",'ПО КОРИСНИЦИМА'!$I$8:$I$14039) -> 0 | F31: 600000
A32: 170 | B32: Трансакције јавног дуга; | C32: =SUMIF('ПО КОРИСНИЦИМА'!$G$8:$G$14039,"Функција 170:",'ПО КОРИСНИЦИМА'!$H$8:$H$14039) -> 0 | D32: 0 | E32: =SUMIF('ПО КОРИСНИЦИМА'!$G$8:$G$14039,"Функција 170:",'ПО КОРИСНИЦИМА'!$I$8:$I$14039) -> 0 | F32: 0
A33: 180 | B33: Трансфери општег карактера између различитих нивоа власти | C33: =SUMIF('ПО КОРИСНИЦИМА'!$G$8:$G$14039,"Функција 180:",'ПО КОРИСНИЦИМА'!$H$8:$H$14039) -> 0 | D33: 0 | E33: =SUMIF('ПО КОРИСНИЦИМА'!$G$8:$G$14039,"Функција 180:",'ПО КОРИСНИЦИМА'!$I$8:$I$14039) -> 0 | F33: 0
A34: 300 | B34: ЈАВНИ РЕД И БЕЗБЕДНОСТ | C34: =SUM(C35:C40) -> 13044731 | D34: 0.02654443359 | E34: =SUM(E35:E40) -> 0 | F34: 13044731
A35: 310 | B35: Услуге полиције; | C35: =SUMIF('ПО КОРИСНИЦИМА'!$G$8:$G$14039,"Функција 310:",'ПО КОРИСНИЦИМА'!$H$8:$H$14039) -> 0 | D35: 0 | E35: =SUMIF('ПО КОРИСНИЦИМА'!$G$8:$G$14039,"Функција 310:",'ПО КОРИСНИЦИМА'!$I$8:$I$14039) -> 0 | F35: 0
A36: 320 | B36: Услуге противпожарне заштите; | C36: =SUMIF('ПО КОРИСНИЦИМА'!$G$8:$G$14039,"Функција 320:",'ПО КОРИСНИЦИМА'!$H$8:$H$14039) -> 0 | D36: 0 | E36: =SUMIF('ПО КОРИСНИЦИМА'!$G$8:$G$14039,"Функција 320:",'ПО КОРИСНИЦИМА'!$I$8:$I$14039) -> 0 | F36: 0
A37: 330 | B37: Судови; | C37: =SUMIF('ПО КОРИСНИЦИМА'!$G$8:$G$14039,"Функција 330:",'ПО КОРИСНИЦИМА'!$H$8:$H$14039) -> 1670800 | D37: 0.003399873838 | E37: =SUMIF('ПО КОРИСНИЦИМА'!$G$8:$G$14039,"Функција 330:",'ПО КОРИСНИЦИМА'!$I$8:$I$14039) -> 0 | F37: 1670800
A38: 340 | B38: Затвори; | C38: =SUMIF('ПО КОРИСНИЦИМА'!$G$8:$G$14039,"Функција 340:",'ПО КОРИСНИЦИМА'!$H$8:$H$14039) -> 0 | D38: 0 | E38: =SUMIF('ПО КОРИСНИЦИМА'!$G$8:$G$14039,"Функција 340:",'ПО КОРИСНИЦИМА'!$I$8:$I$14039) -> 0 | F38: 0
A39: 350 | B39: Јавни ред и безбедност - истраживање и развој; | C39: =SUMIF('ПО КОРИСНИЦИМА'!$G$8:$G$14039,"Функција 350:",'ПО КОРИСНИЦИМА'!$H$8:$H$14039) -> 0 | D39: 0 | E39: =SUMIF('ПО КОРИСНИЦИМА'!$G$8:$G$14039,"Функција 350:",'ПО КОРИСНИЦИМА'!$I$8:$I$14039) -> 0 | F39: 0
A40: 360 | B40: Јавни ред и безбедност некласификован на другом месту | C40: =SUM('ПО КОРИСНИЦИМА'!H12440,'ПО КОРИСНИЦИМА'!H506) -> 11373931 | D40: 0.02314455975 | E40: =SUMIF('ПО КОРИСНИЦИМА'!$G$8:$G$14039,"Функција 360:",'ПО КОРИСНИЦИМА'!$I$8:$I$14039) -> 0 | F40: 11373931
A41: 400 | B41: ЕКОНОМСКИ ПОСЛОВИ | C41: =SUM(C42:C80) -> 14181000 | D41: 0.02885660216 | E41: =SUM(E42:E80) -> 3300000 | F41: 17481000
A42: 410 | B42: Општи економски и комерцијални послови и послови по питању рада; | C42: =SUMIF('ПО КОРИСНИЦИМА'!$G$8:$G$14039,"Функција 410:",'ПО КОРИСНИЦИМА'!$H$8:$H$14039) -> 0 | D42: 0 | E42: =SUMIF('ПО КОРИСНИЦИМА'!$G$8:$G$14039,"Функција 410:",'ПО КОРИСНИЦИМА'!$I$8:$I$14039) -> 0 | F42: 0
A43: 411 | B43: Општи економски и комерцијални послови | C43: =SUMIF('ПО КОРИСНИЦИМА'!$G$8:$G$14039,"Функција 411:",'ПО КОРИСНИЦИМА'!$H$8:$H$14039) -> 0 | D43: 0 | E43: =SUMIF('ПО КОРИСНИЦИМА'!$G$8:$G$14039,"Функција 411:",'ПО КОРИСНИЦИМА'!$I$8:$I$14039) -> 0 | F43: 0
A44: 412 | B44: Општи послови по питању рада | C44: =SUMIF('ПО КОРИСНИЦИМА'!$G$8:$G$14039,"Функција 412:",'ПО КОРИСНИЦИМА'!$H$8:$H$14039) -> 0 | D44: 0 | E44: =SUMIF('ПО КОРИСНИЦИМА'!$G$8:$G$14039,"Функција 412:",'ПО КОРИСНИЦИМА'!$I$8:$I$14039) -> 0 | F44: 0
A45: 420 | B45: Пољопривреда, шумарство, лов и риболов; | C45: =SUMIF('ПО КОРИСНИЦИМА'!$G$8:$G$14039,"Функција 420:",'ПО КОРИСНИЦИМА'!$H$8:$H$14039) -> 0 | D45: 0 | E45: =SUMIF('ПО КОРИСНИЦИМА'!$G$8:$G$14039,"Функција 420:",'ПО КОРИСНИЦИМА'!$I$8:$I$14039) -> 0 | F45: 0
A46: 421 | B46: Пољопривреда | C46: =SUMIF('ПО КОРИСНИЦИМА'!$G$8:$G$14039,"Функција 421:",'ПО КОРИСНИЦИМА'!$H$8:$H$14039) -> 6370000 | D46: 0.01296217162 | E46: =SUMIF('ПО КОРИСНИЦИМА'!$G$8:$G$14039,"Функција 421:",'ПО КОРИСНИЦИМА'!$I$8:$I$14039) -> 0 | F46: 6370000
A47: 422 | B47: Шумарство | C47: =SUMIF('ПО КОРИСНИЦИМА'!$G$8:$G$14039,"Функција 422:",'ПО КОРИСНИЦИМА'!$H$8:$H$14039) -> 0 | D47: 0 | E47: =SUMIF('ПО КОРИСНИЦИМА'!$G$8:$G$14039,"Функција 422:",'ПО КОРИСНИЦИМА'!$I$8:$I$14039) -> 0 | F47: 0
A48: 423 | B48: Лов и риболов | C48: =SUMIF('ПО КОРИСНИЦИМА'!$G$8:$G$14039,"Функција 423:",'ПО КОРИСНИЦИМА'!$H$8:$H$14039) -> 0 | D48: 0 | E48: =SUMIF('ПО КОРИСНИЦИМА'!$G$8:$G$14039,"Функција 423:",'ПО КОРИСНИЦИМА'!$I$8:$I$14039) -> 0 | F48: 0
A49: 430 | B49: Гориво и енергија; | C49: =SUMIF('ПО КОРИСНИЦИМА'!$G$8:$G$14039,"Функција 430:",'ПО КОРИСНИЦИМА'!$H$8:$H$14039) -> 0 | D49: 0 | E49: =SUMIF('ПО КОРИСНИЦИМА'!$G$8:$G$14039,"Функција 430:",'ПО КОРИСНИЦИМА'!$I$8:$I$14039) -> 0 | F49: 0
A50: 431 | B50: Угаљ и остала чврста минерална горива | C50: =SUMIF('ПО КОРИСНИЦИМА'!$G$8:$G$14039,"Функција 431:",'ПО КОРИСНИЦИМА'!$H$8:$H$14039) -> 0 | D50: 0 | E50: =SUMIF('ПО КОРИСНИЦИМА'!$G$8:$G$14039,"Функција 431:",'ПО КОРИСНИЦИМА'!$I$8:$I$14039) -> 0 | F50: 0
A51: 432 | B51: Нафта и природни гас | C51: =SUMIF('ПО КОРИСНИЦИМА'!$G$8:$G$14039,"Функција 432:",'ПО КОРИСНИЦИМА'!$H$8:$H$14039) -> 0 | D51: 0 | E51: =SUMIF('ПО КОРИСНИЦИМА'!$G$8:$G$14039,"Функција 432:",'ПО КОРИСНИЦИМА'!$I$8:$I$14039) -> 0 | F51: 0
A52: 433 | B52: Нуклеарно гориво | C52: =SUMIF('ПО КОРИСНИЦИМА'!$G$8:$G$14039,"Функција 433:",'ПО КОРИСНИЦИМА'!$H$8:$H$14039) -> 0 | D52: 0 | E52: =SUMIF('ПО КОРИСНИЦИМА'!$G$8:$G$14039,"Функција 433:",'ПО КОРИСНИЦИМА'!$I$8:$I$14039) -> 0 | F52: 0
A53: 434 | B53: Остала горива | C53: =SUMIF('ПО КОРИСНИЦИМА'!$G$8:$G$14039,"Функција 434:",'ПО КОРИСНИЦИМА'!$H$8:$H$14039) -> 0 | D53: 0 | E53: =SUMIF('ПО КОРИСНИЦИМА'!$G$8:$G$14039,"Функција 434:",'ПО КОРИСНИЦИМА'!$I$8:$I$14039) -> 0 | F53: 0
A54: 435 | B54: Електрична енергија | C54: =SUMIF('ПО КОРИСНИЦИМА'!$G$8:$G$14039,"Функција 435:",'ПО КОРИСНИЦИМА'!$H$8:$H$14039) -> 0 | D54: 0 | E54: =SUMIF('ПО КОРИСНИЦИМА'!$G$8:$G$14039,"Функција 435:",'ПО КОРИСНИЦИМА'!$I$8:$I$14039) -> 0 | F54: 0
A55: 436 | B55: Остала енергија | C55: =SUMIF('ПО КОРИСНИЦИМА'!$G$8:$G$14039,"Функција 436:",'ПО КОРИСНИЦИМА'!$H$8:$H$14039) -> 0 | D55: 0 | E55: =SUMIF('ПО КОРИСНИЦИМА'!$G$8:$G$14039,"Функција 436:",'ПО КОРИСНИЦИМА'!$I$8:$I$14039) -> 0 | F55: 0
A56: 440 | B56: Рударство, производња и изградња; | C56: =SUMIF('ПО КОРИСНИЦИМА'!$G$8:$G$14039,"Функција 440:",'ПО КОРИСНИЦИМА'!$H$8:$H$14039) -> 0 | D56: 0 | E56: =SUMIF('ПО КОРИСНИЦИМА'!$G$8:$G$14039,"Функција 440:",'ПО КОРИСНИЦИМА'!$I$8:$I$14039) -> 0 | F56: 0
A57: 441 | B57: Ископавање минералних ресурса, изузев минералних горива | C57: =SUMIF('ПО КОРИСНИЦИМА'!$G$8:$G$14039,"Функција 441:",'ПО КОРИСНИЦИМА'!$H$8:$H$14039) -> 0 | D57: 0 | E57: =SUMIF('ПО КОРИСНИЦИМА'!$G$8:$G$14039,"Функција 441:",'ПО КОРИСНИЦИМА'!$I$8:$I$14039) -> 0 | F57: 0
A58: 442 | B58: Производња | C58: =SUMIF('ПО КОРИСНИЦИМА'!$G$8:$G$14039,"Функција 442:",'ПО КОРИСНИЦИМА'!$H$8:$H$14039) -> 0 | D58: 0 | E58: =SUMIF('ПО КОРИСНИЦИМА'!$G$8:$G$14039,"Функција 442:",'ПО КОРИСНИЦИМА'!$I$8:$I$14039) -> 0 | F58: 0
A59: 443 | B59: Изградња | C59: =SUMIF('ПО КОРИСНИЦИМА'!$G$8:$G$14039,"Функција 443:",'ПО КОРИСНИЦИМА'!$H$8:$H$14039) -> 0 | D59: 0 | E59: =SUMIF('ПО КОРИСНИЦИМА'!$G$8:$G$14039,"Функција 443:",'ПО КОРИСНИЦИМА'!$I$8:$I$14039) -> 0 | F59: 0
A60: 450 | B60: Саобраћај; | C60: =SUMIF('ПО КОРИСНИЦИМА'!$G$8:$G$14039,"Функција 450:",'ПО КОРИСНИЦИМА'!$H$8:$H$14039) -> 0 | D60: 0 | E60: =SUMIF('ПО КОРИСНИЦИМА'!$G$8:$G$14039,"Функција 450:",'ПО КОРИСНИЦИМА'!$I$8:$I$14039) -> 0 | F60: 0
A61: 451 | B61: Друмски саобраћај | C61: =SUMIF('ПО КОРИСНИЦИМА'!$G$8:$G$14039,"Функција 451:",'ПО КОРИСНИЦИМА'!$H$8:$H$14039) -> 0 | D61: 0 | E61: =SUMIF('ПО КОРИСНИЦИМА'!$G$8:$G$14039,"Функција 451:",'ПО КОРИСНИЦИМА'!$I$8:$I$14039) -> 0 | F61: 0
A62: 452 | B62: Водени саобраћај | C62: =SUMIF('ПО КОРИСНИЦИМА'!$G$8:$G$14039,"Функција 452:",'ПО КОРИСНИЦИМА'!$H$8:$H$14039) -> 0 | D62: 0 | E62: =SUMIF('ПО КОРИСНИЦИМА'!$G$8:$G$14039,"Функција 452:",'ПО КОРИСНИЦИМА'!$I$8:$I$14039) -> 0 | F62: 0
A63: 453 | B63: Железнички саобраћај | C63: =SUMIF('ПО КОРИСНИЦИМА'!$G$8:$G$14039,"Функција 453:",'ПО КОРИСНИЦИМА'!$H$8:$H$14039) -> 0 | D63: 0 | E63: =SUMIF('ПО КОРИСНИЦИМА'!$G$8:$G$14039,"Функција 453:",'ПО КОРИСНИЦИМА'!$I$8:$I$14039) -> 0 | F63: 0
A64: 454 | B64: Ваздушни саобраћај | C64: =SUMIF('ПО КОРИСНИЦИМА'!$G$8:$G$14039,"Функција 454:",'ПО КОРИСНИЦИМА'!$H$8:$H$14039) -> 0 | D64: 0 | E64: =SUMIF('ПО КОРИСНИЦИМА'!$G$8:$G$14039,"Функција 454:",'ПО КОРИСНИЦИМА'!$I$8:$I$14039) -> 0 | F64: 0
A65: 455 | B65: Цевоводи и други облици саобраћаја | C65: =SUMIF('ПО КОРИСНИЦИМА'!$G$8:$G$14039,"Функција 455:",'ПО КОРИСНИЦИМА'!$H$8:$H$14039) -> 0 | D65: 0 | E65: =SUMIF('ПО КОРИСНИЦИМА'!$G$8:$G$14039,"Функција 455:",'ПО КОРИСНИЦИМА'!$I$8:$I$14039) -> 0 | F65: 0
A66: 460 | B66: Комуникације; | C66: =SUMIF('ПО КОРИСНИЦИМА'!$G$8:$G$14039,"Функција 460:",'ПО КОРИСНИЦИМА'!$H$8:$H$14039) -> 0 | D66: 0 | E66: =SUMIF('ПО КОРИСНИЦИМА'!$G$8:$G$14039,"Функција 460:",'ПО КОРИСНИЦИМА'!$I$8:$I$14039) -> 0 | F66: 0
A67: 470 | B67: Остале делатности; | C67: =SUMIF('ПО КОРИСНИЦИМА'!$G$8:$G$14039,"Функција 470:",'ПО КОРИСНИЦИМА'!$H$8:$H$14039) -> 0 | D67: 0 | E67: =SUMIF('ПО КОРИСНИЦИМА'!$G$8:$G$14039,"Функција 470:",'ПО КОРИСНИЦИМА'!$I$8:$I$14039) -> 0 | F67: 0
A68: 471 | B68: Трговина, смештај и складиштење | C68: =SUMIF('ПО КОРИСНИЦИМА'!$G$8:$G$14039,"Функција 471:",'ПО КОРИСНИЦИМА'!$H$8:$H$14039) -> 0 | D68: 0 | E68: =SUMIF('ПО КОРИСНИЦИМА'!$G$8:$G$14039,"Функција 471:",'ПО КОРИСНИЦИМА'!$I$8:$I$14039) -> 0 | F68: 0
A69: 472 | B69: Хотели и ресторани | C69: =SUMIF('ПО КОРИСНИЦИМА'!$G$8:$G$14039,"Функција 472:",'ПО КОРИСНИЦИМА'!$H$8:$H$14039) -> 0 | D69: 0 | E69: =SUMIF('ПО КОРИСНИЦИМА'!$G$8:$G$14039,"Функција 472:",'ПО КОРИСНИЦИМА'!$I$8:$I$14039) -> 0 | F69: 0
A70: 473 | B70: Туризам | C70: =SUMIF('ПО КОРИСНИЦИМА'!$G$8:$G$14039,"Функција 473:",'ПО КОРИСНИЦИМА'!$H$8:$H$14039) -> 7811000 | D70: 0.01589443054 | E70: =SUMIF('ПО КОРИСНИЦИМА'!$G$8:$G$14039,"Функција 473:",'ПО КОРИСНИЦИМА'!$I$8:$I$14039) -> 3300000 | F70: 11111000
A71: 474 | B71: Вишенаменски развојни пројекти | C71: =SUMIF('ПО КОРИСНИЦИМА'!$G$8:$G$14039,"Функција 474:",'ПО КОРИСНИЦИМА'!$H$8:$H$14039) -> 0 | D71: 0 | E71: =SUMIF('ПО КОРИСНИЦИМА'!$G$8:$G$14039,"Функција 474:",'ПО КОРИСНИЦИМА'!$I$8:$I$14039) -> 0 | F71: 0
A72: 480 | B72: Економски послови - истраживање и развој; | C72: =SUMIF('ПО КОРИСНИЦИМА'!$G$8:$G$14039,"Функција 480:",'ПО КОРИСНИЦИМА'!$H$8:$H$14039) -> 0 | D72: =IFERROR(C72/$C$142,"-") -> 0 | E72: =SUMIF('ПО КОРИСНИЦИМА'!$G$8:$G$14039,"Функција 480:",'ПО КОРИСНИЦИМА'!$I$8:$I$14039) -> 0 | F72: 0
A73: 481 | B73: Истраживање и развој - Општи економски и комерцијални послови и послови по питању рада | C73: =SUMIF('ПО КОРИСНИЦИМА'!$G$8:$G$14039,"Функција 481:",'ПО КОРИСНИЦИМА'!$H$8:$H$14039) -> 0 | D73: 0 | E73: =SUMIF('ПО КОРИСНИЦИМА'!$G$8:$G$14039,"Функција 481:",'ПО КОРИСНИЦИМА'!$I$8:$I$14039) -> 0 | F73: =SUM(E73,C73) -> 0
A74: 482 | B74: Истраживање и развој - Пољопривреда, шумарство, лов и риболов | C74: =SUMIF('ПО КОРИСНИЦИМА'!$G$8:$G$14039,"Функција 482:",'ПО КОРИСНИЦИМА'!$H$8:$H$14039) -> 0 | D74: 0 | E74: =SUMIF('ПО КОРИСНИЦИМА'!$G$8:$G$14039,"Функција 482:",'ПО КОРИСНИЦИМА'!$I$8:$I$14039) -> 0 | F74: 0
A75: 483 | B75: Истраживање и развој - Гориво и енергија | C75: =SUMIF('ПО КОРИСНИЦИМА'!$G$8:$G$14039,"Функција 483:",'ПО КОРИСНИЦИМА'!$H$8:$H$14039) -> 0 | D75: 0 | E75: =SUMIF('ПО КОРИСНИЦИМА'!$G$8:$G$14039,"Функција 483:",'ПО КОРИСНИЦИМА'!$I$8:$I$14039) -> 0 | F75: 0
A76: 484 | B76: Истраживање и развој - Рударство, производња и изградња | C76: =SUMIF('ПО КОРИСНИЦИМА'!$G$8:$G$14039,"Функција 484:",'ПО КОРИСНИЦИМА'!$H$8:$H$14039) -> 0 | D76: 0 | E76: =SUMIF('ПО КОРИСНИЦИМА'!$G$8:$G$14039,"Функција 484:",'ПО КОРИСНИЦИМА'!$I$8:$I$14039) -> 0 | F76: 0
A77: 485 | B77: Истраживање и развој - Саобраћај | C77: =SUMIF('ПО КОРИСНИЦИМА'!$G$8:$G$14039,"Функција 485:",'ПО КОРИСНИЦИМА'!$H$8:$H$14039) -> 0 | D77: 0 | E77: =SUMIF('ПО КОРИСНИЦИМА'!$G$8:$G$14039,"Функција 485:",'ПО КОРИСНИЦИМА'!$I$8:$I$14039) -> 0 | F77: 0
A78: 486 | B78: Истраживање и развој - Комуникације | C78: =SUMIF('ПО КОРИСНИЦИМА'!$G$8:$G$14039,"Функција 486:",'ПО КОРИСНИЦИМА'!$H$8:$H$14039) -> 0 | D78: 0 | E78: =SUMIF('ПО КОРИСНИЦИМА'!$G$8:$G$14039,"Функција 486:",'ПО КОРИСНИЦИМА'!$I$8:$I$14039) -> 0 | F78: 0
A79: 487 | B79: Истраживање и развој - Остале делатности | C79: =SUMIF('ПО КОРИСНИЦИМА'!$G$8:$G$14039,"Функција 487:",'ПО КОРИСНИЦИМА'!$H$8:$H$14039) -> 0 | D79: 0 | E79: =SUMIF('ПО КОРИСНИЦИМА'!$G$8:$G$14039,"Функција 487:",'ПО КОРИСНИЦИМА'!$I$8:$I$14039) -> 0 | F79: 0
A80: 490 | B80: Економски послови некласификовани на другом месту | C80: =SUMIF('ПО КОРИСНИЦИМА'!$G$8:$G$14039,"Функција 490:",'ПО КОРИСНИЦИМА'!$H$8:$H$14039) -> 0 | D80: 0 | E80: =SUMIF('ПО КОРИСНИЦИМА'!$G$8:$G$14039,"Функција 490:",'ПО КОРИСНИЦИМА'!$I$8:$I$14039) -> 0 | F80: 0
A81: 500 | B81: ЗАШТИТА ЖИВОТНЕ СРЕДИНЕ | C81: =SUM(C82:C87) -> 39617359 | D81: 0.08061648455 | E81: =SUM(E82:E87) -> 0 | F81: =C81+E81 -> 39617359
A82: 510 | B82: Управљање отпадом; | C82: =SUMIF('ПО КОРИСНИЦИМА'!$G$8:$G$14039,"Функција 510:",'ПО КОРИСНИЦИМА'!$H$8:$H$14039) -> 33420000 | D82: 0.06800561626 | E82: =SUMIF('ПО КОРИСНИЦИМА'!$G$8:$G$14039,"Функција 510:",'ПО КОРИСНИЦИМА'!$I$8:$I$14039) -> 0 | F82: 33420000
A83: 520 | B83: Управљање отпадним водама; | C83: =SUMIF('ПО КОРИСНИЦИМА'!$G$8:$G$14039,"Функција 520:",'ПО КОРИСНИЦИМА'!$H$8:$H$14039) -> 0 | D83: 0 | E83: =SUMIF('ПО КОРИСНИЦИМА'!$G$8:$G$14039,"Функција 520:",'ПО КОРИСНИЦИМА'!$I$8:$I$14039) -> 0 | F83: 0
A84: 530 | B84: Смањење загађености; | C84: =SUMIF('ПО КОРИСНИЦИМА'!$G$8:$G$14039,"Функција 530:",'ПО КОРИСНИЦИМА'!$H$8:$H$14039) -> 0 | D84: 0 | E84: =SUMIF('ПО КОРИСНИЦИМА'!$G$8:$G$14039,"Функција 530:",'ПО КОРИСНИЦИМА'!$I$8:$I$14039) -> 0 | F84: 0
A85: 540 | B85: Заштита биљног и животињског света и крајолика; | C85: =SUMIF('ПО КОРИСНИЦИМА'!$G$8:$G$14039,"Функција 540:",'ПО КОРИСНИЦИМА'!$H$8:$H$14039) -> 0 | D85: 0 | E85: =SUMIF('ПО КОРИСНИЦИМА'!$G$8:$G$14039,"Функција 540:",'ПО КОРИСНИЦИМА'!$I$8:$I$14039) -> 0 | F85: 0
A86: 550 | B86: Заштита животне средине - истраживање и развој; | C86: =SUMIF('ПО КОРИСНИЦИМА'!$G$8:$G$14039,"Функција 550:",'ПО КОРИСНИЦИМА'!$H$8:$H$14039) -> 0 | D86: 0 | E86: =SUMIF('ПО КОРИСНИЦИМА'!$G$8:$G$14039,"Функција 550:",'ПО КОРИСНИЦИМА'!$I$8:$I$14039) -> 0 | F86: 0
A87: 560 | B87: Заштита животне средине некласификована на другом месту | C87: =SUMIF('ПО КОРИСНИЦИМА'!$G$8:$G$14039,"Функција 560:",'ПО КОРИСНИЦИМА'!$H$8:$H$14039) -> 6197359 | D87: 0.01261086828 | E87: =SUMIF('ПО КОРИСНИЦИМА'!$G$8:$G$14039,"Функција 560:",'ПО КОРИСНИЦИМА'!$I$8:$I$14039) -> 0 | F87: 6197359
A88: 600 | B88: ПОСЛОВИ СТАНОВАЊА И ЗАЈЕДНИЦЕ | C88: =SUM(C89:C94) -> 178670000 | D88: 0.3635716175 | E88: =SUM(E89:E94) -> 9221707 | F88: 187891707
A89: 610 | B89: Стамбени развој; | C89: =SUMIF('ПО КОРИСНИЦИМА'!$G$8:$G$14039,"Функција 610:",'ПО КОРИСНИЦИМА'!$H$8:$H$14039) -> 0 | D89: 0 | E89: =SUMIF('ПО КОРИСНИЦИМА'!$G$8:$G$14039,"Функција 610:",'ПО КОРИСНИЦИМА'!$I$8:$I$14039) -> 0 | F89: 0
A90: 620 | B90: Развој заједнице; | C90: =SUMIF('ПО КОРИСНИЦИМА'!$G$8:$G$14039,"Функција 620:",'ПО КОРИСНИЦИМА'!$H$8:$H$14039) -> 142610000 | D90: 0.2901939239 | E90: =SUMIF('ПО КОРИСНИЦИМА'!$G$8:$G$14039,"Функција 620:",'ПО КОРИСНИЦИМА'!$I$8:$I$14039) -> 9221707 | F90: 151831707
A91: 630 | B91: Водоснабдевање; | C91: =SUMIF('ПО КОРИСНИЦИМА'!$G$8:$G$14039,"Функција 630:",'ПО КОРИСНИЦИМА'!$H$8:$H$14039) -> 12960000 | D91: 0.02637201636 | E91: =SUMIF('ПО КОРИСНИЦИМА'!$G$8:$G$14039,"Функција 630:",'ПО КОРИСНИЦИМА'!$I$8:$I$14039) -> 0 | F91: 12960000
A92: 640 | B92: Улична расвета; | C92: =SUMIF('ПО КОРИСНИЦИМА'!$G$8:$G$14039,"Функција 640:",'ПО КОРИСНИЦИМА'!$H$8:$H$14039) -> 9100000 | D92: 0.01851738803 | E92: =SUMIF('ПО КОРИСНИЦИМА'!$G$8:$G$14039,"Функција 640:",'ПО КОРИСНИЦИМА'!$I$8:$I$14039) -> 0 | F92: 9100000
A93: 650 | B93: Послови становања и заједнице - истраживање и развој; | C93: =SUMIF('ПО КОРИСНИЦИМА'!$G$8:$G$14039,"Функција 650:",'ПО КОРИСНИЦИМА'!$H$8:$H$14039) -> 0 | D93: 0 | E93: =SUMIF('ПО КОРИСНИЦИМА'!$G$8:$G$14039,"Функција 650:",'ПО КОРИСНИЦИМА'!$I$8:$I$14039) -> 0 | F93: 0
A94: 660 | B94: Послови становања и заједнице некласификовани на другом месту | C94: =SUMIF('ПО КОРИСНИЦИМА'!$G$8:$G$14039,"Функција 660:",'ПО КОРИСНИЦИМА'!$H$8:$H$14039) -> 14000000 | D94: 0.02848828928 | E94: =SUMIF('ПО КОРИСНИЦИМА'!$G$8:$G$14039,"Функција 660:",'ПО КОРИСНИЦИМА'!$I$8:$I$14039) -> 0 | F94: 14000000
A95: 700 | B95: ЗДРАВСТВО | C95: =SUM(C96:C112) -> 5034600 | D95: 0.0102447958 | E95: =SUM(E96:E112) -> 0 | F95: 5034600
A96: 710 | B96: Медицински производи, помагала и опрема; | C96: =SUMIF('ПО КОРИСНИЦИМА'!$G$8:$G$14039,"Функција 710:",'ПО КОРИСНИЦИМА'!$H$8:$H$14039) -> 0 | D96: 0 | E96: =SUMIF('ПО КОРИСНИЦИМА'!$G$8:$G$14039,"Функција 710:",'ПО КОРИСНИЦИМА'!$I$8:$I$14039) -> 0 | F96: 0
A97: 711 | B97: Фармацеутски производи | C97: =SUMIF('ПО КОРИСНИЦИМА'!$G$8:$G$14039,"Функција 711:",'ПО КОРИСНИЦИМА'!$H$8:$H$14039) -> 0 | D97: 0 | E97: =SUMIF('ПО КОРИСНИЦИМА'!$G$8:$G$14039,"Функција 711:",'ПО КОРИСНИЦИМА'!$I$8:$I$14039) -> 0 | F97: 0
A98: 712 | B98: Остали медицински производи | C98: =SUMIF('ПО КОРИСНИЦИМА'!$G$8:$G$14039,"Функција 712:",'ПО КОРИСНИЦИМА'!$H$8:$H$14039) -> 0 | D98: 0 | E98: =SUMIF('ПО КОРИСНИЦИМА'!$G$8:$G$14039,"Функција 712:",'ПО КОРИСНИЦИМА'!$I$8:$I$14039) -> 0 | F98: 0
A99: 713 | B99: Терапеутска помагала и опрема | C99: =SUMIF('ПО КОРИСНИЦИМА'!$G$8:$G$14039,"Функција 713:",'ПО КОРИСНИЦИМА'!$H$8:$H$14039) -> 0 | D99: 0 | E99: =SUMIF('ПО КОРИСНИЦИМА'!$G$8:$G$14039,"Функција 713:",'ПО КОРИСНИЦИМА'!$I$8:$I$14039) -> 0 | F99: 0
A100: 720 | B100: Ванболничке услуге; | C100: =SUMIF('ПО КОРИСНИЦИМА'!$G$8:$G$14039,"Функција 720:",'ПО КОРИСНИЦИМА'!$H$8:$H$14039) -> 0 | D100: 0 | E100: =SUMIF('ПО КОРИСНИЦИМА'!$G$8:$G$14039,"Функција 720:",'ПО КОРИСНИЦИМА'!$I$8:$I$14039) -> 0 | F100: 0
A101: 721 | B101: Опште медицинске услуге | C101: =SUMIF('ПО КОРИСНИЦИМА'!$G$8:$G$14039,"Функција 721:",'ПО КОРИСНИЦИМА'!$H$8:$H$14039) -> 0 | D101: 0 | E101: =SUMIF('ПО КОРИСНИЦИМА'!$G$8:$G$14039,"Функција 721:",'ПО КОРИСНИЦИМА'!$I$8:$I$14039) -> 0 | F101: 0
A102: 722 | B102: Специјализоване медицинске услуге | C102: =SUMIF('ПО КОРИСНИЦИМА'!$G$8:$G$14039,"Функција 722:",'ПО КОРИСНИЦИМА'!$H$8:$H$14039) -> 0 | D102: 0 | E102: =SUMIF('ПО КОРИСНИЦИМА'!$G$8:$G$14039,"Функција 722:",'ПО КОРИСНИЦИМА'!$I$8:$I$14039) -> 0 | F102: 0
A103: 723 | B103: Стоматолошке услуге | C103: =SUMIF('ПО КОРИСНИЦИМА'!$G$8:$G$14039,"Функција 723:",'ПО КОРИСНИЦИМА'!$H$8:$H$14039) -> 0 | D103: 0 | E103: =SUMIF('ПО КОРИСНИЦИМА'!$G$8:$G$14039,"Функција 723:",'ПО КОРИСНИЦИМА'!$I$8:$I$14039) -> 0 | F103: 0
A104: 724 | B104: Парамедицинске услуге | C104: =SUMIF('ПО КОРИСНИЦИМА'!$G$8:$G$14039,"Функција 724:",'ПО КОРИСНИЦИМА'!$H$8:$H$14039) -> 0 | D104: 0 | E104: =SUMIF('ПО КОРИСНИЦИМА'!$G$8:$G$14039,"Функција 724:",'ПО КОРИСНИЦИМА'!$I$8:$I$14039) -> 0 | F104: 0
A105: 730 | B105: Болничке услуге; | C105: =SUMIF('ПО КОРИСНИЦИМА'!$G$8:$G$14039,"Функција 730:",'ПО КОРИСНИЦИМА'!$H$8:$H$14039) -> 0 | D105: 0 | E105: =SUMIF('ПО КОРИСНИЦИМА'!$G$8:$G$14039,"Функција 730:",'ПО КОРИСНИЦИМА'!$I$8:$I$14039) -> 0 | F105: 0
A106: 731 | B106: Опште болничке услуге | C106: =SUMIF('ПО КОРИСНИЦИМА'!$G$8:$G$14039,"Функција 731:",'ПО КОРИСНИЦИМА'!$H$8:$H$14039) -> 0 | D106: 0 | E106: =SUMIF('ПО КОРИСНИЦИМА'!$G$8:$G$14039,"Функција 731:",'ПО КОРИСНИЦИМА'!$I$8:$I$14039) -> 0 | F106: 0
A107: 732 | B107: Специјализоване болничке услуге | C107: =SUMIF('ПО КОРИСНИЦИМА'!$G$8:$G$14039,"Функција 732:",'ПО КОРИСНИЦИМА'!$H$8:$H$14039) -> 0 | D107: 0 | E107: =SUMIF('ПО КОРИСНИЦИМА'!$G$8:$G$14039,"Функција 732:",'ПО КОРИСНИЦИМА'!$I$8:$I$14039) -> 0 | F107: 0
A108: 733 | B108: Услуге медицинских центара и породилишта | C108: =SUMIF('ПО КОРИСНИЦИМА'!$G$8:$G$14039,"Функција 733:",'ПО КОРИСНИЦИМА'!$H$8:$H$14039) -> 0 | D108: 0 | E108: =SUMIF('ПО КОРИСНИЦИМА'!$G$8:$G$14039,"Функција 733:",'ПО КОРИСНИЦИМА'!$I$8:$I$14039) -> 0 | F108: 0
A109: 734 | B109: Услуге домова за негу и опоравак | C109: =SUMIF('ПО КОРИСНИЦИМА'!$G$8:$G$14039,"Функција 734:",'ПО КОРИСНИЦИМА'!$H$8:$H$14039) -> 0 | D109: 0 | E109: =SUMIF('ПО КОРИСНИЦИМА'!$G$8:$G$14039,"Функција 734:",'ПО КОРИСНИЦИМА'!$I$8:$I$14039) -> 0 | F109: 0
A110: 740 | B110: Услуге јавног здравства; | C110: =SUMIF('ПО КОРИСНИЦИМА'!$G$8:$G$14039,"Функција 740:",'ПО КОРИСНИЦИМА'!$H$8:$H$14039) -> 5034600 | D110: 0.0102447958 | E110: =SUMIF('ПО КОРИСНИЦИМА'!$G$8:$G$14039,"Функција 740:",'ПО КОРИСНИЦИМА'!$I$8:$I$14039) -> 0 | F110: 5034600
A111: 750 | B111: Здравство - истраживање и развој; | C111: =SUMIF('ПО КОРИСНИЦИМА'!$G$8:$G$14039,"Функција 750:",'ПО КОРИСНИЦИМА'!$H$8:$H$14039) -> 0 | D111: 0 | E111: =SUMIF('ПО КОРИСНИЦИМА'!$G$8:$G$14039,"Функција 750:",'ПО КОРИСНИЦИМА'!$I$8:$I$14039) -> 0 | F111: 0
A112: 760 | B112: Здравство некласификовано на другом месту. | C112: =SUMIF('ПО КОРИСНИЦИМА'!$G$8:$G$14039,"Функција 760:",'ПО КОРИСНИЦИМА'!$H$8:$H$14039) -> 0 | D112: 0 | E112: =SUMIF('ПО КОРИСНИЦИМА'!$G$8:$G$14039,"Функција 760:",'ПО КОРИСНИЦИМА'!$I$8:$I$14039) -> 0 | F112: 0
A113: 800 | B113: РЕКРЕАЦИЈА, СПОРТ, КУЛТУРА И ВЕРЕ | C113: =SUM(C114:C119) -> 26179900 | D113: 0.05327289746 | E113: =SUM(E114:E119) -> 784760 | F113: 26964660
A114: 810 | B114: Услуге рекреације и спорта; | C114: =SUMIF('ПО КОРИСНИЦИМА'!$G$8:$G$14039,"Функција 810:",'ПО КОРИСНИЦИМА'!$H$8:$H$14039) -> 10690000 | D114: 0.02175284374 | E114: =SUMIF('ПО КОРИСНИЦИМА'!$G$8:$G$14039,"Функција 810:",'ПО КОРИСНИЦИМА'!$I$8:$I$14039) -> 0 | F114: 10690000
A115: 820 | B115: Услуге културе; | C115: =SUMIF('ПО КОРИСНИЦИМА'!$G$8:$G$14039,"Функција 820:",'ПО КОРИСНИЦИМА'!$H$8:$H$14039) -> 9889900 | D115: 0.02012473801 | E115: =SUMIF('ПО КОРИСНИЦИМА'!$G$8:$G$14039,"Функција 820:",'ПО КОРИСНИЦИМА'!$I$8:$I$14039) -> 784760 | F115: 10674660
A116: 830 | B116: Услуге емитовања и штампања; | C116: =SUMIF('ПО КОРИСНИЦИМА'!$G$8:$G$14039,"Функција 830:",'ПО КОРИСНИЦИМА'!$H$8:$H$14039) -> 0 | D116: 0 | E116: =SUMIF('ПО КОРИСНИЦИМА'!$G$8:$G$14039,"Функција 830:",'ПО КОРИСНИЦИМА'!$I$8:$I$14039) -> 0 | F116: 0
A117: 840 | B117: Верске и остале услуге заједнице; | C117: =SUMIF('ПО КОРИСНИЦИМА'!$G$8:$G$14039,"Функција 840:",'ПО КОРИСНИЦИМА'!$H$8:$H$14039) -> 0 | D117: 0 | E117: =SUMIF('ПО КОРИСНИЦИМА'!$G$8:$G$14039,"Функција 840:",'ПО КОРИСНИЦИМА'!$I$8:$I$14039) -> 0 | F117: 0
A118: 850 | B118: Рекреација, спорт, култура и вере - истраживање и развој; | C118: =SUMIF('ПО КОРИСНИЦИМА'!$G$8:$G$14039,"Функција 850:",'ПО КОРИСНИЦИМА'!$H$8:$H$14039) -> 0 | D118: 0 | E118: =SUMIF('ПО КОРИСНИЦИМА'!$G$8:$G$14039,"Функција 850:",'ПО КОРИСНИЦИМА'!$I$8:$I$14039) -> 0 | F118: 0
A119: 860 | B119: Рекреација, спорт, култура и вере, некласификовано на другом месту | C119: =SUMIF('ПО КОРИСНИЦИМА'!$G$8:$G$14039,"Функција 860:",'ПО КОРИСНИЦИМА'!$H$8:$H$14039) -> 5600000 | D119: 0.01139531571 | E119: =SUMIF('ПО КОРИСНИЦИМА'!$G$8:$G$14039,"Функција 860:",'ПО КОРИСНИЦИМА'!$I$8:$I$14039) -> 0 | F119: 5600000
A120: 900 | B120: ОБРАЗОВАЊЕ | C120: =SUM(C121:C141) -> 54144047 | D120: 0.1101765195 | E120: =SUM(E121:E141) -> 11754011 | F120: 65898058
A121: 910 | B121: Предшколско и основно образовање; | C121: =SUMIF('ПО КОРИСНИЦИМА'!$G$8:$G$14039,"Функција 910:",'ПО КОРИСНИЦИМА'!$H$8:$H$14039) -> 0 | D121: 0 | E121: =SUMIF('ПО КОРИСНИЦИМА'!$G$8:$G$14039,"Функција 910:",'ПО КОРИСНИЦИМА'!$I$8:$I$14039) -> 0 | F121: 0
A122: 911 | B122: Предшколско образовање | C122: =SUMIF('ПО КОРИСНИЦИМА'!$G$8:$G$14039,"Функција 911:",'ПО КОРИСНИЦИМА'!$H$8:$H$14039) -> 18057207 | D122: 0.03674420976 | E122: =SUMIF('ПО КОРИСНИЦИМА'!$G$8:$G$14039,"Функција 911:",'ПО КОРИСНИЦИМА'!$I$8:$I$14039) -> 11754011 | F122: 29811218
A123: 912 | B123: Основно образовање | C123: =SUMIF('ПО КОРИСНИЦИМА'!$G$8:$G$14039,"Функција 912:",'ПО КОРИСНИЦИМА'!$H$8:$H$14039) -> 29950000 | D123: 0.06094459028 | E123: =SUMIF('ПО КОРИСНИЦИМА'!$G$8:$G$14039,"Функција 912:",'ПО КОРИСНИЦИМА'!$I$8:$I$14039) -> 0 | F123: 29950000
A124: 913 | B124: Основно образовање са домом ученика | C124: =SUMIF('ПО КОРИСНИЦИМА'!$G$8:$G$14039,"Функција 913:",'ПО КОРИСНИЦИМА'!$H$8:$H$14039) -> 0 | D124: 0 | E124: =SUMIF('ПО КОРИСНИЦИМА'!$G$8:$G$14039,"Функција 913:",'ПО КОРИСНИЦИМА'!$I$8:$I$14039) -> 0 | F124: 0
A125: 914 | B125: Основно образовање са средњом школом | C125: =SUMIF('ПО КОРИСНИЦИМА'!$G$8:$G$14039,"Функција 914:",'ПО КОРИСНИЦИМА'!$H$8:$H$14039) -> 0 | D125: 0 | E125: =SUMIF('ПО КОРИСНИЦИМА'!$G$8:$G$14039,"Функција 914:",'ПО КОРИСНИЦИМА'!$I$8:$I$14039) -> 0 | F125: 0
A126: 915 | B126: Специјално основно образовање | C126: =SUMIF('ПО КОРИСНИЦИМА'!$G$8:$G$14039,"Функција 915:",'ПО КОРИСНИЦИМА'!$H$8:$H$14039) -> 0 | D126: 0 | E126: =SUMIF('ПО КОРИСНИЦИМА'!$G$8:$G$14039,"Функција 915:",'ПО КОРИСНИЦИМА'!$I$8:$I$14039) -> 0 | F126: 0
A127: 916 | B127: Основно образовање са средњом школом и домом ученика | C127: =SUMIF('ПО КОРИСНИЦИМА'!$G$8:$G$14039,"Функција 916:",'ПО КОРИСНИЦИМА'!$H$8:$H$14039) -> 0 | D127: 0 | E127: =SUMIF('ПО КОРИСНИЦИМА'!$G$8:$G$14039,"Функција 916:",'ПО КОРИСНИЦИМА'!$I$8:$I$14039) -> 0 | F127: 0
A128: 920 | B128: Средње образовање; | C128: =SUMIF('ПО КОРИСНИЦИМА'!$G$8:$G$14039,"Функција 920:",'ПО КОРИСНИЦИМА'!$H$8:$H$14039) -> 6136840 | D128: 0.01248771951 | E128: =SUMIF('ПО КОРИСНИЦИМА'!$G$8:$G$14039,"Функција 920:",'ПО КОРИСНИЦИМА'!$I$8:$I$14039) -> 0 | F128: 6136840
A129: 921 | B129: Ниже средње образовање | C129: =SUMIF('ПО КОРИСНИЦИМА'!$G$8:$G$14039,"Функција 921:",'ПО КОРИСНИЦИМА'!$H$8:$H$14039) -> 0 | D129: 0 | E129: =SUMIF('ПО КОРИСНИЦИМА'!$G$8:$G$14039,"Функција 921:",'ПО КОРИСНИЦИМА'!$I$8:$I$14039) -> 0 | F129: 0
A130: 922 | B130: Више средње образовање | C130: =SUMIF('ПО КОРИСНИЦИМА'!$G$8:$G$14039,"Функција 922:",'ПО КОРИСНИЦИМА'!$H$8:$H$14039) -> 0 | D130: 0 | E130: =SUMIF('ПО КОРИСНИЦИМА'!$G$8:$G$14039,"Функција 922:",'ПО КОРИСНИЦИМА'!$I$8:$I$14039) -> 0 | F130: 0
A131: 923 | B131: Средње образовање са домом ученика | C131: =SUMIF('ПО КОРИСНИЦИМА'!$G$8:$G$14039,"Функција 923:",'ПО КОРИСНИЦИМА'!$H$8:$H$14039) -> 0 | D131: 0 | E131: =SUMIF('ПО КОРИСНИЦИМА'!$G$8:$G$14039,"Функција 923:",'ПО КОРИСНИЦИМА'!$I$8:$I$14039) -> 0 | F131: 0
A132: 930 | B132: Више образовање; | C132: =SUMIF('ПО КОРИСНИЦИМА'!$G$8:$G$14039,"Функција 930:",'ПО КОРИСНИЦИМА'!$H$8:$H$14039) -> 0 | D132: 0 | E132: =SUMIF('ПО КОРИСНИЦИМА'!$G$8:$G$14039,"Функција 930:",'ПО КОРИСНИЦИМА'!$I$8:$I$14039) -> 0 | F132: 0
A133: 931 | B133: Више образовање | C133: =SUMIF('ПО КОРИСНИЦИМА'!$G$8:$G$14039,"Функција 931:",'ПО КОРИСНИЦИМА'!$H$8:$H$14039) -> 0 | D133: 0 | E133: =SUMIF('ПО КОРИСНИЦИМА'!$G$8:$G$14039,"Функција 931:",'ПО КОРИСНИЦИМА'!$I$8:$I$14039) -> 0 | F133: 0
A134: 932 | B134: Више образовање са студентским домом | C134: =SUMIF('ПО КОРИСНИЦИМА'!$G$8:$G$14039,"Функција 932:",'ПО КОРИСНИЦИМА'!$H$8:$H$14039) -> 0 | D134: 0 | E134: =SUMIF('ПО КОРИСНИЦИМА'!$G$8:$G$14039,"Функција 932:",'ПО КОРИСНИЦИМА'!$I$8:$I$14039) -> 0 | F134: 0
A135: 940 | B135: Високо образовање; | C135: =SUMIF('ПО КОРИСНИЦИМА'!$G$8:$G$14039,"Функција 940:",'ПО КОРИСНИЦИМА'!$H$8:$H$14039) -> 0 | D135: 0 | E135: =SUMIF('ПО КОРИСНИЦИМА'!$G$8:$G$14039,"Функција 940:",'ПО КОРИСНИЦИМА'!$I$8:$I$14039) -> 0 | F135: 0
A136: 941 | B136: Високо образовање - први степен | C136: =SUMIF('ПО КОРИСНИЦИМА'!$G$8:$G$14039,"Функција 941:",'ПО КОРИСНИЦИМА'!$H$8:$H$14039) -> 0 | D136: =IFERROR(C136/$C$142,"-") -> 0 | E136: =SUMIF('ПО КОРИСНИЦИМА'!$G$8:$G$14039,"Функција 941:",'ПО КОРИСНИЦИМА'!$I$8:$I$14039) -> 0 | F136: 0
A137: 942 | B137: Високо образовање - други степен | C137: =SUMIF('ПО КОРИСНИЦИМА'!$G$8:$G$14039,"Функција 942:",'ПО КОРИСНИЦИМА'!$H$8:$H$14039) -> 0 | D137: 0 | E137: =SUMIF('ПО КОРИСНИЦИМА'!$G$8:$G$14039,"Функција 942:",'ПО КОРИСНИЦИМА'!$I$8:$I$14039) -> 0 | F137: =SUM(E137,C137) -> 0
A138: 950 | B138: Образовање које није дефинисано нивоом; | C138: =SUMIF('ПО КОРИСНИЦИМА'!$G$8:$G$14039,"Функција 950:",'ПО КОРИСНИЦИМА'!$H$8:$H$14039) -> 0 | D138: 0 | E138: =SUMIF('ПО КОРИСНИЦИМА'!$G$8:$G$14039,"Функција 950:",'ПО КОРИСНИЦИМА'!$I$8:$I$14039) -> 0 | F138: 0
A139: 960 | B139: Помоћне услуге образовању; | C139: =SUMIF('ПО КОРИСНИЦИМА'!$G$8:$G$14039,"Функција 960:",'ПО КОРИСНИЦИМА'!$H$8:$H$14039) -> 0 | D139: 0 | E139: =SUMIF('ПО КОРИСНИЦИМА'!$G$8:$G$14039,"Функција 960:",'ПО КОРИСНИЦИМА'!$I$8:$I$14039) -> 0 | F139: 0
A140: 970 | B140: Образовање - истраживање и развој; | C140: =SUMIF('ПО КОРИСНИЦИМА'!$G$8:$G$14039,"Функција 970:",'ПО КОРИСНИЦИМА'!$H$8:$H$14039) -> 0 | D140: 0 | E140: =SUMIF('ПО КОРИСНИЦИМА'!$G$8:$G$14039,"Функција 970:",'ПО КОРИСНИЦИМА'!$I$8:$I$14039) -> 0 | F140: 0
A141: 980 | B141: Образовање некласификовано на другом месту | C141: =SUMIF('ПО КОРИСНИЦИМА'!$G$8:$G$14039,"Функција 980:",'ПО КОРИСНИЦИМА'!$H$8:$H$14039) -> 0 | D141: 0 | E141: =SUMIF('ПО КОРИСНИЦИМА'!$G$8:$G$14039,"Функција 980:",'ПО КОРИСНИЦИМА'!$I$8:$I$14039) -> 0 | F141: 0
B142: УКУПНО | C142: =SUM(C7,C17,C34,C41,C81,C88,C95,C113,C120) -> 491430000 | D142: 1 | E142: =SUM(E7,E17,E34,E41,E81,E88,E95,E113,E120) -> 72651100.84 | F142: =SUM(E142,C142) -> 564081100.8
C143: =C142-'По основ. нам.'!C89 -> 0

Sheet ПО КОРИСНИЦИМА
J1: стр.7
G2: II ПОСЕБАН ДЕО
G3: Члан 8.
F4: Члан 9. мења се и гласи:
B5: Средства буџета у износу од 491.430.000 динара и средства из осталих извора корисника буџета у износу од 72.651.101 динара , распоређују се по корисницима и врстама издатака и то:
A6: Раздео | B6: Глава | C6: Програм-ска Класиф. | D6: Функција | E6: Позиција | F6: Економ. Класиф. | G6: Опис | H6: Средства из буџета | I6: Средства из осталих извора | J6: Укупна јавна средства
A7: 1 | B7: 2 | C7: 4 | D7: 3 | E7: 6 | F7: 7 | G7: 8 | H7: 9 | I7: 10 | J7: 11
A8: 1 | B8: 1 | G8: СКУПШТИНА ОПШТИНЕ 92135
C9: 0602 | G9: ПРОГРАМ 15: ЛОКАЛНА САМОУПРАВА
C10: 0602-0001 | G10: Функционисање локалне самоуправе и градских општина
D11: 110 | G11: Извршни и законодавни органи, финансијски и фискални послови и спољни послови
E12: 1 | F12: 411 | G12: Плате, додаци и накнаде запослених (зараде) | H12: 1042000 | J12: =SUM(H12:I12) -> 1042000
E13: 2 | F13: 412 | G13: Социјални доприноси на терет послодавца | H13: 186500 | J13: =SUM(H13:I13) -> 186500
F14: 413 | G14: Накнаде у натури | J14: 0
F15: 414 | G15: Социјална давања запосленима | J15: 0
F16: 415 | G16: Накнаде трошкова за запослене | J16: 0
E17: 3 | F17: 416 | G17: Награде запосленима и остали посебни расходи | H17: 480000 | J17: 480000
E18: 3 | F18: 417 | G18: Посланички додатак | J18: 0
E19: 3 | F19: 418 | G19: Судијски додатак. | J19: 0
E20: 3 | F20: 421 | G20: Стални трошкови | J20: 0
E21: 4 | F21: 422 | G21: Трошкови путовања | H21: 20000 | J21: 20000
E22: 5 | F22: 423 | G22: Услуге по уговору | H22: 5750000 | J22: 5750000
E23: 3
E24: 3 | F24: 424 | G24: Специјализоване услуге | J24: 0
E25: 5/1 | F25: 426 | G25: Материјал | H25: 40000 | J25: 40000
E26: 6 | F26: 465 | G26: Остале донације, дотације и трансфери | H26: 150000 | J26: 150000
E27: 3 | F27: 431 | G27: Амортизација некретнина и опреме | J27: 0
E28: 3 | F28: 432 | G28: Амортизација култивисане имовине | J28: 0
E29: 3 | F29: 433 | G29: Употреба драгоцености | J29: 0
E30: 3 | F30: 434 | G30: Употреба природне имовине | J30: 0
E31: 3 | F31: 435 | G31: Амортизација нематеријалне имовине | J31: 0
E32: 3 | F32: 441 | G32: Отплата домаћих камата | J32: 0
E33: 3 | F33: 442 | G33: Отплата страних камата | J33: 0
E34: 3 | F34: 443 | G34: Отплата камата по гаранцијама | J34: 0
E35: 3 | F35: 444 | G35: Пратећи трошкови задуживања | J35: 0
E36: 3 | F36: 4511 | G36: Текуће субвенције јавним нефинансијским предузећима и организацијама | J36: 0
E37: 3 | F37: 4512 | G37: Капиталне субвенције јавним нефинансијским предузећима и организацијама | J37: 0
E38: 3 | F38: 452 | G38: Субвенције приватним финансијским институцијама | J38: 0
E39: 3 | F39: 453 | G39: Субвенције јавним финансијским институцијама | J39: 0
E40: 3 | F40: 454 | G40: Субвенције приватним предузећима | J40: 0
E41: 3 | F41: 461 | G41: Донације страним владама | J41: 0
E42: 3 | F42: 462 | G42: Донације и дотације међународним организацијама | J42: 0
E43: 3 | F43: 4631 | G43: Текући трансфери осталим нивоима власти | J43: 0
E44: 3 | F44: 4632 | G44: Капитални трансфери осталим нивоима власти | J44: 0
E45: 3 | F45: 464 | G45: Дотације организацијама обавезног социјалног осигурања | J45: 0
E46: 3 | F46: 465 | G46: Остале донације, дотације и трансфери | J46: 0
E47: 3 | F47: 472 | G47: Накнаде за социјалну заштиту из буџета | J47: 0
E48: 7 | F48: 481 | G48: Дотације невладиним организацијама | H48: 352500 | J48: 352500
F49: 482 | G49: Порези, обавезне таксе, казне и пенали | J49: 0
F50: 483 | G50: Новчане казне и пенали по решењу судова | J50: 0
F51: 484 | G51: Накнада штете за повреде или штету насталу услед елементарних непогода или других природних узрока | J51: 0
F52: 485 | G52: Накнада штете за повреде или штету нанету од стране државних органа | J52: 0
F53: 489 | G53: Расходи који се финансирају из средстава за реализацију националног инвестиционог плана | J53: 0
F54: 494 | G54: Административни трансфери из буџета - Текући расходи | J54: 0
F55: 495 | G55: Административни трансфери из буџета - Издаци за нефинансијску имовину | J55: 0
F56: 496 | G56: Административни трансфери из буџета - Издаци за отплату главнице и набавку финансијске имовине | J56: 0
F57: 499 | G57: Административни трансфери из буџета - Средства резерве | J57: 0
F58: 511 | G58: Зграде и грађевински објекти | J58: 0
F59: 512 | G59: Машине и опрема | J59: 0
F60: 513 | G60: Остале некретнине и опрема | J60: 0
F61: 514 | G61: Култивисана имовина | J61: 0
F62: 515 | G62: Нематеријална имовина | J62: 0
F63: 521 | G63: Робне резерве | J63: 0
F64: 522 | G64: Залихе производње | J64: 0
F65: 523 | G65: Залихе робе за даљу продају | J65: 0
F66: 531 | G66: Драгоцености | J66: 0
F67: 541 | G67: Земљиште | J67: 0
F68: 542 | G68: Рудна богатства | J68: 0
F69: 543 | G69: Шуме и воде | J69: 0
F70: 551 | G70: Нефинансијска имовина која се финансира из средстава за реализацију националног инвестиционог плана | J70: 0
F71: 611 | G71: Отплата главнице домаћим кредиторима | J71: 0
F72: 620 | G72: Набавка финансијске имовине | J72: 0
G73: Извори финансирања за функцију 110:
F74: 01 | G74: Приходи из буџета | H74: =SUM(H12:H48) -> 8021000 | J74: =SUM(H74:I74) -> 8021000
F75: 02 | G75: Трансфери између корисника на истом нивоу | J75: 0
F76: 03 | G76: Социјални доприноси | J76: 0
F77: 04 | G77: Сопствени приходи буџетских корисника | J77: 0
F78: 05 | G78: Донације од иностраних земаља | J78: 0
F79: 06 | G79: Донације од међународних организација | J79: 0
F80: 07 | G80: Трансфери од других нивоа власти | J80: 0
F81: 08 | G81: Добровољни трансфери од физичких и правних лица | J81: 0
F82: 09 | G82: Примања од продаје нефинансијске имовине | J82: 0
F83: 10 | G83: Примања од домаћих задуживања | J83: 0
F84: 11 | G84: Примања од иностраних задуживања | J84: 0
F85: 12 | G85: Примања од отплате датих кредита и продаје финансијске имовине | J85: 0
F86: 13 | G86: Нераспоређени вишак прихода из ранијих година | J86: 0
F87: 14 | G87: Неутрошена средства од приватизације из претходних година | J87: 0
F88: 15 | G88: Неутрошена средства донација из претходних година | J88: 0
F89: 16 | G89: Родитељски динар за ваннаставне активности | J89: 0
G90: Функција 110: | H90: =SUM(H74:H89) -> 8021000 | I90: =SUM(I75:I89) -> 0 | J90: =SUM(J74:J89) -> 8021000
G91: Извори финансирања за програмску активност 0602-0001:
F92: 01 | G92: Приходи из буџета | H92: =SUM(H12:H72) -> 8021000 | J92: =SUM(H92:I92) -> 8021000
F93: 02 | G93: Трансфери између корисника на истом нивоу | J93: =SUM(H93:I93) -> 0
F94: 03 | G94: Социјални доприноси | J94: 0
F95: 04 | G95: Сопствени приходи буџетских корисника | J95: 0
F96: 05 | G96: Донације од иностраних земаља | J96: 0
F97: 06 | G97: Донације од међународних организација | J97: 0
F98: 07 | G98: Трансфери од других нивоа власти | J98: 0
F99: 08 | G99: Добровољни трансфери од физичких и правних лица | J99: 0
F100: 09 | G100: Примања од продаје нефинансијске имовине | J100: 0
F101: 10 | G101: Примања од домаћих задуживања | J101: 0
F102: 11 | G102: Примања од иностраних задуживања | J102: 0
F103: 12 | G103: Примања од отплате датих кредита и продаје финансијске имовине | J103: 0
F104: 13 | G104: Нераспоређени вишак прихода из ранијих година | J104: 0
F105: 14 | G105: Неутрошена средства од приватизације из претходних година | J105: 0
F106: 15 | G106: Неутрошена средства донација из претходних година | J106: 0
F107: 16 | G107: Родитељски динар за ваннаставне активности | J107: 0
G108: Свега за програмску активност 0602-0001: | H108: =SUM(H92:H107) -> 8021000 | I108: =SUM(I93:I107) -> 0 | J108: =SUM(J92:J107) -> 8021000
C110: 0602-П1 | G110: Прослава Дана особођења Града
D111: 110 | G111: Извршни и законодавни органи, финансијски и фискални послови и спољни послови
F112: 411 | G112: Плате, додаци и накнаде запослених (зараде) | J112: =SUM(H112:I112) -> 0
F113: 412 | G113: Социјални доприноси на терет послодавца | J113: =SUM(H113:I113) -> 0
F114: 413 | G114: Накнаде у натури | J114: 0
F115: 414 | G115: Социјална давања запосленима | J115: 0
F116: 415 | G116: Накнаде трошкова за запослене | J116: 0
F117: 416 | G117: Награде запосленима и остали посебни расходи | J117: 0
F118: 417 | G118: Посланички додатак | J118: 0
F119: 418 | G119: Судијски додатак. | J119: 0
F120: 421 | G120: Стални трошкови | J120: 0
F121: 422 | G121: Трошкови путовања | J121: 0
F122: 423 | G122: Услуге по уговору | J122: 0
F123: 424 | G123: Специјализоване услуге | J123: 0
F124: 425 | G124: Текуће поправке и одржавање | J124: 0
F125: 426 | G125: Материјал | J125: 0
F126: 431 | G126: Амортизација некретнина и опреме | J126: 0
F127: 432 | G127: Амортизација култивисане имовине | J127: 0
F128: 433 | G128: Употреба драгоцености | J128: 0
F129: 434 | G129: Употреба природне имовине | J129: 0
F130: 435 | G130: Амортизација нематеријалне имовине | J130: 0
F131: 441 | G131: Отплата домаћих камата | J131: 0
F132: 442 | G132: Отплата страних камата | J132: 0
F133: 443 | G133: Отплата камата по гаранцијама | J133: 0
F134: 444 | G134: Пратећи трошкови задуживања | J134: 0
F135: 4511 | G135: Текуће субвенције јавним нефинансијским предузећима и организацијама | J135: 0
F136: 4512 | G136: Капиталне субвенције јавним нефинансијским предузећима и организацијама | J136: 0
F137: 452 | G137: Субвенције приватним финансијским институцијама | J137: 0
F138: 453 | G138: Субвенције јавним финансијским институцијама | J138: 0
F139: 454 | G139: Субвенције приватним предузећима | J139: 0
F140: 461 | G140: Донације страним владама | J140: 0
F141: 462 | G141: Донације и дотације међународним организацијама | J141: 0
F142: 4631 | G142: Текући трансфери осталим нивоима власти | J142: 0
F143: 4632 | G143: Капитални трансфери осталим нивоима власти | J143: 0
F144: 464 | G144: Дотације организацијама обавезног социјалног осигурања | J144: 0
F145: 465 | G145: Остале донације, дотације и трансфери | J145: 0
F146: 472 | G146: Накнаде за социјалну заштиту из буџета | J146: 0
F147: 481 | G147: Дотације невладиним организацијама | J147: 0
F148: 482 | G148: Порези, обавезне таксе, казне и пенали | J148: 0
F149: 483 | G149: Новчане казне и пенали по решењу судова | J149: 0
F150: 484 | G150: Накнада штете за повреде или штету насталу услед елементарних непогода или других природних узрока | J150: 0
F151: 485 | G151: Накнада штете за повреде или штету нанету од стране државних органа | J151: 0
F152: 489 | G152: Расходи који се финансирају из средстава за реализацију националног инвестиционог плана | J152: 0
F153: 494 | G153: Административни трансфери из буџета - Текући расходи | J153: 0
F154: 495 | G154: Административни трансфери из буџета - Издаци за нефинансијску имовину | J154: 0
F155: 496 | G155: Административни трансфери из буџета - Издаци за отплату главнице и набавку финансијске имовине | J155: 0
F156: 499 | G156: Административни трансфери из буџета - Средства резерве | J156: 0
F157: 511 | G157: Зграде и грађевински објекти | J157: 0
F158: 512 | G158: Машине и опрема | J158: 0
F159: 513 | G159: Остале некретнине и опрема | J159: 0
F160: 514 | G160: Култивисана имовина | J160: 0
F161: 515 | G161: Нематеријална имовина | J161: 0
F162: 521 | G162: Робне резерве | J162: 0
F163: 522 | G163: Залихе производње | J163: 0
F164: 523 | G164: Залихе робе за даљу продају | J164: 0
F165: 531 | G165: Драгоцености | J165: 0
F166: 541 | G166: Земљиште | J166: 0
F167: 542 | G167: Рудна богатства | J167: 0
F168: 543 | G168: Шуме и воде | J168: 0
F169: 551 | G169: Нефинансијска имовина која се финансира из средстава за реализацију националног инвестиционог плана | J169: 0
F170: 611 | G170: Отплата главнице домаћим кредиторима | J170: 0
F171: 620 | G171: Набавка финансијске имовине | J171: 0
G172: Извори финансирања за функцију 110:
F173: 01 | G173: Приходи из буџета | H173: =SUM(H112:H171) -> 0 | J173: =SUM(H173:I173) -> 0
F174: 02 | G174: Трансфери између корисника на истом нивоу | J174: =SUM(H174:I174) -> 0
F175: 03 | G175: Социјални доприноси | J175: 0
F176: 04 | G176: Сопствени приходи буџетских корисника | J176: 0
F177: 05 | G177: Донације од иностраних земаља | J177: 0
F178: 06 | G178: Донације од међународних организација | J178: 0
F179: 07 | G179: Трансфери од других нивоа власти | J179: 0
F180: 08 | G180: Добровољни трансфери од физичких и правних лица | J180: 0
F181: 09 | G181: Примања од продаје нефинансијске имовине | J181: 0
F182: 10 | G182: Примања од домаћих задуживања | J182: 0
F183: 11 | G183: Примања од иностраних задуживања | J183: 0
F184: 12 | G184: Примања од отплате датих кредита и продаје финансијске имовине | J184: 0
F185: 13 | G185: Нераспоређени вишак прихода из ранијих година | J185: 0
F186: 14 | G186: Неутрошена средства од приватизације из претходних година | J186: 0
F187: 15 | G187: Неутрошена средства донација из претходних година | J187: 0
F188: 16 | G188: Родитељски динар за ваннаставне активности | J188: 0
G189: Функција 110: | H189: =SUM(H173:H188) -> 0 | I189: =SUM(I174:I188) -> 0 | J189: =SUM(J173:J188) -> 0
G190: Извори финансирања за пројекат 0602-П1:
F191: 01 | G191: Приходи из буџета | H191: =SUM(H112:H171) -> 0 | J191: =SUM(H191:I191) -> 0
F192: 02 | G192: Трансфери између корисника на истом нивоу | J192: =SUM(H192:I192) -> 0
F193: 03 | G193: Социјални доприноси | J193: 0
F194: 04 | G194: Сопствени приходи буџетских корисника | J194: 0
F195: 05 | G195: Донације од иностраних земаља | J195: 0
F196: 06 | G196: Донације од међународних организација | J196: 0
F197: 07 | G197: Трансфери од других нивоа власти | J197: 0
F198: 08 | G198: Добровољни трансфери од физичких и правних лица | J198: 0
F199: 09 | G199: Примања од продаје нефинансијске имовине | J199: 0
F200: 10 | G200: Примања од домаћих задуживања | J200: 0
F201: 11 | G201: Примања од иностраних задуживања | J201: 0
... 3848 more rows

Sheet Класификације
A1: ФУНКЦИОНАЛНА КЛАСИФИКАЦИЈА | G1: КЛАСИФИКАЦИЈА ПО ИЗВОРИМА ФИНАНСИРАЊА | L1: ЕКОНОМСКА КЛАСИФИКАЦИЈА | P1: ПРОГРАМСКА КЛАСИФИКАЦИЈА
A2: 0 | B2: СОЦИЈАЛНА ЗАШТИТА | G2: 01 | H2: Приходи из буџета | L2: КОНТО | M2: ОПИС | P2: Програм: | Q2: Шифра | R2: Сврха
A3: 10 | B3: Болест и инвалидност | G3: 02 | H3: Трансфери између корисника на истом нивоу | L3: 0 | M3: Нефинансијска имовина | P3: Програм 1. Локални развој и просторно планирање | Q3: 1101 | R3: Планско одређивање праваца развоја локалне средине и ефикасно администрирање захтева за издавање грађевинских дозвола
A4: 20 | B4: Старост | G4: 03 | H4: Социјални доприноси | L4: 10000 | M4: Нефинансијска имовина у сталним средствима | P4: Програм 2. Комунална делатност | Q4: 0601 | R4: Обезбеђивање рационалног обављања комуналних делатности са што већом обухватношћу територије и становништва ЈЛС и побољшање квалитета живота становништва успостављањем ефикасног система комуналних услуга
A5: 30 | B5: Корисници породичне пензије | G5: 04 | H5: Сопствени приходи буџетских корисника | L5: 11000 | M5: Некретнине и опрема | P5: Програм 3. Локални економски развој | Q5: 1501 | R5: Обезбеђивање стимулативног оквира за пословање и адекватног привредног амбијента за привлачење инвестиција
A6: 40 | B6: Породица и деца | G6: 05 | H6: Донације од иностраних земаља | L6: 11100 | M6: Зграде и грађевински објекти | P6: Програм 4. Развој туризма | Q6: 1502 | R6: Унапређење туристичке понуде у ЈЛС
A7: 50 | B7: Незапосленост | G7: 06 | H7: Донације од међународних организација | L7: 11110 | M7: Стамбене зграде и станови | P7: Програм 5. Развој пољопривреде | Q7: 0101 | R7: Унапређење пољопривредне производње у ЈЛС
A8: 60 | B8: Становање | G8: 07 | H8: Трансфери од осталих нивоа власти | L8: 11111 | M8: Стамбене зграде за јавне службенике | P8: Програм 6. Заштита животне средине | Q8: 0401 | R8: Обезбеђивање услова за одрживи развој локалне заједнице одговорним односом према животној средини
A9: 70 | B9: Социјална помоћ угроженом становништву, некласификована на другом месту | G9: 08 | H9: Добровољни трансфери од физичких и правних лица | L9: 11112 | M9: Стамбени простор за социјалне групе | P9: Програм 7. Путна инфраструктура | Q9: 0701 | R9: Унапређење путне инфраструктуре у ЈЛС
A10: 80 | B10: Социјална заштита - истраживање и развој | G10: 09 | H10: Примања од продаје нефинансијске имовине | L10: 11113 | M10: Стамбени простор за избеглице | P10: Програм 8. Предшколско васпитање | Q10: 2001 | R10: Омогућавање обухвата предшколске деце у вртићима
A11: 90 | B11: Социјална заштита некласификована на другом месту | G11: 10 | H11: Примања од домаћих задуживања | L11: 11115 | M11: Остале стамбене зграде | P11: Програм 9. Основно образовање | Q11: 2002 | R11: Доступност основног образовања свој деци са територије ЈЛС у складу са прописаним стандардима
A12: 100 | B12: ОПШТЕ ЈАВНЕ УСЛУГЕ | G12: 11 | H12: Примања од иностраних задуживања | L12: 11116 | M12: Лизинг стамбених зграда и станова | P12: Програм 10. Средње образовање | Q12: 2003 | R12: Доступност средњег образовања у складу са прописаним стандардима и потребама за образовним профилима који одговарају циљевима развоја ЈЛС и привреде
A13: 110 | B13: Извршни и законодавни органи, финансијски и фискални послови и спољни послови | G13: 12 | H13: Примања од отплате датих кредита и продаје финансијске имовине | L13: 11117 | M13: Добити које су резултат промене вредности стамбених зграда и станова | P13: Програм 11. Социјална и дечја заштита | Q13: 0901 | R13: Обезбеђивање свеобухватне социјалне заштите и помоћи најугроженијем становништву ЈЛС
A14: 111 | B14: Извршни и законодавни органи | G14: 13 | H14: Нераспоређени вишак прихода из ранијих година | L14: 11118 | M14: Друге промене у обиму стамбених зграда и станова | P14: Програм 12. Примарна здравствена заштита | Q14: 1801 | R14: Доступност примарне здравствене заштите у складу са националним стандардима
A15: 112 | B15: Финансијски и фискални послови | G15: 14 | H15: Неутрошена средства од приватизације из претходних година | L15: 11119 | M15: Исправка вредности стамбених зграда и станова | P15: Програм 13. Развој културе | Q15: 1201 | R15: Очување, унапређење и представљање локалног културног наслеђа, добара и баштине
A16: 113 | B16: Спољни послови | G16: 15 | H16: Неутрошена средства донација из претходних година | L16: 11120 | M16: Пословне зграде | P16: Програм 14. Развој спорта и омладине | Q16: 1301 | R16: Обезбеђивање приступа спорту и подршка пројектима везаним развој омладине и спорта
A17: 120 | B17: Економска помоћ иностранству | G17: 16 | H17: Родитељски динар за ваннаставне активности | L17: 11121 | M17: Болнице, домови здравља и старачки домови | P17: Програм 15. Локална самоуправа | Q17: 0602 | R17: Обезбеђивање услова за остварење права грађана на лакши и бржи начин у ЈЛС
A18: 121 | B18: Економска помоћ земљама у развоју и земљама у транзицији | L18: 11125 | M18: Остале пословне зграде
A19: 122 | B19: Економска помоћ преко међународних организација | L19: 11126 | M19: Лизинг пословних зграда
A20: 130 | B20: Опште услуге | L20: 11127 | M20: Добити које су резултат промене вредности пословних зграда
A21: 131 | B21: Опште кадровске услуге | L21: 11128 | M21: Друге промене у обиму пословних зграда
A22: 132 | B22: Опште услуге планирања и статистике | L22: 11129 | M22: Исправка вредности пословних зграда
A23: 133 | B23: Остале опште услуге | L23: 11130 | M23: Пословни простор и други објекти | P23: Програм_1__Локални_развој_и_просторно_планирање | Q23: 1101-0001 Стратешко, просторно и урбанистичко планирање | R23: 1101-0002 Уређивање грађевинског земљишта
A24: 140 | B24: Основно истраживање | L24: 11131 | M24: Објекти за потребе образовања | P24: Програм_2__Комунална_делатност | Q24: 0601-0001 Водоснабдевање | R24: 0601-0002 Управљање отпадним водама | S24: 0601-0003 Одржавање депонија | T24: 0601-0004 Даљинско грејање | U24: 0601-0005 Јавни превоз | V24: 0601-0006 Паркинг сервис | W24: 0601-0007 Уређивање, одржавање и коришћење пијаца | X24: 0601-0008 Јавна хигијена | Y24: 0601-0009 Уређење и одржавање зеленила | Z24: 0601-0010 Јавна расвета | AA24: 0601-0011 Одржавање гробаља и погребне услуге | AB24: 0601-0012 Одржавање стамбених зграда | AC24: 0601-0013 Ауто-такси превоз путника | AD24: 0601-0014 Остале комуналне услуге
A25: 150 | B25: Опште јавне услуге - истраживање и развој | L25: 11132 | M25: Ресторани, одмаралишта | P25: Програм_3__Локални_економски_развој | Q25: 1501-0001 Подршка постојећој привреди | R25: 1501-0002 Унапређење привредног амбијента | S25: 1501-0003 Подстицаји за развој предузетништва | T25: 1501-0004 Одржавање економске инфраструктуре | U25: 1501-0005 Финансијска подршка локалном економском развоју
A26: 160 | B26: Опште јавне услуге некласификоване на другом месту | L26: 11133 | M26: Складишта, силоси, гараже и сл. | P26: Програм_4__Развој_туризма | Q26: 1502-0001 Управљање развојем туризма | R26: 1502-0002 Туристичка промоција
A27: 170 | B27: Трансакције јавног дуга | L27: 11134 | M27: Гранични прелази | P27: Програм_5__Развој_пољопривреде | Q27: 0101-0001 Унапређење услова за пољопривредну делатност | R27: 0101-0002 Подстицаји пољопривредној производњи
A28: 180 | B28: Трансфери општег карактера између различитих нивоа власти | L28: 11135 | M28: Фабричке хале | P28: Програм_6__Заштита_животне_средине | Q28: 0401-0001 Управљање заштитом животне средине и природних вредности | R28: 0401-0002 Управљање комуналним отпадом | S28: 0401-0003 Праћење квалитета елемената животне средине | T28: 0401-0004 Заштита природних вредности и унапређење подручја са природним својствима
A29: 200 | B29: ОДБРАНА | L29: 11136 | M29: Лизинг пословног простора и других објеката | P29: Програм_7__Путна_инфраструктура | Q29: 0701-0001 Управљање саобраћајном инфраструктуром | R29: 0701-0002 Одржавање путева
A30: 210 | B30: Војна одбрана | L30: 11137 | M30: Добити које су резултат промене вредности пословног простора и других објеката | P30: Програм_8__Предшколско_васпитање | Q30: 2001-0001 Функционисање предшколских установа
A31: 220 | B31: Цивилна одбрана | L31: 11138 | M31: Друге промене у обиму пословног простора и других објеката | P31: Програм_9__Основно_образовање | Q31: 2002-0001 Функционисање основних школа
A32: 230 | B32: Војна помоћ иностранству | L32: 11139 | M32: Исправка вредности пословног простора и других објеката | P32: Програм_10_Средње_образовање | Q32: 2003-0001 Функционисање средњих школа
A33: 240 | B33: Одбрана - истраживање и развој | L33: 11140 | M33: Саобраћајни објекти | P33: Програм_11__Социјална__и_дечја_заштита | Q33: 0901-0001 Социјалне помоћи | R33: 0901-0002 Прихватилишта, прихватне станице и друге врсте смештаја | S33: 0901-0003 Подршка социо-хуманитарним организацијама | T33: 0901-0004 Саветодавно-терапијске и социјално-едукативне услуге | U33: 0901-0005 Активности Црвеног крста | V33: 0901-0006 Дечја заштита
A34: 250 | B34: Одбрана некласификована на другом месту | L34: 11141 | M34: Аутопутеви, мостови, надвожњаци и тунели | P34: Програм_12__Примарна_здравствена_заштита | Q34: 1801-0001 Функционисање установа примарне здравствене заштите
A35: 300 | B35: ЈАВНИ РЕД И БЕЗБЕДНОСТ | L35: 11142 | M35: Пруге | P35: Програм_13__Развој_културе | Q35: 1201-0001 Функционисање локалних установа културе | R35: 1201-0002 Подстицаји културном и уметничком стваралаштву
A36: 310 | B36: Услуге полиције | L36: 11143 | M36: Аеродромске писте | P36: Програм_14__Развој_спорта_и_омладине | Q36: 1301-0001 Подршка локалним спортским организацијама, удружењима и савезима | R36: 1301-0002 Подршка предшколском, школском и рекреативном спорту и масовној физичкој култури | S36: 1301-0003 Одржавање спортске инфраструктуре
A37: 320 | B37: Услуге противпожарне заштите | L37: 11145 | M37: Остали саобраћајни објекти | P37: Програм_15__Локална_самоуправа | Q37: 0602-0001 Функционисање локалне самоуправе и градских општина | R37: 0602-0002 Месне заједнице | S37: 0602-0003 Управљање јавним дугом | T37: 0602-0004 Општинско јавно правобранилаштво | U37: 0602-0005 Заштитник грађана | V37: 0602-0006 Информисање | W37: 0602-0007 Канцеларија за младе | X37: 0602-0008 Програми националних мањина | Y37: 0602-0009 Правна помоћ | Z37: 0602-0010 Резерве
A38: 330 | B38: Судови | L38: 11146 | M38: Лизинг саобраћајних објеката
A39: 350 | B39: Јавни ред и безбедност - истраживање и развој | L39: 11147 | M39: Добити које су резултат промене вредности саобраћајних објеката
A40: 360 | B40: Јавни ред и безбедност некласификован на другом месту | L40: 11148 | M40: Друге промене у обиму саобраћајних објеката
A41: 400 | B41: ЕКОНОМСКИ ПОСЛОВИ | L41: 11149 | M41: Исправка вредности саобраћајних објеката
A42: 410 | B42: Општи економски и комерцијални послови и послови по питању рада | L42: 11150 | M42: Водоводна инфраструктура
A43: 411 | B43: Општи економски и комерцијални послови | L43: 11151 | M43: Водовод
A44: 412 | B44: Општи послови по питању рада | L44: 11152 | M44: Канализација
A45: 420 | B45: Пољопривреда, шумарство, лов и риболов | L45: 11153 | M45: Луке
A46: 421 | B46: Пољопривреда | L46: 11154 | M46: Бране
A47: 422 | B47: Шумарство | L47: 11155 | M47: Остали облици водоводне инфраструктуре
A48: 423 | B48: Лов и риболов | L48: 11156 | M48: Лизинг водоводне инфраструктуре
A49: 430 | B49: Гориво и енергија | L49: 11157 | M49: Добити које су резултат промене вредности водоводне инфраструктуре
A50: 431 | B50: Угаљ и остала чврста минерална горива | L50: 11158 | M50: Друге промене у обиму водоводне инфраструктуре
A51: 432 | B51: Нафта и природни гас | L51: 11159 | M51: Исправка вредности водоводне инфраструктуре
A52: 433 | B52: Нуклеарно гориво | L52: 11190 | M52: Остали објекти
A53: 434 | B53: Остала горива | L53: 11191 | M53: Плиноводи
A54: 435 | B54: Електрична енергија | L54: 11192 | M54: Комуникациони и електрични водови
A55: 436 | B55: Остала енергија | L55: 11193 | M55: Спортски и рекреациони објекти
A56: 440 | B56: Рударство, производња и изградња | L56: 11194 | M56: Установе културе
A57: 441 | B57: Ископавање минералних ресурса, изузев минералних горива | L57: 11195 | M57: Затвори
A58: 442 | B58: Производња | L58: 11196 | M58: Лизинг осталих објеката
A59: 443 | B59: Изградња | L59: 11197 | M59: Добити које су резултат промене вредности осталих објеката
A60: 450 | B60: Саобраћај | L60: 11198 | M60: Друге промене у обиму осталих објеката
A61: 451 | B61: Друмски саобраћај | L61: 11199 | M61: Исправка вредности осталих објеката
A62: 452 | B62: Водени саобраћај | L62: 11200 | M62: Опрема
A63: 453 | B63: Железнички саобраћај | L63: 11210 | M63: Опрема за саобраћај
A64: 454 | B64: Ваздушни саобраћај | L64: 11211 | M64: Опрема за копнени саобраћај
A65: 455 | B65: Цевоводи и други облици саобраћаја | L65: 11212 | M65: Пловни објекти
A66: 460 | B66: Комуникације | L66: 11213 | M66: Опрема за ваздушни саобраћај
A67: 470 | B67: Остале делатности | L67: 11215 | M67: Остала опрема за саобраћај
A68: 471 | B68: Трговина, смештај и складиштење | L68: 11216 | M68: Лизинг опреме за саобраћај
A69: 472 | B69: Хотели и ресторани | L69: 11217 | M69: Добити које су резултат промене вредности саобраћајне опреме
A70: 473 | B70: Туризам | L70: 11218 | M70: Друге промене у обиму саобраћајне опреме
A71: 474 | B71: Вишенаменски развојни пројекти | L71: 11219 | M71: Исправка вредности саобраћајне опреме
A72: 480 | B72: Економски послови - истраживање и развој | L72: 11220 | M72: Административна опрема
A73: 481 | B73: Истраживање и развој - Општи економски и комерцијални послови и послови по питању рада | L73: 11221 | M73: Канцеларијска опрема
A74: 482 | B74: Истраживање и развој - Пољопривреда, шумарство, лов и риболов | L74: 11222 | M74: Рачунарска опрема
A75: 483 | B75: Истраживање и развој - Гориво и енергија | L75: 11223 | M75: Комуникациона опрема
A76: 484 | B76: Истраживање и развој - Рударство, производња и изградња | L76: 11224 | M76: Електронска и фотографска опрема
A77: 485 | B77: Истраживање и развој - Саобраћај | L77: 11225 | M77: Опрема за домаћинство и угоститељство
A78: 486 | B78: Истраживање и развој - Комуникације | L78: 11226 | M78: Лизинг административне опреме
A79: 487 | B79: Истраживање и развој - Остале делатности | L79: 11227 | M79: Добити које су резултат промене вредности административне опреме
A80: 490 | B80: Економски послови некласификовани на другом месту | L80: 11228 | M80: Друге промене у обиму административне опреме
A81: 500 | B81: ЗАШТИТА ЖИВОТНЕ СРЕДИНЕ | L81: 11229 | M81: Исправка вредности административне опреме
A82: 510 | B82: Управљање отпадом | L82: 11230 | M82: Опрема за пољопривреду
A83: 520 | B83: Управљање отпадним водама | L83: 11231 | M83: Опрема за пољопривреду
A84: 530 | B84: Смањење загађености | L84: 11236 | M84: Лизинг опреме за пољопривреду
A85: 540 | B85: Заштита биљног и животињског света и крајолика | L85: 11237 | M85: Добити које су резултат промене вредности пољопривредне опреме
A86: 550 | B86: Заштита животне средине - истраживање и развој | L86: 11238 | M86: Друге промене у обиму пољопривредне опреме
A87: 560 | B87: Заштита животне средине некласификована на другом месту | L87: 11239 | M87: Исправка вредности пољопривредне опреме
A88: 600 | B88: ПОСЛОВИ СТАНОВАЊА И ЗАЈЕДНИЦЕ | L88: 11240 | M88: Опрема за заштиту животне средине
A89: 610 | B89: Стамбени развој | L89: 11241 | M89: Опрема за заштиту животне средине
A90: 620 | B90: Развој заједнице | L90: 11246 | M90: Лизинг опреме за заштиту животне средине
A91: 630 | B91: Водоснабдевање | L91: 11247 | M91: Добити које су резултат промене вредности опреме за заштиту животне средине
A92: 640 | B92: Улична расвета | L92: 11248 | M92: Друге промене у обиму опреме за заштиту животне средине
A93: 650 | B93: Послови становања и заједнице - истраживање и развој | L93: 11249 | M93: Исправка вредности опреме за заштиту животне околине
A94: 660 | B94: Послови становања и заједнице некласификовани на другом месту | L94: 11250 | M94: Медицинска и лабораторијска опрема
A95: 700 | B95: ЗДРАВСТВО | L95: 11251 | M95: Медицинска опрема
A96: 710 | B96: Медицински производи, помагала и опрема | L96: 11252 | M96: Лабораторијска опрема
A97: 711 | B97: Фармацеутски производи | L97: 11253 | M97: Мерни и контролни инструменти
A98: 712 | B98: Остали медицински производи | L98: 11255 | M98: Остала медицинска и лабораторијска опрема
A99: 713 | B99: Терапеутска помагала и опрема | L99: 11256 | M99: Лизинг медицинске и лабораторијске опреме
A100: 720 | B100: Ванболничке услуге | L100: 11257 | M100: Добити које су резултат промене вредности медицинске и лабораторијске опреме
A101: 721 | B101: Опште медицинске услуге | L101: 11258 | M101: Друге промене у обиму медицинске и лабораторијске опреме
A102: 722 | B102: Специјализоване медицинске услуге | L102: 11259 | M102: Исправка вредности медицинске и лабораторијске опреме
A103: 723 | B103: Стоматолошке услуге | L103: 11260 | M103: Опрема за образовање, науку, културу и спорт
A104: 724 | B104: Парамедицинске услуге | L104: 11261 | M104: Опрема за образовање
A105: 730 | B105: Болничке услуге | L105: 11262 | M105: Опрема за науку
A106: 731 | B106: Опште болничке услуге | L106: 11263 | M106: Опрема за културу
A107: 732 | B107: Специјализоване болничке услуге | L107: 11264 | M107: Опрема за спорт
A108: 733 | B108: Услуге медицинских центара и породилишта | L108: 11266 | M108: Лизинг опреме за образовање, науку, културу и спорт
A109: 734 | B109: Услуге домова за негу и опоравак | L109: 11267 | M109: Добити које су резултат промене вредности опреме за образовање, науку, културу и спорт
A110: 740 | B110: Услуге јавног здравства | L110: 11268 | M110: Друге промене у обиму опреме за образовање, науку, културу и спорт
A111: 750 | B111: Здравство истраживање и развој | L111: 11269 | M111: Исправка вредности опреме за образовање, науку, културу и спорт
A112: 760 | B112: Здравство некласификовано на другом месту | L112: 11270 | M112: Опрема за војску
A113: 800 | B113: РЕКРЕАЦИЈА, СПОРТ, КУЛТУРА И ВЕРЕ | L113: 11271 | M113: Опрема за војску
A114: 810 | B114: Услуге рекреације и спорта | L114: 11276 | M114: Лизинг опреме за војску
A115: 820 | B115: Услуге културе | L115: 11277 | M115: Добити које су резултат промене вредности опреме за војску
A116: 830 | B116: Услуге емитовања и штампања | L116: 11278 | M116: Друге промене у обиму опреме за војску
A117: 840 | B117: Верске и остале услуге заједнице | L117: 11279 | M117: Исправка вредности опреме за војску
A118: 850 | B118: Рекреација, спорт, култура и вере - истраживање и развој | L118: 11280 | M118: Опрема за јавну безбедност
A119: 860 | B119: Рекреација, спорт, култура и вере, некласификовано на другом месту | L119: 11281 | M119: Опрема за јавну безбедност
A120: 900 | B120: ОБРАЗОВАЊЕ | L120: 11286 | M120: Лизинг опреме за јавну безбедност
A121: 910 | B121: Предшколско и основно образовање | L121: 11287 | M121: Добити које су резултат промене вредности опреме за јавну безбедност
A122: 911 | B122: Предшколско образовање | L122: 11288 | M122: Друге промене у обиму опреме зa јавну безбедност
A123: 912 | B123: Основно образовање | L123: 11289 | M123: Исправка вредности опреме за јавну безбедност
A124: 913 | B124: Основно образовање са домом ученика | L124: 11290 | M124: Опрема за производњу, моторна, непокретна и немоторна опрема
A125: 914 | B125: Основно образовање са средњом школом | L125: 11291 | M125: Производна опрема
A126: 915 | B126: Специјално основно образовање | L126: 11292 | M126: Моторна опрема
A127: 916 | B127: Основно образовање са средњом школом и домом ученика | L127: 11293 | M127: Непокретна опрема
A128: 920 | B128: Средње образовање | L128: 11294 | M128: Немоторна опрема
A129: 921 | B129: Ниже средње образовање | L129: 11296 | M129: Лизинг опреме за производњу, моторну, непокретну и немоторну опрему
A130: 922 | B130: Више средње образовање | L130: 11297 | M130: Добити које су резултат промене вредности опреме за производњу, моторне, непокретне и немоторне опреме
A131: 923 | B131: Средње образовање са домом ученика | L131: 11298 | M131: Друге промене у обиму опреме за производњу, моторне, непокретне и немоторне опреме
A132: 930 | B132: Више образовање | L132: 11299 | M132: Исправка вредности опреме за производњу, моторне, непокретне и немоторне опреме
A133: 931 | B133: Више образовање | L133: 11300 | M133: Остале некретнине и опрема
A134: 932 | B134: Више образовање са студентским домом | L134: 11310 | M134: Остале некретнине и опрема
A135: 940 | B135: Високо образовање | L135: 11311 | M135: Остале некретнине и опрема
A136: 941 | B136: Високо образовање - први степен | L136: 11316 | M136: Лизинг-Остале некретнине и опрема
A137: 942 | B137: Високо образовање - други степен | L137: 11317 | M137: Добити које су резултат промене вредности-остале некретнине и опрема
A138: 950 | B138: Образовање које није дефинисано нивоом | L138: 11318 | M138: Друге промене у обиму-остале некретнине и опрема
A139: 960 | B139: Помоћне услуге образовању | L139: 11319 | M139: Исправка вредности-остале некретнине и опрема
A140: 970 | B140: Образовање - истраживање и развој | L140: 12000 | M140: Култивисана имовина
A141: 980 | B141: Образовање некласификовано на другом месту | L141: 12100 | M141: Култивисана имовина
L142: 12110 | M142: Култивисана имовина
L143: 12111 | M143: Основно стадо
L144: 12112 | M144: Вишегодишњи засади
L145: 12117 | M145: Добити које су резултат промене вредности култивисане имовине
L146: 12118 | M146: Друге промене у обиму култивисане имовине
L147: 12119 | M147: Исправка вредности култивисане имовине
L148: 13000 | M148: Драгоцености
L149: 13100 | M149: Драгоцености
L150: 13110 | M150: Драгоцености
L151: 13111 | M151: Злато
L152: 13112 | M152: Сребро
L153: 13113 | M153: Накит од племенитих метала
L154: 13114 | M154: Антика и други предмети
L155: 13115 | M155: Остале драгоцености
L156: 13117 | M156: Добити које су резултат промене вредности драгоцености
L157: 13118 | M157: Друге промене у обиму драгоцености
L158: 13119 | M158: Исправка вредности драгоцености
L159: 14000 | M159: Природна имовина
L160: 14100 | M160: Земљиште
L161: 14110 | M161: Земљиште
L162: 14111 | M162: Пољопривредно земљиште
L163: 14112 | M163: Грађевинско земљиште
L164: 14113 | M164: Земља која је испод зграда и објеката
L165: 14114 | M165: Спортски терени и придружена водена површина
L166: 14115 | M166: Остало земљиште и придружена водена површина
L167: 14117 | M167: Добити које су резултат промене вредности земљишта
L168: 14118 | M168: Друге промене у обиму земљишта
L169: 14119 | M169: Исправка вредности земљишта
L170: 14200 | M170: Подземна блага
L171: 14210 | M171: Подземна блага
L172: 14211 | M172: Копови
L173: 14212 | M173: Угаљ, нафта и природни гас
L174: 14213 | M174: Минералне резерве метала
L175: 14217 | M175: Добити које су резултат промене вредности подземних блага
L176: 14218 | M176: Друге промене у обиму подземних блага
L177: 14219 | M177: Исправка вредности подземних блага
L178: 14300 | M178: Шуме и воде
L179: 14310 | M179: Шуме
L180: 14311 | M180: Шуме
L181: 14317 | M181: Добити које су резултат промене вредности шума
L182: 14318 | M182: Друге промене у обиму шума
L183: 14319 | M183: Трошење вредности шума
L184: 14320 | M184: Воде
L185: 14321 | M185: Воде
L186: 14327 | M186: Добити које су резултат промене вредности воде
L187: 14328 | M187: Друге промене у обиму воде
L188: 14329 | M188: Исправка вредности воде
L189: 15000 | M189: Нефинансијска имовина у припреми и аванси
L190: 15100 | M190: Нефинансијска имовина у припреми
L191: 15110 | M191: Грађевински објекти у припреми
L192: 15111 | M192: Стамбени грађевински објекти у припреми
L193: 15112 | M193: Пословне зграде и други грађевински објекти у припреми
L194: 15113 | M194: Саобраћајни објекти у припреми
L195: 15114 | M195: Водоводна инфраструктура у припреми
L196: 15115 | M196: Други објекти у припреми
L197: 15120 | M197: Опрема у припреми
L198: 15121 | M198: Саобраћајна опрема у припреми
L199: 15122 | M199: Административна опрема у припреми
L200: 15123 | M200: Пољопривредна опрема у припреми
... 4532 more rows
